Workbook

Sheet Welcome
B2: Welcome to the "Solid Biomass Fuel Parameters" Calculation Tool of the Austrian Energy Agency. | I2: 6
B5: 1 | D5: Please select your language | H5: English | O5: 1
O6: 1
B7: 2 | D7: Bitte wählen Sie Ihre Sprache | H7: German
B9: 3 | D9: Izaberite jezik | H9: Croatian
B11: 4 | D11: Виберіть необхідну мову | H11: Ukrainian
B13: 5 | D13: Παρακαλούμε επιλέξτε γλώσσα | H13: Greek
B15: 6 | H15: Romanian
B17: 7 | D17: Моля изберете език | H17: Bulgarian
B19: 8 | D19: Prosím označte Váš jazyk | H19: Slovak
B21: 9 | D21: Valitse kieli | H21: Finnish
B23: 10 | D23: Proszę wybrać swój język | H23: Polish
B29: The German and English basic versions of this Calculation Tool were funded by klimaaktiv, the Austrian climate protection initiative launched by the Austrian “Federal Ministry of Agriculture, Forestry, Environment and Water Management” (BMLFUW), embedded in the federal climate strategy. The basic versions of the Calculation Tool and an English and a German manual can be downloaded from the website www.klimaaktiv.at/erneuerbare/energieholz/werkzeuge-und-hilfsmittel/kenndatenkalkulation.html.
B31: The extension of the basic version of this Calculation Tool for addtional 8 languages and for the "Calculation of Straw fuel parameters" were funded by the European Union, in the context of the Horizon 2020 project "Bioenergy4Business". The translation into national languages was done by the respective national partners of this project. The extended version of the Calculation Tool and the English and the German manual can be downloaded from the project website www.bioenergy4business.eu.
B32: LEGAL DISCLAIMER: The Austrian BMLFUW, the European Commission and the partners of the Horizon 2020 project Bioenergy4Business are not liable for any use that may be made of the information contained herein.
G37: 0
G38: 0
G39: 0

Sheet Comments (hidden)
A2: On this sheet you find the translation of the comments given in column E of the sheet "Calculation" (cell references to "Calculation" sheet - see first column of this sheet)
A4: Reference Cell in sheet "Calculation" | B4: English | C4: Deutsch | D4: Croatian | E4: Ukranian | F4: Greek | G4: Romanian | H4: Bulgarian | I4: Slovak | J4: Finnsih | K4: Polish
B5: Class natural wood low ash content; P16S particle classification main fraction (3,15 < P ≤ 16) mm | D5: Razred prirodno drvo nizak udio pepela; klasifikacija čestice P16S glavna frakcija (3,15 < P ≤ 16) mm | E5: Натуральна деревина класу з низькою зольністю; основні фракції (3,15 < P ≤ 16) мм по класифікації частинок P16S | F5: Κλάση φυσικό ξύλο χαμηλή περιεκτικότητα τέφρας; P16S ταξινόμηση σωματιδίων κύριο κλάσμα (3,15 <P≤16)mm | G5: Clasa - lemn natural cu continut scazut de cenusa; P16S - clasificarea dupa fractia majora a particulelor (3.15 < P ≤ 16) mm | H5: Клас А1 натурална дървесина ниско пепелно съдържание; П16S класификация на частици основна фракция (3,5<Р≤16)мм | I5: Trieda A1 prírodné drevo s nízkym obsahom popola; P16S klasifikácia častíc hlavných rozmerov (3,15 < P ≤ 16) mm | J5: Luokka A1, luonnon puu alhainen tuhkapitoisuus | K5: Naturalne drewno klasa A1 niska zawartość popiołu; klasyfikacja cząstek frakcji głównej P16S (3,15 < P ≤ 16) mm
B6: Class A1 natural wood low ash content; P31S particle classification main fraction (3,15 < P ≤ 31,5) mm | D6: Razred A1 prirodno drvo nizak udio pepela; klasifikacija čestice P31S glavna frakcija (3,15 < P ≤ 31,5) mm | E6: Натуральна деревина класу A1 з низькою зольністю; основні фракції (3,15 < P ≤ 31,5) мм по класифікації частинок P31S | F6: Κλάση Α1 φυσικό ξύλο χαμηλή περιεκτικότητα τέφρας; P31S ταξινόμηση σωματιδίων κύριο κλάσμα (3,15 <P≤31,5)mm | G6: Clasa A1 - lemn natural cu continut scazut de cenusa; P31S - clasificarea dupa fractia majora a particulelor (3.15 < P ≤ 31.15) mm | H6: Клас А1 натурална дървесина ниско пепелно съдържание; П31S класификация на частици основна фракция (3,5<Р≤31,5)мм | I6: Trieda A1 prírodné drevo s nízkym obsahom popola; P31S klasifikácia častíc hlavných rozmerov (3,15 < P ≤ 31,5) mm | J6: Luokka A1, luonnon puu alhainen tuhkapitoisuus | K6: Naturalne drewno klasa A1 niska zawartość popiołu; klasyfikacja cząstek frakcji głównej P31S (3,15 < P ≤ 31,5) mm
B7: Class A1 natural wood low ash content; P45S particle classification main fraction (3,15 < P ≤ 45) mm | D7: Razred A1 prirodno drvo nizak udio pepela; klasifikacija čestice P45S glavna frakcija (3,15 < P ≤ 45) mm | E7: Натуральна деревина класу A1 з низькою зольністю; основні фракції (3,15 < P ≤ 45) мм по класифікації частинок P45S | F7: Κλάση Α1 φυσικό ξύλο χαμηλή περιεκτικότητα τέφρας; P45S ταξινόμηση σωματιδίων κύριο κλάσμα (3,15<P≤45)mm | G7: Clasa A1 - lemn natural cu continut scazut de cenusa; P45S - clasificarea dupa fractia majora a particulelor (3.15 < P ≤ 45) mm | H7: Клас А1 натурална дървесина ниско пепелно съдържание; П45S класификация на частици основна фракция (3,5<Р≤45)мм | I7: Trieda A1 prírodné drevo s nízkym obsahom popola; P45S klasifikácia častíc hlavných rozmerov (3,15 < P ≤ 45) mm | J7: Luokka A1, luonnon puu alhainen tuhkapitoisuus | K7: Naturalne drewno klasa A1 niska zawartość popiołu; klasyfikacja cząstek frakcji głównej P45S (3,15 < P ≤ 45) mm
B8: Class A2 natural wood high ash content; P31S particle classification main fraction (3,15 < P ≤ 16) mm | D8: Razred A2 prirodno drvo visok udio pepela; klasifikacija čestice P31S glavna frakcija (3,15 < P ≤ 16) mm | E8: Натуральна деревина класу A2 з високою зольністю; основні фракції (3,15 < P ≤ 16) мм по класифікації частинок P16S | F8: Κλάση Α2 φυσικό ξύλο χαμηλή περιεκτικότητα τέφρας; P31S ταξινόμηση σωματιδίων κύριο κλάσμα (3, 15<P≤16)mm | G8: Clasa A2 - lemn natural cu continut ridicat de cenusa; P16S - clasificarea dupa fractia majora a particulei (3.15 < P ≤ 16) mm | H8: Клас А2 натурална дървесина високо пепелно съдържание; П16S класификация на частици основна фракция (3,5<Р≤16)мм | I8: Trieda A2 prírodné drevo s vysokým obsahom popola; P31S klasifikácia častíc hlavných rozmerov (3,15 < P ≤ 16) mm | J8: Luokka A2, luonnon puu korkea tuhkapitoisuus | K8: Naturalne drewno klasa A2 wysoka zawartość popiołu; klasyfikacja cząstek frakcji głównej P31S (3,15 < P ≤ 16) mm
B9: Class A2 natural wood high ash content; P31S particle classification main fraction (3,15 < P ≤ 31,5) mm | D9: Razred A2 prirodno drvo visok udio pepela; klasifikacija čestice P31S glavna frakcija (3,15 < P ≤ 31,5) mm | E9: s | F9: Κλάση Α2 φυσικό ξύλο χαμηλή περιεκτικότητα τέφρας; P31S ταξινόμηση σωματιδίων κύριο κλάσμα (3, 15<P≤31,5)mm | G9: Clasa A2 - lemn natural cu continut ridicat de cenusa; P31S - clasificarea dupa fractia majora a particulei (3,15 < P ≤ 31.15) mm | H9: Клас А2 натурална дървесина високо пепелно съдържание; П31S класификация на частици основна фракция (3,5<Р≤31,5)мм | I9: Trieda A2 prírodné drevo s vysokým obsahom popola; P31S klasifikácia častíc hlavných rozmerov (3,15 < P ≤ 31,5) mm | J9: Luokka A2, luonnon puu korkea tuhkapitoisuus | K9: Naturalne drewno klasa A2 wysoka zawartość popiołu; klasyfikacja cząstek frakcji głównej P31S (3,15 < P ≤ 31,5) mm
B10: Class A2 natural wood high ash content; P45S particle classification main fraction (3,15 < P ≤ 45) mm | D10: Razred A2 prirodno drvo visok udio pepela; klasifikacija čestice P45S glavna frakcija (3,15 < P ≤ 45) mm | E10: Натуральна деревина класу A2 з високою зольністю; основні фракції (3,15 < P ≤ 45) мм по класифікації частинок P45S | F10: Κλάση Α2 φυσικό ξύλο χαμηλή περιεκτικότητα τέφρας; P45S ταξινόμηση σωματιδίων κύριο κλάσμα (3,15<P≤45)mm | G10: Clasa A2 - lemn natural cu continut ridicat de cenusa; P45S - clasificarea dupa fractia majora a particulei (3.15 < P < 45) mm | H10: Клас А2 натурална дървесина високо пепелно съдържание; П45S класификация на частици основна фракция (3,5<Р≤45)мм | I10: Trieda A2 prírodné drevo s vysokým obsahom popola; P45S klasifikácia častíc hlavných rozmerov (3,15 < P ≤ 45) mm | J10: Luokka A2, luonnon puu korkea tuhkapitoisuus | K10: Naturalne drewno klasa A2 wysoka zawartość popiołu; klasyfikacja cząstek frakcji głównej P45S (3,15 < P ≤ 45) mm
A11: E9 | B11: Wood species/ fuel type: Choose a wood species/ fuel type from the drop-down menu or enter a fuel type of your choice in the "Other" column. The possible choices in the drop-down menu are also listed in the first column ("Wood species/ fuel type") of the data sheet. | C11: Holz- bzw. Brennstoffart Wählen Sie hier eine Holz- bzw. Brennstoffart aus dem Drop-Down-Menü aus bzw. geben Sie im Bereich "Sonstige" eine gewünschte Brennstoffart ein. Die Auswahlmöglichkeiten des Drop-Down-Menüs sind auch im Datenblatt in der ersten Spalte ("Holz- bzw. Brennstoffart") ersichtlich. | D11: Vrste drva / vrste goriva: Odaberite vrstu drva/goriva iz opadajućeg izbornika ili unestite vrstu goriva po svom izboru u stupcu "Ostalo". Moguće opcije u opadajućem izborniku su također izlistane u prvom stupcu ("Vrste drva / vrste goriva ") podatkovne tablice | E11: Порода деревини/ тип палива: Виберіть породу деревини/ тип палива з меню, що випадає, або введіть ваш варіант типу палива у стовпчик "Інше". Можливі варіанти вибору з меню, що випадає, також перелічено у першому стовпчику ("Порода деревини/ тип палива") таблиці даних. | F11: Είδος ξύλου/ τύπος καυσίμου: Επιλέξτε ένα είδος ξύλου/τύπο καυσίμου από το μενού ή εισάγετε ένα τύπο καυσίμου της επιλογής σας στη στήλη "Άλλο". Οι πιθανές επιλογές του μενού υπάρχουν και στην πρώτη στήλη (Είδος ξύλου/τύπος καυσίμου) του φύλλου δεδομένων. | G11: Specii de lemn/ tip de combustibil: Alegeti o specie de lemn/tip de combustibil din meniul `drop-down` si introduceti un tip de combustibil la alegere in coloana "Other/Altele". Selectiile posibile din meniul drop-down sunt de asemenea prezentate in prima coloana (Specii de lemn/tip de combustibil) din Data sheet/Fisierul cu date | H11: Видове дървесина/тип гориво: Изберете вид дървесина/тип горивоот падащото меню или въведете избрания вид горивов колоната "Други". Възможните избори в падащотот меню са изброени също в първата колона ("Видове дървесина/тип гориво") на таблицата | I11: Druhy dreva/typ paliva: Zvoľte druh dreva/paliva z rolovacieho menu alebo zadajte typ paliva podľa vašej voľby do stĺpca "ostatné". Možné voľby z rolovacieho menu sú tiež uvedené v prvom stĺpci ("druh dreva/paliva") data hárku. | J11: Puulajit / Polttoainetyyppi: Valitse puulaji / polttoainetyyppi pudotusvalikosta tai kirjoita polttoainetyyppivalintasi "Muut"-sarakkeeseen. Pudotusvalikon vaihtoehdot on myös lueteltu ensimmäisessä sarakkeessa ("puulajit / polttoaineen tyyppi") "info"- välilehdellä. | K11: Rodzaj drewna/ rodzaj paliwa: Wybierz rodzaj drewna/ rodzaj paliwa z listy lub wpisz własny rodzaj paliwa w kolumnie “Inne”. Możliwe wybory z listy są też wymienione w pierwszej kolumnie (“Rodzaj drewa/ rodzaj paliwa”) arkusza danych.
A12: E10 | B12: Fuel group The wood species/ fuel type is automatically assigned to one of the fuel groups listed in the data sheet ("Coniferous wood (CW)", "Non-Coniferous wood (NCW)", "CW (mixed)", "NCW (mixed)", "CW & NCW (mixed)", "Bark (CW)", "Bark (NCW)", "Compressed wood"). In the "Other" column, the fuel group can be entered manually. | C12: Brennstoffgruppe Die Zuordnung der Brennstoffe zu den Brennstoffgruppen "Nadelholz", "Laubholz", "NH Mischung", "LH Mischung", "NH & LH Mischung", "Rinde NH", "Rinde LH" oder "Presslinge" wird vom Datenblatt übernommen. Im Bereich "Sonstige" kann die gewünschte Brennstoffgruppe frei eingegeben werden. | D12: Skupina goriva | E12: Клас палива Порода деревини/ тип палива автоматично відноситься до одного з класу палив, перелічених у таблиці даних ("Хвойна деревина (ХД)", "Нехвойна деревина (НХД)", "ХД (змішана)", "НХД (змішана)", "ХД та НХД (змішана)", "Кора (ХД)", "Кора (НХД)", "Ущільнена деревина"). У стовпчику "Інше" можно вручну ввести клас палива. | F12: Ομάδα καυσίμου Τα είδος ξύλου/τύπος καυσίμου καταχωρείτε αυτόματα σε μια από τις ομάδες καυσίμου που υπάρχουν στο φύλλο δεδομένων ("Ξύλο κωνοφόρων (ΞΚ)", "Ξύλο πλατυφύλλων (ΞΠ)", "ΞΚ μεικτό", "ΞΠ μεικτό ", "ΞΚ&ΞΠ μεικτό ", "Φλοιός (ΞΚ)", "Φλοιός (ΞΠ)", "Συμπιεσμένο ξύλο"). Στη στήλη "Άλλο", η ομάδα καυσίμου μπορεί να εισαχθεί από το χρήστη. | G12: Grupul de combustibili Speciile de lemn/tipul de combustibil este alocat automat la unul din combustibilii din grupul prezentat in Data sheet ("Lemn de conifere (LC)", "Lemn de Non-Conifere (LNC)", "LC (mixt)", "LNC (mixt)", "LC & LNC (mixt)", "Scoarta (LC)", "Scoarta (LNC)", "Lemn presat"). In coloana "Other/Altele" , grupul de combustibil poate fi introdus manual. | H12: Група гориво Видът дървесина/ типпът гориво автоматично се присъединява към една от групите гориво, изредени в таблицата ("иглолистна дървесина (ИД)", "широколистна дървесина (ШД)"." ИД(смесена)", " ШД(смесена)", ИД§ШД (смесена)", "Кора (ШД)", "Пресовано дърво". В колоната "Други" групата на горивото може да се въведе ръчно. | I12: Skupina palív - Druhy dreva/paliva sú automaticky priradené do jednej skupiny palív uvedených tiež v data hárku ("Ihličnaté drevo (CW)", "Neihličnaté drevo (NCW)", "CW(mix)", "NCW (mix)", "CW a NCW (mix)", "Kôra (CW)", "Kôra (NCW)", "Lisované drevo"). | J12: Puulajit / Polttoainetyyppi vie automaattisesti polttoaineryhmiin, jotka on lueteltu välilehdellä (" Havupuu (CW) ", "lehtipuu (NCW) ", " CW (mixed) ", "NCW (seka)" , "CW & NCW (seka)" , "kuori (CW)" , "kuori (NCW)" , "kompressoitu puu"). "Muut"-sarakkeessa polttoaineryhmä voidaan syöttää käsin. | K12: Grupa paliwa Rodzaj drewa/ rodzaj paliwa jest automatycznie przypisywany do jednej z grup paliw wymienionych w arkuszu danych (“drewno drzew iglastych (CW)”, “drewno drzew liściastych (NCW)”, “CW (mieszane), NCW (mieszane), “CW & NCW (mieszane)”, “kora (CW)”, kora (NCW)”, “drewno prasowane”). W kolumnie “Inne” grupa paliwa może być wpisana ręcznie.
A13: E11 | B13: Assortment Choose the assortment from the drop-down menu. The list of selectable wood fuel assortments in the drop-down menu is based on the Austrian standards ÖNORM M 7132, ÖNORM M 7133, ÖNORM M 7135. In the "Other" column, you can enter the assortment of your choice based on your own data or sources. | C13: Sortiment Wählen Sie hier das Sortiment aus dem Drop-Down-Menü aus. Die Liste der wählbaren Energieholzsortimente im Drop-Down-Menü orientiert sich an den Normen ÖNORM M 7132, ÖNORM M 7133 und ÖNORM M 7135. Im Bereich "Sonstige" können Sie ein gewünschtes Sortiment gemäß eigener Erfahrungswerte oder Informationsquellen eingeben. | D13: Sortiment | E13: Вид палива Виберіть вид палива з меню, що випадає. Перелік деревного палива в цьому меню грунтується на австрійських стандартах ÖNORM M 7132, ÖNORM M 7133, ÖNORM M 7135. У стовпчику "Інше" ви можете ввести ваш варіант виду палива. | F13: Ποικιλία ειδών Επιλέξτε την ποικιλία ειδών από το μενού. Η λίστα με τε είδη των καυσίμων ξύλου που μπορούν να επιλεγούν από το μενού βασίζεται στα Αυστριακά πρότυπα ONORM M 7132, ONORM M7133, ONORM M7135. Στη στήλη "Άλλο", μπορείτε να εισάγετε το είδος της επιλογής σας με βάση δικά σας δεδομένα ή πηγές. | G13: Sortiment Alegeti sortimentul din meniul `drop-down`. Lista cu sortimentele de lemn ce pot fi selectate din meniul `drop-down` este bazat pe standardele austriece ÖNORM M 7132, ÖNORM M 7133, ÖNORM M 7135. In coloana "Other/Altele", puteti sa introduceti sortimentul din optiunea voastra bazata pe datele sau sursele proprii. | H13: Асортимент Изберете асортимент от падащото меню. Списъкът с избираемата дървесина в падащото меню се базира на австрийските стандарти ÖNORM M 7132, ÖNORM M 7133, ÖNORM M 7135. В колоната "Други" можете да въведете избрания от вас асортимент. базиран на собствените ви данни. | I13: Výber - Vyberte výber z rolovacieho menu. Zoznam vybraného druhu dreva/paliva v rolovacom menu je na základe Rakúskych štandardov ÖNORM M 7132, ÖNORM M 7133, ÖNORM M 7135. V stĺpci "ostatné" môžete zadať vlastný výber na základe vlastných zdrojov. | J13: Valikoima Valitse valikoima pudotusvalikosta. Valittavien puupolttoaineiden luettelo perustuu Itävallan standardeihin ÖNORM M 7132, ÖNORM M 7133, ÖNORM M 7135. "Muut"-sarakkeessa voit syöttää omiin tietoihin tai lähteisiin perustuvan oman valintasi. | K13: Asortyment Wybierz asortyment z listy. Lista możliwych asortymentów paliw drzewnych na liście bazuje na austriackich standardach ÖNORM M 7132, ÖNORM M 7133, ÖNORM M 7135. W kolumnie “Inne” można wpisać własny asortyment na podstawie własnych danych i źródeł.
A14: E12 | B14: Conversion factor The following factors for the conversion from m³(solid) to m³(stacked) or m³(loose) have been used for the customary assortments: split firewood (1 m): 1 m³(solid) = 1.4286 m³(stacked) firewood (stacked): 1 m³(solid) = 1.1765 m³(stacked) firewood (loose): 1 m³(solid) = 2.0000 m³(loose) wood chips : 1 m³(solid) = 2.5000 m³(loose) wood chips G50: 1 m³(solid) = 3.0303 m³(loose) sawdust: 1 m³(solid) = 3.0303 m³(loose) wood shavings: 1 m³(solid) = 5.0000 m³(loose) bark chippings (loose): 1 m³(solid) = 3.3333 m³(loose) Source: ÖNORM M 7132, Papierholz Austria In the "Other" column, you can manually enter a conversion factor based on your own data or sources. | C14: Umrechnungsfaktor Die folgenden Umrechnungsfaktoren von fm auf rm bzw. srm wurden für die handelsüblichen Sortimente berücksichtigt: Scheitholz (1 m): 1 fm = 1,4286 rm Stückholz (geschlichtet): 1 fm = 1,1765 rm Stückholz (geschüttet): 1 fm = 2,0000 srm Holzhackgut : 1 fm = 2,5000 srm Holzhackgut G50: 1 fm = 3,0303 srm Sägespäne: 1 fm = 3,0303 srm Hobelspäne: 1 fm = 5,0000 srm Rinde (geschüttet): 1 fm = 3,3333 srm Datenquelle: ÖNORM M 7132, Papierholz Austria Im Bereich "Sonstige" können Sie einen gewünschten Umrechnungsfaktor gemäß Ihrer eigenen Erfahrungswerte bzw. Informationsquellen eintragen. | D14: Faktor pretvorbe U stupcu "Ostalo" možete ručno unositi faktor pretvorbe na temelju vaših podataka ili izvora. | E14: Коефіцієнт перерахунку Для перерахунку загальноприйнятих видів палива з м³ (щільних) у м³ (складометри) або м³ (насипом) використано наступні коефіцієнти: дрова колоті (1 м): 1 м³ (щільний) = 1,4286 м³ (складометр) дрова (складені): 1 м³ (щільний) = 1,1765 м³ (складометр) дрова (навалом): 1 м³ (щільний) = 2,0000 м³ (навалом) деревна тріска : 1 м³ (щільний) = 2,5000 м³ (насипом) деревна тріска G50: 1 м³ (щільний) = 3.0303 м³ (насипом) тирса: 1 м³ (щільний) = 3,0303 м³ (насипом) деревні струкжки: 1 м³ (щільний) = 5,0000 м³ (насипом) тріска з кори (насипом): 1 м³ (щільний) = 3,3333 м³ (насипом) Джерело: ÖNORM M 7132, Papierholz Austria У стовпчику "Інше" ви можете вручну ввести ваш варіант значення коефіцієнту перерахунку. | F14: Συντελεστής μετατροπής Για την μετατροπή από m³ (συμπαγές) σε χωρικά m³ (στοιβαχτού) ή χωρικά m³ (χύμα) έχουν χρησιμοποιηθεί οι συνήθεις συνδυασμοί των παρακάτω συντελεστών: – Σχισμένα καυσόξυλα (1 m): 1 m³ (συμπαγές) = 1.4286 χωρικά m³ (στοιβαχτού) – Καυσόξυλα (στοιβαγμένα): 1 m³ (συμπαγές) = 1.1765 χωρικά m³ (στοιβαχτού) – Καυσόξυλα (χύμα): 1 m³ (συμπαγές) = 2.0000 χωρικά m³ (χύμα) – Θρυμματισμένο ξύλο : 1 m³ (συμπαγές) = 2.5000 χωρικά m³ ( χύμα) – Θρυμματισμένο ξύλο G50: 1 m³ (συμπαγές) = 3.0303 χωρικά m³ (χύμα) – Πριονίδι: 1 m³ (συμπαγές) = 3.0303 χωρικά m³ (χύμα) – Εξακρίδια: 1 m³ (συμπαγές) = 5.0000 χωρικά m³ (χύμα) – Θρυμματισμένος φλοιός (χύμα): 1 m³ (συμπαγές) = 3.3333 χωρικά m³ (χύμα) Πηγή: ÖNORM M 7132, Papierholz Austria Στη στήλη "Άλλο" μπορείτε να εισάγεται έναν συντελεστή μετατροπής με βάση δικά σας δεδομένα ή πηγές. | G14: Factorul de conversie Au fost utilizati urmatorii factori de conversie m³(solid) to m³ (stiva) or m³(vrac) pentru sortimentele scoase la vanzare: lemn crapat de foc (1 m): 1 m³(solid) = 1.4286 m³(stiva) lemn de foc (stacked): 1 m³(solid) = 1.1765 m³(stiva) lemn de foc (vrac): 1 m³(solid) = 2.0000 m³(vrac) talas de lemn : 1 m³(solid) = 2.5000 m³(vrac) talas de lemn G50: 1 m³(solid) = 3.0303 m³(vrac) rumegus: 1 m³(solid) = 3.0303 m³(vrac) aschii de lemn: 1 m³(solid) = 5.0000 m³(vrac) talas din scoarta (vrac): 1 m³(solid) = 3.3333 m³(vrac) Source: ÖNORM M 7132, Papierholz Austria In coloana "Other/Altele", puteti sa introduceti manual un factor de conversie bazat pe propriile voastre date si surse. | H14: Фактор на конжерсия, ните фактори за конжерсия от куб,м (плътни) в куб.м (опаковани) или куб.м (насипни) бяха използвани за обичайния асортимент: нарязани дърва за огрев (1м) 1 m³(плътен) = 1.4286 m³(опаковани) дърва за огрев (опаковани): 1 m³(плътен) = 1.1765 m³(опаковани) дърва за огрев (насипни): 1 m³ (плътен) = 2.0000 m³(насипни) дървесен чипс : 1 m³(плътен) = 2.5000 m³(насипни) дървесен чипс G50: 1 m³(плътен) = 3.0303 m³(насипни) стърготини: 1 m³(плътен) = 3.0303 m³(насипни) изрезки: 1 m³(плътен) = 5.0000 m³(насипни) кора натрошена (насипна): 1 m³(плътен) = 3.3333 m (³насипни) Източник: ÖNORM M 7132, Papierholz Austria В колоната "Други" можете ръчно да въведете фактора на конверсия на базата на вашите собствени данни или източници. | I14: Konverzný koeficient Nasledujúce koeficienty premeny z m3(pevná) na m3(plná) alebo m3(voľná) boli použité pre upraviteľný výber: porezané palivové drevo (1 m): 1 m³(pevná) = 1.4286 m³(plná) palivové drevo (plná): 1 m³(pevná) = 1.1765 m³(plná) palivové drevo (voľná): 1 m³(pevná) = 2.0000 m³(voľná) štiepka : 1 m³(pevná) = 2.5000 m³(voľná) štiepka G50: 1 m³(pevná) = 3.0303 m³(voľná) piliny: 1 m³(pevná) = 3.0303 m³(voľná) hobliny: 1 m³(pevná) = 5.0000 m³(voľná) kôrová štiepka (voľná): 1 m³(pevnej) = 3.3333 m³(voľná) Zdroj: ÖNORM M 7132, Papierholz Austria V stĺpci "ostatné" si môžete ručne zadať koeficient premeny na základe vlastných zdrojov dát. | J14: Muutonkertoimet | K14: Przelicznik Poniższe przeliczniki zostały zastosowane do przeliczania z m³(stałej biomasy) na m³(ułożone) lub m³(luz) dla powszechnych asortymentów: drewno opałowe (1 m): 1 m³(lite drewnoa) = 1.4286 m³(ułożona) drewno opałowe (ułożone): 1 m³(lite drewnoa) = 1.1765 m³(ułożona) drewno opałowe (luz): 1 m³(lite drewnoa) = 2.0000 m³(luz) trociny : 1 m³(lite drewnoa) = 2.5000 m³(luz) trociny G50: 1 m³(lite drewnoa) = 3.0303 m³(luz) pył drzewny: 1 m³(lite drewnoa) = 3.0303 m³(luz) wióry: 1 m³(lite drewno) = 5.0000 m³(luz) odłamki kory (luz): 1 m³(lite drewnoa) = 3.3333 m³(luz) Źródło: ÖNORM M 7132, Papierholz Austria W kolumnie “Inne” można wpisać własny przelicznik na podstawie własnych danych i źródeł.
A15: E13 | B15: Unit m³(solid) = unit used in wood fuel trade for roundwood, equals 1 m³ solid wood mass. A further distinction is made in roundwood trade between m³ solid over bark (SOB) and m³ solid under bark (SUB). When comparing prices, it is necessary to consider the point of sale (usually at forest roadside) and possible deductions of bark weight in case of SOB. m³(stacked): unit used in wood fuel trade equalling 1*1*1 m or 1 m³ stacked wood with air space between the pieces of wood. Firewood is often sold as split firewood (1 m in length) at forest roadside or as oven-ready firewood at heating plant or delivered to the end user. Therefore, it is essential to consider the point of sale and the fuel quality (especially size, wood species, moisture content and storage time) when comparing prices. m³(loose): unit used in wood fuel trade equalling 1*1*1 m or 1 m³ loosely heaped wood in the form of sawdust, wood chips or oven-ready firewood with air space between the pieces of wood. The solid wood mass containded in one cubic metre loose can vary significantly depending on bulk density and the size of the pieces. The volume units in m³ that are used with the values below refer to the respective unit used in the wood fuel industry for the selected assortment (e.g. wood chips => unit m³(loose) => bulk density of fresh substance in kg/m³ FS = bulk density of fresh substance in kg/m³(loose) FS). In the "Other" column, you must enter the unit corresponding to the chosen conversion factor. | C15: Einheit (Übliche Volumenmaße in der Forst- und Holzwirtschaft) fm = Festmeter (übliches Handelsmaß in der Forst- und Holzwirtschaft für Rundholz, entspricht 1 m³ fester Holzmasse. In den Holzhandelsusancen wird beim Rundholzhandel weiters zwischen FOO (= Festmeter Ohne Rinde geliefert & Ohne Rinde verrechnet), FMO (= Festmeter Mit Rinde geliefert & Ohne Rinde verrechnet) und FMM (= Festmeter Mit Rinde geliefert & Mit Rinde verrechnet) unterschieden. Bei Preisvergleichen muss auf den Erfüllungsort (meist frei Forststraße) und mögliche Rindenabschläge (meist FMO) geachtet werden.) rm = Raummeter (übliches Handelsmaß für 1*1*1 m bzw. 1 m³ aufgeschlichtetes Holz mit Hohlräumen zwischen den Holzstücken. Brennholz wird häufig in Form von gespaltenen Meterscheitern frei Forststraße oder als ofenfertiges Stückholz frei Brennholzlager oder zugestellt frei Haus gehandelt. Bei Preisvergleichen ist daher unbedingt auf den Erfüllungsort und die Qualität (insbesondere Stückigkeit, Holzart und Wassergehalt bzw. Lagerungsdauer) zu achten.) srm = Schüttraummeter (übliches Handelsmaß für 1*1*1 m bzw. 1 m³ lose geschüttetes Holz in Form von Spänen, Hackgut oder ofenfertigem Stückholz mit Hohlräumen zwischen den einzelnen Holzteilen. Je nach Stückigkeit und Lagerungsdichte kann die in einem Schüttraummeter enthaltene feste Holzmasse sehr stark variieren.) Die Volumeneinheiten in m³ bei den untenstehenden Kennzahlen beziehen sich jeweils auf das übliche Handelsmaß des ausgewählten Sortiments (z. B. Auswahl Holzhackgut => Einheit srm => Rohdichte der Frischsubstanz in kg/m³ FS = Rohdichte der Frischsubstanz in kg/srm FS). Im Bereich "Sonstige" müssen Sie auch die richtige Einheit zum gewählten Umrechnungsfaktor angeben. | D15: Jedinica U stupcu "Ostalo" trebate unijeti jedinicu koja odgovara odabranom faktoru konverzije. | E15: Одиниці виміру м³ (щільний) = одиниця, що використовується для круглого лісоматеріалу при купівлі-продажу деревного палива, дорівнює 1 м³ щільної маси дерева. Подальше уточнення при купівлі-продажу круглого лісоматеріалу полягає у розрізненні м³ щільного з корою (ЩЗК) та м³ щільного без кори (ЩБК). При порівнянні цін необхідно брати до уваги пункт продажу (зазвичай це узбіччя лісу) та можливе віднімання ваги кори у випадку ЩЗК. м³ (складометр): одиниця, що застосовується при купівлі-продажу деревного палива, дорівнює 1*1*1 м або 1 м³ складеної деревини із повітряними зазорами між кусочками деревини. Дрова часто продаються як дрова колоті (довжиною 1 м) на узбіччі лісу або доставляються у підготовленому для спалювання вигляді на котельню чи іншому кінцевому споживачу. Тому при порівнянні цін важливо брати до уваги пункт продажу та якість палива (особливо розмір, породу деревини, вологість та час зберігання). м³ (насипом/навалом): одиниця, що використовується при купівлі-продажу деревного палива, дорівнює 1*1*1 м або 1 м³ наваленого деревного палива у вигляді тирси, деревної тріски або підготовлених для спалювання дров з повітряними зазорами між кусочками деревини. Обсяг щільної деревини, що міститься в одному кубометрі насипом/навалом, може суттєво мінятися в залежності від об'ємної густини та розміру кусків. Об'ємні одиниці (м³), використані нижче, відносяться до одиниць, що застосовуються в лісовій промисловості для вибраних видів палива (наприклад, деревна тріска => одиниця м³ (насипом) => об'ємна густина свіжої речовини у кг/м³ СВР = об'ємна густина свіжої речовини у кг/м³ (насипом) СВР). У стовпчику "Інше" ви маєте ввести одиницю, що відповідає вибраному коефіцієнту перерахунку. | F15: Μονάδα m³ (συμπαγές): μονάδα που χρησιμοποιείται στο εμπόριο καυσίμων ξύλου για στρογγυλή ξυλεία, που ισούται με 1 m³ ξύλου συμπαγούς μάζας. Στο εμπόριο στρογγυλής ξυλείας γίνεται μια περαιτέρω διάκριση, μεταξύ συμπαγούς m³ έμφλοιου (SOB) και άφλοιου (SUB) ξύλου. Κατά τη σύγκριση των τιμών, είναι απαραίτητο να ληφθεί υπόψη το σημείο πώλησης (συνήθως στο δασόδρόμο) και η πιθανή μείωση του βάρους στην περίπτωση του έμφλοιου (SOB) ξύλου. χωρικό m³ (στοιβαχτού): μονάδα που χρησιμοποιείται στο εμπόριο καυσίμων ξύλου και ισούται με 1 * 1 * 1 m ή 1 χωρικό m³ στοιβαγμένου ξύλου με κενό αέρα ανάμεσα στα τεμάχια του ξύλου. Τα καυσόξυλα πωλούνται, συχνά, ως σχισμένα καυσόξυλα (μήκους 1 m) στην άκρη του δασόδρομου ή ως ξηραμένα καυσόξυλα στη μονάδα θέρμανσης ή παραδοτέα στον τελικό χρήστη. Γι’ αυτό, είναι σημαντικό, κατά τη σύγκριση των τιμών, να ληφθεί υπόψη το σημείο πώλησης και η ποιότητα των καυσίμων (ιδιαίτερα το μέγεθος, το είδος του ξύλου, η υγρασία και ο χρόνος αποθήκευσης). χωρικό m³ (χύμα): μονάδα που χρησιμοποιείται στο εμπόριο καυσίμων ξύλου και ισούται με 1 * 1 * 1 m ή 1 χωρικό m³ χύμα ξύλου, σε μορφή πριονιδιού, θρυμματισμένου ξύλου ή ξηραμένων καυσόξυλων, με κενό αέρα ανάμεσα στα τεμάχια του ξύλου. Η συμπαγής μάζα του ξύλου που περιέχεται σε ένα χωρικό κυβικό μέτρο μπορεί να διαφέρει σημαντικά ανάλογα με τη φαινόμενη πυκνότητα και τι μέγεθος των τεμαχίων. Το χωρικό m³, ως μονάδα όγκου που χρησιμοποιείται με τις παρακάτω τιμές, αναφέρεται στην αντίστοιχη μονάδα που χρησιμοποιείται στη βιομηχανία καυσίμων ξύλου για το επιλεγμένο είδος (π.χ. θρυμματισμένο ξύλο => μονάδα χωρικού m³ (χύμα) => φαινόμενη πυκνότητα νωπής ουσίας σε kg/m³ ΝΟ = φαινόμενη πυκνότητα σε kg/m³ νωπής ουσίας (χύμα)). Στη στήλη "Άλλο" στήλη, θα πρέπει να εισάγετε τη μονάδα που αντιστοιχεί στον επιλεγμένο συντελεστή μετατροπής. | G15: Unitatea (definitii) m³(solid) = unitate folosita in vanzarea de lemn (combustibil), pentru busteni este egala cu 1 m³ de masa de lemn masiv. O alta distinctie este facuta in vanzarea bustenilor intre m³ lemn solid cu scoarta (SOB) and m³ lemn solid fara scoarta (SUB). Cand se compara preturile, este necesar a considera punctul de vanzare (de obicei la marginea drumului de padure) si deductiile posibile ce se pot face pentru greutatea scoartei in cazul SOB. m³(stiva): unitate folosita in vanzarea lemnului egala cu 1*1*1 m or 1 m³ lemn stivuit cu spatiile de aer dintre piesele de lemn. Lemnul de foc este adesea prezentat ca lemn de foc crapat (1 m in length) la marginea dumului de padure sau ca lemn de foc pregatit de a fi utilizat in instalatiile de incalzire sau cel ce se distribuie catre utilizatorul final. Therefore, it is essential to consider the point of sale and the fuel quality (especially size, wood species, moisture content and storage time) when comparing prices. m³(vrac): unitate folosita in vanzarea lemnului egala cu 1*1*1 m or 1 m³ vrac in gramada de lemn sub formă de rumeguș, așchii de lemn (talas) sau lemn de foc pentru cuptor cu spațiu de aer între bucățile de lemn. Masa de lemn masiv continuta intr-un metru cub vrac poate varia în mod semnificativ în funcție de densitatea în vrac și de mărimea bucăților. Unitățile de volum din m³ care sunt folosite cu valorile de mai jos se referă la unitatea respectivă utilizat în industria lemnului ca si combustibil pentru sortimentul selectat (de exemplu, așchii de lemn (talas) => unitate m³ (vrac) => densitatea în vrac de substanță proaspătă în kg / m³ MB (materie bruta) = densitate în vrac de substanța proaspăt în kg / m³ (vrac) MB). În coloana "altele", trebuie să introduceți unitatea corespunzătoare factorului de conversie ales. | H15: Единица m³(плътен) = единица, използвана в търговията с дърва за огрев, равнява се на 1 m³ плътна дървесна маса.По-нататъшното различаване се прави в търговията на обла дървесина между m³ твърда над кората (ТНК) и m³ твърда под кората (ТПК). При сравняване на цените е необходимо да се вземе под внимание мястото на продажбата ( обикновено крайпътна гора) и възможно редуциране на теглото на кората в случай на ТНК. m³(наръч): единица, използвана в търговията, равняваща се на 1*1*1 m или 1 m³ наръч дърва с въздушна междина помежду парчетата дърво. Дървата за огрев често се продават като наръч дърва (с дъижина 1 m) в крайпътната гора или като дърва за огрев в отоплителни предприятия или доставени на крайния потребител. Следователно, съществено е да се вземе под внимание мястото на продажбата и качеството на дървесината ( по-специално размер, сорт дървесина, влагосъдържание, и време на съхранение). m³(насипно): единица, използвана в търговията, равняваща се на 1*1*1 m или 1 m³ хлабаво насипана дървесина под формата на стърготини, дървесен чипс или нацепени дърва за огрев с въздушни междини между парчетата дърво. Твърдата дървесна маса, която се съдържа в един кубически метър, може значително да варира в зависимост от обемната плътност и размера на парчетата. Обемните единици в m³, които се използват със стойностите по-долу, се отнасят до съответната единица, използвана в дървоотоплителната индустрия за избрания асортимент (напр. дървесен чипс => единица m³(насипно) => обемна плътност на прясно вещество в kg/m³ ПВ = онемна плътност на прясно вещество в kg/m³(насипно) ПВ). В колоната "Други" В колоната "Други" трябва да въведете единицата, съответстваща на избрания фактор на конверсия. | I15: Jednotka m³(pevná) = jednotka používaná v obchode s drevom pre guľatinu, rovná 1 m³ pevnej drevnej hmoty. Ďalšie rozlíšenie je v obchode s guľatinou medzi m³ pevná s kôrou (SOB) a m³ pevná bez kôry (SUB). Keď porovnávame ceny, je potrebné zobrať do úvahy miesto predaja (najčastejšie na lesnej ceste) a možné odpočty váhy kôry v prípade s kôrou. m³(pevná): jednotka používaná v obchode s drevným palivom rovná 1*1*1 m alebo 1 m³ pevného dreva s priestorom vzduchu medzi kusmi dreva. Palivové drevo je často predávané ako porezané (1m dĺžky) na lesnej ceste alebo ako pripravené na kúrenie v teplárňach alebo doručené koncovému zákazníkovi. Preto je podstatné vziať do úvahy miesto predaja a kvalitu paliva (špeciálne veľkosť, druh dreva, obsah vlhkosti a dĺžku skladovania) keď porovnávame ceny. m³(voľné): jednotka používaná v obchode s drevným palivom rovná 1*1*1 m alebo 1 m³ voľne navŕšeného dreva vo forme pilín, drevnej štiepky alebo pripraveného na palivové drevo so vzduchovými medzerami medzi kusmi dreva. Pevná drevná hmota obsiahnutá v jednom kubickom metri môže byť rôzna a závisí od hustoty objemu a na veľkosti kusov. Jednotky objemu v m³, ktoré používajú nižšie uvedené hodnoty odkazujú na jednotky používané v drevárskom priemysle pre vybraný sortiment (t.j. štiepka => jednotka m³(voľná) => objemová hutota čerstvej suroviny v kg/m³ FS = objemovej hustote čerstvej suroviny kg/m³(voľná) FS). V stĺpci "ostatné" musíte zadať jednotku korešpondujúcu zvolenému koeficientu premeny. | J15: Yksikkö m³ (kiinteä) = yksikköä käytetään tukkipuun kaupassaaakapuun, sama kuin 1 m³ massiivipuun massa. Toisistaan ​​tehdään puukaupan väliseen m³ kiinteän kuoren (SOB) ja m³ kiintokuutiometriä kuoren (SUB). Verrattaessa hintoja, on syytä pohtia myyntipisteeseen (yleensä metsä tien varrella) sekä mahdolliset vähennykset kuoren painon tapauksessa SOB. m³ (pinottu): yksikköä käytetään puupolttoaineen kaupassa samalla tavalla kuin 1 * 1 * 1 m: n tai 1 m³ pinottua puuta niin, että puukappaleiden väliin jää ilmatilaa. Polttopuut usein myydään halkaistuna puuna (1 m pitkä) metsien teiden varsilla tai takkavalmiina polttopuina lämpölaitoksiin tai toimitetaan suoraan loppukäyttäjälle. Siksi on tärkeää pohtia myyntipisteen paikkaa sekä polttoaineiden laatua (erityisesti koko, puulaji, kosteus ja varastointi), kun verrataan hintoja. m³ (irto): yksikköä käytetään puupolttoaineen kaupassa verran 1 * 1 * 1 m: n tai 1 m³ löyhästi pinottua puuta sahanpurun muodossa, haketta tai uunivalmista polttopuuta niin, että puukappaleiden väliin jää ilmatilaa. Massiivipuun massa voi vaihdella yhdessä irtokuutiometrissä ainetta huomattavasti tiheyden ja kappaleen koon perusteella. Tilavuusyksiköitä m³, joita käytetään arvojen alapuolella viittaavat vastaavaan yksikköön käytetyn puupolttoaineen teollisuuden valittujen valikoima (esim puuhake => yksikön m³ (löysä) => irtotiheys tuoreen aineen kg / m³ FS = irtotiheys tuoreen aineen kg / m³ (löysä) FS). "Muut" sarakkeessa, sinun täytyy syöttää vastaava yksikkö valitusta muuntokertoimesta. | K15: Jednostka m³(lite drewnoa) = jednostka używana w handlu paliw drzewnych dla kłód, równa jednemu 1 m³ lite drewnoego drewna. Dalsze zróżnicowanie kłód na m³ z korą (SOB) i m³ bez kory (SUB). Przy porównywaniu ceny, należy wziąć pod uwagę punkt sprzedaży (zazwyczaj leśne przydroże) i możliwe odliczenie masy kory w przypadku SOB. m³(ułożone): jednostka używana w handlu paliw drzewnych równa 1*1*1 m lub 1 m³ ułożonego drewna z pustą przestrzenią między kawałkami drewna. Drewno opałowe jest często sprzedawane w postaci szczap ( o długości 1 m) na leśnym przydrożu, jako drewno do kotłów w ciepłowniach, lub dostarczane do użytkownika końcowego. Dlatego niezbędne jest wzięcie pod uwagę puntu sprzedaży, jakości paliwa (w szczególności rozmiaru, gatunku drewna, zawartości wilgoci i czasu przechowywania) przy porównywaniu ceny m³(luz): jednostka używana w handlu paliw drzewnych równa 1*1*1 m lub 1 m³ luźno ułożonego drewna w formie pyłu drzewnego, trocin lub drewna do pieca z pustą przestrzenią między kawałkami drewna. lite drewnoa masa drewna zawarta w jednym metrze sześciennym luźnego drewna może znacznie się różnić w zależności od gęstości usypowej i rozmiaru kawałków. Jednostka objętości w m³ użyta razem z wartościami poniżej odnoszą się do odpowiednich jednostek używanych w handlu paliw drzewnych wybranych asortymentów (n.p. trociny => jednostka m³(luz) => gęstość nasypowa świeżej masy w kg/m³ FS = gęstość nasypowa świeżej masy w kg/m³(luz) FS). W kolumnie “Inne” należy wpisać jednostkę odpowiadającą wybranemu przelicznikowi.
A16: E15 | B16: Moisture content [%] Enter the moisture content of the chosen wood fuel assortment in this field. Usual levels of moisture content of available wood fuel assortments are: firewood (oven-ready), one-year seasoned: 25 - 35 % firewood (oven-ready), two-year seasoned: 15 - 25 % wood chips (seasoned for at least one summer): < 35 % sawing residue chips (green): 45 - 55 % sawdust (depending on source): 10 - 55 % bark (green): 45 - 55 % compressed wood: 8 - 10 % (ÖNORM M 7135: ≤ 10 %) compressed bark: usually 8 - 10 % (ÖNORM M 7135 ≤ 18 %) Source: Empirical values, ÖNORM M 7135 Note: In the wood fuel business, moisture content is defined on a wet weight basis and is expressed as a percentage by weight of the total weight of the wood containing water. For example, a shipment of 1 tonne of wood chips with a moisture content of 40 % consists of 400 kg water and 600 kg water-free wood substance (dry matter). It is important not to confuse the moisture content on a wet weight basis with the moisture content on a dry weight basis. The maximum moisture content you can enter is 80 % (18 % for compressed wood)! | C16: Wassergehalt [%] Geben Sie hier den Wassergehalt des Energieholzsortiments ein. Übliche Wassergehalte von verfügbaren Energieholzsortimenten sind: Scheitholz und Stückholz (ofenfertig) einjährig gelagert: 25 - 35 % Scheitholz und Stückholz (ofenfertig) zweijährig gelagert: 15 - 25 % Holzhackgut (zumindest über einen Sommer gelagert): < 35 % Sägehackgut (erntefrisch): 45 - 55 % Sägespäne (je nach Anfallsort): 10 - 55 % Rinde (erntefrisch): 45 - 55 % Holzpresslinge: 8 - 10 % (ÖNORM M 7135: ≤ 10 %) Rindenpresslinge: üblicherweise 8 - 10 % (ÖNORM M 7135 ≤ 18 %) Datenquelle: Erfahrungswerte, ÖNORM M 7135 Hinweis: Der Wassergehalt ist der Anteil des im Holz enthaltenen Wassers (in Gewichtsprozent) an der Gesamtmasse des wasserhaltigen Holzes (Frischgewicht). Beispielsweise besteht eine Lieferung von 1 Tonne Hackgut bei 40% Wassergehalt aus 400 kg Wasser und 600 kg wasserfreier Holzsubstanz (Trockensubstanz). Der Wassergehalt des Holzes darf nicht mit der Holzfeuchte verwechselt werden. Die Eingabe des Wassergehalts ist auf maximal 80 % beschränkt (für Presslinge 18 %)! | D16: Udio vlage [%] Maksimalni udio vlage kojeg možete unijeti je 80 % (18% za prešano drvo)! | E16: Вологість [%] Введіть в це поле вологість вибраного виду деревного палива. Звичайні значення вмісту вологи наявних видів деревного палива такі: дрова (підготовлені для спалювання), 1 рік зберігання: 25 - 35 % дрова (підготовлені для спалювання), 2 роки зберігання: 15 - 25 % деревна тріска (зберігання протягом принаймні одного літа): < 35 % тріска з відходів розпилювання (свіжа): 45 - 55 % тирса (в залежності від походження): 10 - 55 % кора (свіжа): 45 - 55 % ущільнена деревина: 8 - 10 % (ÖNORM M 7135: ≤ 10 %) ущільнена кора: зазвичай 8 - 10 % (ÖNORM M 7135 ≤ 18 %) Джерело: Емпірічні значення, ÖNORM M 7135 Примітка: При купівлі-продажу деревного палива вологість визначають по вологій масі й виражають як масовий відсоток загальної маси деревини, що містить воду. Наприклад, партія деревної тріски вагою 1 тонна вологістю 40 % складається з 400 кг води й 600 кг зневодненої деревної речовини (сухої речовини). Важливо не плутати вміст вологи по вологій масі та вміст вологи по сухій масі. Максимальне значення вологості, яке ви можете ввести - 80 % (для ущільненої деревини - 18 %)! | F16: Περιεχόμενη υγρασία [%] Εισάγετε σε αυτό το πεδίο την περιεχόμενη υγρασία του επιλεγμένου είδους καύσιμου ξύλου. Τα συνήθη επίπεδα υγρασίας των διαθέσιμων ειδών καύσιμου ξύλου είναι: – καυσόξυλα (ξηραμένα), φυσική ξήρανση ενός έτους: 25 - 35% – καυσόξυλα (ξηραμένα), φυσική ξήρανση δύο ετών: 15-25% – θρυμματισμένο ξύλο (φυσική ξήρανση για τουλάχιστον ένα καλοκαίρι): <35% – θρύμματα υπολειμμάτων πριονισμού (νωπά): 45-55% – πριονίδι (ανάλογα με την πηγή): 10-55% – φλοιός (νωπός): 45-55% – συμπιεσμένο ξύλο: 8-10% (ÖNORM M 7135: ≤ 10%) – συμπιεσμένος φλοιός: συνήθως 8-10% (ÖNORM M 7135: ≤ 18%) Πηγή: Εμπειρικές τιμές, το ÖNORM M 7135 Σημείωση: Στις επιχειρήσεις καύσιμων ξύλου, η περιεχόμενη υγρασία ορίζεται με το βάρος, σε υγρή βάση και εκφράζεται ως ποσοστό, κατά βάρος, του συνολικού βάρους του ξύλου που περιέχει νερό. Για παράδειγμα, μια ποσότητα 1 τόνου θρυμματισμένου ξύλου, με περιεχόμενη υγρασία 40%, αποτελείται από 400 kg νερό και 600 kg ξύλο χωρίς νερό (ξηρή ουσία). Είναι σημαντικό να μην συγχέεται η περιεχόμενη υγρασία σε υγρή βάση, με την περιεχόμενη υγρασία σε ξηρή βάση. Η μέγιστη περιεχόμενη υγρασία που μπορείτε να εισάγετε είναι 80% (18% για το συμπιεσμένο ξύλο)! | G16: Umiditate [%] Introduceti umiditatea combustibilului de lemn din sortimentul ales in acest camp. Nivelurile uzuale ale umiditatii pentru sortimentele disponibile de combustibil de lemn sunt: lemn de foc (pregatit de foc), vechi de un sezon: 25 - 35 % lemn de foc (pregatit de foc), vechi de 2 sezoane: 15 - 25 % talas (vechi de cel putin o vara): < 35 % talas rezidual (verde): 45 - 55 % rumegus (depinde de soi de lemn): 10 - 55 % coaja (verde): 45 - 55 % lemn presat: 8 - 10 % (ÖNORM M 7135: ≤ 10 %) coaja presata: normal 8 - 10 % (ÖNORM M 7135 ≤ 18 %) Sursa: Valori empirice, ÖNORM M 7135 Nota: In afacerile cu lemn de foc, umiditatea este definita pe baza de continut de apa ca greutate si exprimat ca procent din greutatea lemnului brut cu continut de apa normal. De exemplu, un transport de 1 tona de talas cu umiditate de 40 % contine 400 kg apa si 600 kg lemn uscat ca substanta uscata (SU). Este important sa nu se confunde umiditatea lemnului brut considerand lemnul umed cu umiditatea continuta de lemnul uscat. Umiditatea maxima pe care o puteti introduce este 80% (18% pentru lemnul presat)! | H16: Влагосъдържание,% Въведете влагосъдържанието на избраната дървесиина в това поле. Обичайните нива на на влагосъдържание на наличната дървесина са: дърва за огрев (готови за употреба), едногодишна реколта: 25 – 35 % дърва за огрев (готови за употреба), двугодишна реколта: 15 – 25 % дървесен чипс (престоял поне едно лято): < 35 % отрезни остатъчни трески (зелени): 45 - 55 % стърготини (в зависимост от източника): 10 - 55 % кора (зелена): 45 - 55 % пресована дървесина: 8 - 10 % (ÖNORM M 7135: ≤ 10 %) пресована кора: обикновено 8 - 10 % (ÖNORM M 7135 ≤ 18 %) Source: Empirical values, ÖNORM M 7135 Забележка: В бизнеса с дървесно гориво, влагосъдържанието се дефинира на база тегло на влажен продукт и се изразява като тегловни проценти от общото тегло на дървесината със съдържание на вода. Например, пратка от 1 тон дървесен чипс с влагосъдържание 40 % се състои от 400 kg вода и 600 kg безводна дървесна субстанция (сухо вещество). Важно е да не се обърква влажността на база влажно тегло с влагосъдържанието на база сухо тегло. Максималното влагосъдържание, което можете да въведете, е 80 % (18 % за пресована дървесина)! | I16: Obsah vlhkosti [%] Zadajte obsah vlhkosti zvoleného vybraného dreva do tohoto poľa. Zvyčajné úrovne obsahu vlhkosti dostupného výberu dreva sú: palivové drevo (pripravené na použitie), jeden rok sušené: 25 - 35 % palivové drevo (pripravené na použitie), dva roky sušené: 15 - 25 % drevná štiepka (sušená najviac jedno leto): < 35 % odpadová štiepka z rezania (zelená): 45 - 55 % piliny (v závislosti od zdroja): 10 - 55 % kôra (zelená): 45 - 55 % stlačené drevo: 8 - 10 % (ÖNORM M 7135: ≤ 10 %) stlačená kôra: zvyčajne 8 - 10 % (ÖNORM M 7135 ≤ 18 %) Zdroj: Empirické hodnoty, ÖNORM M 7135 Poznámka: V obchode s palivovým drevom je obsah vlhkosti definovaný na základe mokrej váhy a je vyjadrený ako percentuálny podiel váhy z celkovej váhy dreva obsahujúceho vodu. Pre príklad, náklad 1tony drevnej štiepky s obsahom vlhkosti 40% pozostáva zo 400kg vody a 600kg bezvodnej drevnej zložky (sušiny). Je dôležité nezamienať obsah vlhkosti na základe mokrej váhy s obsahom vlhkosti na základe suchej váhy. Maximálny obsah vlhkosti, ktorý môžete zadať je 80% (18% pre stlačené drevo)! | J16: Kosteuprosentti (%) Kirjoita valitun puulajin kosteusprosentti tähän kenttään. Yleiset kosteusprosentit käytössä oleville puupolttoaineille ovat: polttopuu, vuoden kuivunut: 25 - 35 % polttopuu, kaksi vuotta kuivunut: 15 - 25 % puuhake (vähintään vuoden kuivunut): < 35 % Sahanpuru (märkä): 45 - 55 % Sahanpuru (riippuen lähteestä): 10 -55 % Kuori (märkä): 45 - 55 % Briketti, puu: 8 - 10 % Briketti, kuori: 8 - 10 % Huom: Puupolttoaineen liiketoiminnassa, kosteuspitoisuus on määritelty märän painon perusteella, ja se ilmaistaan painoprosentteina kokonaispainosta riippuen paljonko puu sisältäää vettä. Esimerkiksi 1 tonni haketta, jonka kosteuspitoisuus on 40% koostuu 400 kg vettä ja 600 kg kuiva-puu ainetta (kuiva). On tärkeää huomioida ero kosteuspitoisuudessa kostean painon perusteella mitattuna verrattuna kosteuspitoisuuteen kuivana mitattuna. Enimmäiskosteuspitoisuudeksi voit syöttää on 80% (18% briketille ja muulle puristetulle puulle)! | K16: Zawartość wilgoci [%] Wpisz zawartość wilgoci wybranego asortymentu paliw drzewnych w to pole. Standardowa zawatość wilgoci dla dostępnych asortymentów paliw drzewnych to: drewno opałowe (do pieca), sezonowane rok: 25 - 35 % drewno opałowe (do pieca), sezonowane dwa lata: 15 - 25 % trociny (sezonowane przynajmniej jedno lato): < 35 % zrębki (zielone): 45 - 55 % puł drzewny (w zależności od źródła): 10 - 55 % kora (zielona): 45 - 55 % drewno prasowane: 8 - 10 % (ÖNORM M 7135: ≤ 10 %) kora prasowana: zazwyczaj 8 - 10 % (ÖNORM M 7135 ≤ 18 %) Źródło: Wartości eksperymentalne/empiryczne, ÖNORM M 7135 Uwaga: W przemyśle paliw drzewnych, zawartość wilgoci jest definiowana na podstawie mokrej masy i jest wyrażana jako procent masy całkowitej mokrego drewna. Na przykład, dostawa 1 tony trocin z zawartością wilgoci 40 % składa się z 400 kg wilgoci i 600 kg drewna bez wilgoci (suchej masy). Ważnym jest nie pomieszać zawartości wilgoci na podstawie masy mokrego drewna z zawartości wilgoci na podstawie suchej masy. Maksymalna zawartość wilgoci jaką można wpisać to 80 % (18 % dla drewna prasowanego)!
A17: E16 | B17: Hydrogen content [%] The hydrogen content of wood is around 6.0 - 6.2 % (% by weight of DM) Source: ÖNORM M 7132 In the "Other" column, you need to enter the hydrogen content of the selected fuel as specified in your own data sources. | C17: Wasserstoffgehalt [%] Der Wasserstoffgehalt von Holz beträgt etwa 6,0 - 6,2 % (Gewichts-% der TS) Datenquelle: ÖNORM M 7132 Im Bereich "Sonstige" müssen Sie auch den Wasserstoffgehalt des gewünschten Brennstoffes gemäß eigener Informationsquellen eintragen. | D17: Udio vodika [%] U stupcu "Ostalo" trebate unijeti postotak vodika u odabranom gorivu kako je navedeno u vašem izvoru podataka. | E17: Вміст водню [%] Вміст водню в деревині становить порядку 6,0 - 6,2 % (% по масі СР) Джерело: ÖNORM M 7132 У стовпчику "Інше" ви маєте ввести вміст водню для вибраного палива згідно власних даних. | F17: Περιεκτικότητα σε υδρογόνο [%] Η περιεκτικότητα του ξύλου σε υδρογόνο είναι περίπου 6.0 - 6.2 % (% κατά βάρος ξηρής ουσίας) Πηγή: ÖNORM M 7132 Στην στήλη "Άλλο" πρέπει να εισάγετε την περιεκτικότητα σε υδρογόνο του επιλεγμένου καυσίμου, όπως καθορίζεται από τις δικές σας πηγές δεδομένων. | G17: Continut de Hidrogen [%] Continutul de hidrogen al lemnului este de aproximativ 6.0 - 6.2 % (% din greutatea SU) Sursa: ÖNORM M 7132 In coloana "Other/Altele", trebuie sa introduceti continutul de hidrogen al combustibilului de lemn selectat asa cum este specificat in sursele de date proprii. | H17: Съдържание на водород (Н) [%] Съдържанието на водород в дървесината е около 6.0 - 6.2 % (% от теглото на СВ) Източник: ÖNORM M 7132 В колоната "Други" трябва да въведете водородното съдържание на избраното гориво както е специфицирано във вашите собствени източници на данни. | I17: Obsah vodíka [%] Obsah vodíka v dreve je 6.0 - 6.2 % (% podľa váhy DM) Zdroj: ÖNORM M 7132 V stĺpci "ostatné" potrebujete zadať obsah vodíka vyznačeného paliva špecifikovaného na základe vašich vlastných dátových údajov. | J17: Vety pitoisuus [%] Puun vetypitoisuus on noin 6,0-6,2% (paino-% DM) Lähde: ÖNORM M 7132 "Muut " sarakkeeseen sinun täytyy syöttää valitun polttoaineen vetypitoisuus omista tietolähteistä. | K17: Zawartość wodoru [%] Zawartośc wodoru drewna to około 6.0 - 6.2 % (% suchej masy) Źródło: ÖNORM M 7132 W kolumnie “Inne” należy wpisać zawartość wodoru dla wybranego paliwa wedle własnych danych.
A18: E18 | B18: Higher heating value (HHV) of dry matter (DM) [MJ/kg] The higher heating value (HHV) of coniferous wood is around 20.4 MJ/kg DM. Due to a lower resin and lignin content, the higher heating value of non-coniferous wood is somewhat lower than the HHV of coniferous wood and is around 19.3 MJ/kg DM. For the calculation of the higher heating value of bark (coniferous, non-coniferous), the spreadsheet uses the same values as for coniferous wood and non-coniferous wood. However, in case of a high content of resin or other extractive compounds the higher heating value of bark can be up to 2.5 MJ/kg higher than that of the wood. Source: ÖNORM M 7132. For the conversion between MJ/kg and kWh/kg, a factor of 3.6 (1 kWh = 3.6 MJ) is used. In the "Other" column, you need to enter the higher heating value (HHV) of the selected fuel as specified in your own data sources. | C18: Brennwert (bzw. oberer Heizwert) Ho der Trockensubstanz (TS) [MJ/kg] Der Brennwert (bzw. obere Heizwert) Ho von Nadelholz beträgt ca. 20,4 MJ/kg Trockensubstanz (TS). Der Brennwert von Laubholz ist durch den geringeren Lignin- und Harzgehalt etwas niedriger als der Brennwert von Nadelholz und beträgt ca. 19,3 MJ/kg TS. Der Brennwert für Rinde (Nadelholz, Laubholz) wird in diesem Berechnungsblatt entsprechend dem Brennwert von Nadelholz bzw. Laubholz angenommen; jedoch kann der Brennwert bei hohem Gehalt an Harzen oder anderen Extraktstoffen bis zu 2,5 MJ/kg höher sein, als der des Holzes. Datenquelle: ÖNORM M 7132. Die Umrechnung zwischen MJ/kg und kWh/kg erfolgt mit dem Faktor 3,6 (1 kWh = 3,6 MJ). Im Bereich "Sonstige" müssen Sie den Brennwert (bzw. oberen Heizwert) Ho des gewünschten Brennstoffes gemäß eigener Informationsquellen eintragen. | D18: Gornja ogrjevna vrijednost (HHV) suhe tvari [MJ/kg] U stupcu "Ostalo" trebate unijeti gornju ogrjevnu vrijednost (HHV) odabranog goriva kako je navedena u vašem izvoru podataka | E18: Вища теплота згорання (ВТЗ) сухої речовини (СР) [MДж/кг] Вища теплота згорання (ВТЗ) хвойної деревини складає близько 20,4 MДж/кг СР. Внаслідок меншого вмісту смоли та лігніну вища теплота згорання нехвойної деревини трохи нижча за ВТЗ хвойної деревини й становить порядку 19,3 MДж/кг СР. Для розрахунку вищої теплоти згорання кори (хвойної, нехвойної) в електронній таблиці застосовуються ті ж самі значення, що й для хвойної та нехвойної деревини. Однак, у випадку значного вмісту смоли або інших екстрактивних речовин вища теплота згорання кори може перевищувати цей показник для деревини на величину до 2,5 MДж/кг. Джерело: ÖNORM M 7132. Для перерахунку між MДж/кг та кВт*год/кг використовується коефіцієнт 3,6 (1 кВт*год = 3,6 MДж). У стовпчику "Інше" ви маєте ввести вищу теплоту згорання (ВТЗ) вибраного палива згідно власних даних. | F18: Ανώτερη θερμογόνος δύναμη (ΑΘΔ) ξηρής ουσίας (ΞΟ) [MJ/kg] Η ανώτερη θερμογόνος δύναμη (ΑΘΔ) του ξύλου κωνοφόρων δέντρων είναι περίπου 20,4 MJ/kg ξηρής ουσίας. Λόγω της χαμηλότερης περιεκτικότητας σε ρητίνη και λιγνίνη, η ανώτερη θερμογόνος δύναμη του ξύλου των πλατύφυλλων δέντρων είναι περίπου 19,3 MJ/kg ξηρής ουσίας, κάπως χαμηλότερη από την ΑΘΔ των κωνοφόρων. Για τον υπολογισμό της ανώτερης θερμογόνου δύναμης του φλοιού (κωνοφόρων, πλατυφύλλων), το υπολογιστικό φύλλο χρησιμοποιεί τις ίδιες τιμές τόσο για την ξυλεία κωνοφόρων όσο και πλατυφύλων. Ωστόσο, σε περίπτωση υψηλής περιεκτικότητας σε ρητίνη ή άλλα εκχυλίσματα, η ανώτερη θερμογόνος δύναμη του φλοιού μπορεί να φτάσει μέχρι 2,5 MJ/kg υψηλότερα από εκείνη του ξύλου. Πηγή: ÖNORM M 7132. Για τη μετατροπή μεταξύ MJ/kg και kWh/kg, χρησιμοποιείται ο συντελεστής 3,6 (1 kWh = 3,6 MJ). Στη στήλη "Άλλο", θα πρέπει να εισάγετε την ανώτερη θερμογόνος δύναμη (ΑΘΔ) του επιλεγμένου καυσίμου, όπως καθορίζεται από τις δικές σας πηγές δεδομένων. | G18: Capacitatea calorica superioara (CCS) a lemnului substanta uscata (SU) [MJ/kg] Capacitatea calorica superioara (CCS) a lemnului de conifer este de aproximativ 20.4 MJ/kg SU. Datorita continutului scazut de rasina si lignina, capacitatea calorica superioara a lemnului de non-conifere este intr-un fel mai scazuta decat CCS a lemnului de conifere, fiind aproximativ 19.3 MJ/kg SU. Pentru calcului valorii capacitatii calorice superioare a scoartei (conifere, non-conifere), fisa de calcul utilizeaza aceleasi valori atat pentru lemnul de conifere, cat si pentru cel de non-conifere. Cu toate astea, in cazul unui continut ridicat de rasina sau alti compusi extractivi, capacitatea calorica superioara a scoartei poate sa fie cu 2.5 MJ/kg mai mare decat cea a lemnului. Sursa: ÖNORM M 7132. Pentru conversia din MJ/kg in kWh/kg, va fi folosit un factor of 3.6 (1 kWh = 3.6 MJ). In coloana "Other/Altele", trebuie sa introduceti capacitatea calorica superioara (CCS) a combustibilului asa cum este specificat in propriile date sursa. | H18: Горна топлина на изгаряне (ГТИ) на сухо вещество (СВ) [MJ/kg] Горната топлина на изгаряне (ГТИ) на иглолистната дървесина е около 20.4 MJ/kg СВ. Поради по-ниското съдържание на смола и лигнин, горната топлина на изгаряне на широколистна дървесина е малко по-ниска от ГТИ на иглолистна дървесина и е около 19.3 MJ/kg СВ. За изчисляване на горната топлина на изгаряне на кора (иглолистна, широколистна) таблицата използва същите стойности както за иглолистна и широколистна дървесина. Обаче в случай на високо съдържание на смола или други екстрахируеми компоненти горната топлина на изгаряне на кората може да достигне 2.5 MJ/kg повече от тази на дървесината. Източник: ÖNORM M 7132. За преобразуване между MJ/kg и kWh/kg, се използва фактор 3.6 (1 kWh = 3.6 MJ). В колоната "Други" трябва да въведете Горната топлина на изгаряне (ГТИ) на избраното гориво както е специфицирано във вашите собствени източници на данни | I18: Spalné teplo (HHV) sušiny (DM) [MJ/kg] Spalné teplo (HHV) ihličnatého dreva je 20.4 MJ/kg DM. Vzhľadom na nižší obsah živice a lignínu je spalné teplo neihličnatého dreva trochu nižšie ako spalné teplo ihličnatého dreva a je okolo 19.3 MJ/kg DM. Pre výpočet spalného tepla kôry (ihličnaté drevo, neihličnaté drevo), výpočtový hárok využíva rovnaké hodnoty ako pre ihličnaté tak i pre neihličnaté drevo. Avšak v prípade vysokého obsahu živice alebo iných extraktívnych zložiek, môže byť spalné teplo kôry až do 2.5 MJ/kg vyššie ako dreva. Zdroj: ÖNORM M 7132. Pre prepočet medzi MJ/kg a kWh/kg, je použitý koeficient 3.6 (1 kWh = 3.6 MJ). V stĺpci "ostatné" potrebujete zadať spalné teplo (HHV) vybraného paliva ako je špecifikované vo vašich vlastných zdrojoch údajov. | J18: Korkeampi lämpöarvo (HHV) kuiva-aineesta (DM) [MJ / kg] | K18: Ciepło spalania (C.S.) suchej masy (s.m.) [MJ/kg] Ciepło spalania (C.S.) drewna iglastego to około 20.4 MJ/kg DM. Z powodu niższych zawartości żywicy i ligniny ciepło spalania drewna liściastego to 19.3 MJ/kg s.m. i jest niższa od ciepła spalania drewna iglastego. Do obliczania górnej ciepła spalania kory (drewna iglastego i liściastego) arkusz używa tych samych wartości opałowych jak dla drewna. Jednakże, z powodu wysokiej zawartości żywicy i innych związków ekstrakcyjnych ciepło spalania kory może być do 2.5 MJ/kg wyższa niż w przypadku drewna. Źródło: ÖNORM M 7132. Do przeliczania między MJ/kg a kWh/kg został użyty przelicznik 3.6 (1 kWh = 3.6 MJ). W kolumnie “Inne” należy wpisać ciepło spalania (C.S.) wybranego paliwa wedle własnych danych
A19: E19 | B19: Higher heating value (HHV) of dry matter (DM) [kWh/kg] The higher heating value (HHV) of softwood is around 5.6 kWh/kg DM. Due to a lower resin and lignin content, the higher heating value of non-coniferous wood is somewhat lower than the HHV of coniferous wood and is around 5.4 kWh/kg DM. For the calculation of the higher heating value of bark (coniferous wood, non-coniferous wood), the spreadsheet uses the same values as for coniferous wood and non-coniferous wood. However, in case of a high content of resin or other extractive compounds the higher heating value of bark can be up to 0.7 kWh/kg higher than that of the wood. Source: ÖNORM M 7132. For the conversion between MJ/kg und kWh/kg, a factor of 3.6 (1 kWh = 3.6 MJ) is used. | C19: Brennwert (bzw. oberer Heizwert) Ho der Trockensubstanz (TS) [kWh/kg] Der Brennwert (bzw. obere Heizwert) Ho von Nadelholz beträgt ca. 5,6 kWh/kg Trockensubstanz (TS). Der Brennwert von Laubholz ist durch den geringeren Lignin- und Harzgehalt etwas niedriger als der Brennwert von Nadelholz und beträgt ca. 5,4 kWh/kg TS. Der Brennwert für Rinde (Nadelholz, Laubholz) wird in diesem Berechnungsblatt entsprechend dem Brennwert von Nadelholz bzw. Laubholz angenommen; jedoch kann der Brennwert von Rinde bei hohem Gehalt an Harzen oder anderen Extraktstoffen bis zu 0,7 kWh/kg höher sein, als der des Holzes. Datenquelle: ÖNORM M 7132. Die Umrechnung zwischen MJ/kg und kWh/kg erfolgt mit dem Faktor 3,6 (1 kWh = 3,6 MJ). | D19: Gornja ogrjevna vrijednost (HHV) suhe tvari [kWh/kg] | E19: Вища теплота згорання (ВТЗ) сухої речовини (СР) [кВт*год/кг] Вища теплота згорання (ВТЗ) м'якої деревини становить порядку 5,6 кВт*год/кг СР. Внаслідок меншого вмісту смоли та лігніну вища теплота згорання нехвойної деревини трохи нижча за ВТЗ хвойної деревини й становить близько 5,4 кВт*год/кг СР. Для розрахунку вищої теплоти згорання кори (хвойної, нехвойної) в електронній таблиці застосовуються ті ж самі значення, що й для хвойної та нехвойної деревини. Однак, у випадку значного вмісту смоли або інших екстрактивних речовин вища теплота згорання кори може перевищувати цей показник для деревини на величину до 0,7 кВт*год/кг. Джерело: ÖNORM M 7132. Для перерахунку між MДж/кг та кВт*год/кг використовується коефіцієнт 3,6 (1 кВт*год = 3,6 МДж). | F19: Ανώτερη θερμογόνος δύναμη (ΑΘΔ) ξηρής ουσίας (ΞΟ) [MJ/kg] Η ανώτερη θερμογόνος δύναμη (ΑΘΔ) του μαλακού ξύλου είναι περίπου 5.6 kWh/kg ξηρής ουσίας. Λόγω της χαμηλότερης περιεκτικότητας σε ρητίνη και λιγνίνη, η ανώτερη θερμογόνος δύναμη του ξύλου των πλατύφυλλων δέντρων είναι κάπως χαμηλότερη από την ΑΘΔ των κωνοφόρων και είναι περίπου 5.4 kWh/kg ξηρής ουσίας. Για τον υπολογισμό της ανώτερης θερμογόνου δύναμης του φλοιού (κωνοφόρων, πλατυφύλλων), το υπολογιστικό φύλλο χρησιμοποιεί τις ίδιες τιμές τόσο για την ξυλεία κωνοφόρων όσο και πλατυφύλλων. Ωστόσο, σε περίπτωση υψηλής περιεκτικότητας σε ρητίνη ή άλλα εκχυλίσματα η ανώτερη θερμογόνος δύναμη του φλοιού μπορεί να φτάσει μέχρι 0,7 kWh/kg υψηλότερα από εκείνη του ξύλου. Πηγή: ÖNORM M 7132. Για τη μετατροπή μεταξύ MJ/kg και kWh/kg, χρησιμοποιείται ο συντελεστής 3,6 (1 kWh = 3,6 MJ). | G19: Capacitatea calorica superioara (CCS) a lemnului substanta uscata (SU) [MJ/kg] Capacitatea calorica superioara (CCS) a lemnului usor este de aproximativ 5.6 kWh/kg SU. Datorita continutului scazut de rasina si lignina, capacitatea calorica superioara a lemnului de non-conifere este intr-un fel mai scazuta decat CCS a lemnului de conifere, fiind aproximativ 5.4 kWh/kg SU. Pentru calculul valorii capacitatii calorice superioare a scoartei (conifere, non-conifere), fisa de calcul utilizeaza aceleasi valori atat pentru lemnul de conifere, cat si pentru cel de non-conifere. Cu toate astea, in cazul unui continut ridicat de rasina sau alti compusi extractivi, capacitatea calorica superioara a scoartei poate sa fie cu 0.7 kWh/kg mai mare decat cea a lemnului. Sursa: ÖNORM M 7132. Pentru conversia din MJ/kg in kWh/kg va fi folosit un factor of 3.6 (1 kWh = 3.6 MJ). | H19: Горна топлина на изгаряне (ГТИ) на сухо вещество (СВ) [kWh/kg] Горната топлина на изгаряне (ГТИ) на мека дървесина е около 5.6 кВтч/kg СВ. Поради по-ниското съдържание на смола и лигнин, горната топлина на изгаряне на широколистна дървесина е малко по-ниска от ГТИ на иглолистна дървесина и е около 5.4 кВтч/kg СВ. За изчисляване на горната топлина на изгаряне на кора (иглолистна, широколистна) таблицата използва същите стойности както за иглолистна и широколистна дървесина. Обаче в случай на високо съдържание на смола или други екстрахируеми компоненти горната топлина на изгаряне на кората може да достигне 2.5 MJ/kg повече от тази на дървесинатаJ/kg СВ. Поради по-ниското съдържание на смола и лигнин, горната топлина на изгаряне на кора може да е до 0.7 кВтч/кг по-висока от тази на дървесината. Източник: ÖNORM M 7132. За преобразуване между MJ/kg и kWh/kg, се използва фактор 3.6 (1 kWh = 3.6 MJ). | I19: Spalné teplo (HHV) sušiny (DM) [kWh/kg] Spalné teplo (HHV)mäkkého dreva je okolo 5.6 kWh/kg DM. Vzhľadom na nižší obsah živice a lignínu je spalné teplo neihličnatého dreva trochu nižšie ako spalné teplo ihličnatého dreva a je okolo 5.4 kWh/kg DM. Pre výpočet spalného tepla kôry (ihličnaté drevo, neihličnaté drevo), výpočtový hárok využíva rovnaké hodnoty ako pre ihličnaté tak i pre neihličnaté drevo. Avšak v prípade vysokého obsahu živice alebo iných extraktívnych zložiek, môže byť spalné teplo kôry až do 0.7 kWh/kg vyššie ako u dreva. Zdroj: ÖNORM M 7132. Pre prepočet medzi MJ/kg a kWh/kg, je použitý koeficient 3.6 (1 kWh = 3.6 MJ). | J19: Korkeampi lämpöarvo (HHV) kuiva-aineesta (DM) [kWh/kg] | K19: Ciepło spalania (C.S.) suchej masy (s.m.) [kWh/kg] Ciepło spalania (C.S.) drewna iglastego to około 5.6 kWh/kg s.m.. Z powodu niższej zawartości żywicy i ligniny ciepło spalania drewna liściastego to 5.4 kWh/kg s.m. i jest niższa od ciepła spalania drewna iglastego. Do obliczania ciepła spalania kory (drewna iglastego i liściastego), arkusz używa tych samych wartości opałowych jak dla drewna. Jednakże, z powodu wysokiej zawartości żywicy i innych związków ekstrakcyjnych ciepło spalania kory może być do 0.7 kWh/kg wyższa niż w przypadku drewna. Źródło: ÖNORM M 7132. Do przeliczania między MJ/kg und kWh/kg użyty został przelicznik 3.6 (1 kWh = 3.6 MJ).
A20: E20 | B20: Lower heating value (LHV) of dry matter (DM) [MJ/kg] The lower heating value (LHV) of a fuel can be derived from the higher heating value (HHV) via an approximation depending on moisture and hydrogen content. Details of the conversion from HHV to LHV are explained in the manual. According to the Austrian standard ÖNORM, the lower heating value of coniferous wood is 19.0 MJ/kg DM. Due to a lower resin and lignin content, the lower heating value of non-coniferous wood is somewhat lower than the LHV of softwood and is 18.0 MJ/kg DM according to ÖNORM. For the calculation of the lower heating value of bark (coniferous wood, non-coniferous wood), the spreadsheet uses the same values as for coniferous wood and non-coniferous wood. However, in case of a high content of resin or other extractive compounds the lower heating value of bark can be up to 2.5 MJ/kg higher than that of the wood. Source: ÖNORM M 7132. For the conversion between MJ/kg and kWh/kg, a factor of 3.6 (1 kWh = 3.6 MJ) is used. | C20: Unterer Heizwert Hu der Trockensubstanz (TS) [MJ/kg] Der untere Heizwert Hu eines Brennstoffes läßt sich in Abhängigkeit von Wassergehalt und Wasserstoffgehalt über eine Näherungsgleichung aus dem Brennwert (bzw. oberen Heizwert) Ho errechnen. Die Details der Umrechnung zwischen Ho und Hu sind in der Bedienungsanleitung beschrieben. Der Heizwert von Nadelholz beträgt laut ÖNORM 19,0 MJ/kg Trockensubstanz (TS). Der Heizwert von Laubholz ist durch den geringeren Lignin- und Harzgehalt etwas niedriger als der Heizwert von Nadelholz und beträgt laut ÖNORM 18,0 MJ/kg TS. Der Heizwert für Rinde (Nadelholz, Laubholz) wird in diesem Berechnungsblatt entsprechend dem Heizwert von Nadelholz bzw. Laubholz angenommen; jedoch kann der Heizwert von Rinde bei hohem Gehalt an Harzen oder anderen Extraktstoffen bis zu 2,5 MJ/kg höher sein, als der des Holzes. Datenquelle: ÖNORM M 7132. Die Umrechnung zwischen MJ/kg und kWh/kg erfolgt mit dem Faktor 3,6 (1 kWh = 3,6 MJ). | D20: Donja ogrjevna vrijednost (LHV) suhe tvari [MJ/kg] | E20: Нижча теплота згорання (НТЗ) сухої речовини (СР) [MДж/кг] Нижча теплота згорання (НТЗ) палива може бути отримана з вищої теплоти згорання (ВТЗ) через приблизне співвідношення в залежності від вологості та вмісту водню. Подробиці перерахунку ВТЗ у НТЗ представлено в посібнику. У відповідності до австрійського стандарту ÖNORM, нижча теплота згорання хвойної деревини становить 19,0 MДж/кг СР. Внаслідок меньшого вмісту смоли та лігніну, нижча теплота згорання нехвойної деревини трохи нижча за НТЗ м'якої деревини і складає 18,0 MДж/кг СР відповідно до ÖNORM. Для розрахунку нижчої теплоти згорання кори (хвойна деревина, нехвойна деревина) в електронній таблиці застосовуються ті ж самі величини, що й для хвойної та нехвойної деревини. Однак, у випадку значного вмісту смоли або інших екстрактивних речовин нижча теплота згорання кори може перевищувати цей показник для деревини на величину до 2,5 МДж/кг. Джерело: ÖNORM M 7132. Для перерахунку між MДж/кг та кВт*год/кг використовується коефіцієнт 3,6 (1 кВт*год = 3,6 MДж). | F20: Κατώτερη θερμογόνος δύναμη (ΚΘΔ) ξηρής ουσίας (ΞΟ) [MJ/kg] Η κατώτερη θερμογόνος δύναμη (ΚΘΔ) μπορεί να εξαχθεί από την ανώτερη θερμογόνο δύναμη (ΑΘΔ) μέσω μιας προσέγγισης, που εξαρτάται από την περιεκτικότητα σε υγρασία και υδρογόνο. Οι λεπτομέρειες της μετατροπής από την ΑΘΔ στην ΚΘΔ εξηγείται στο εγχειρίδιο. Σύμφωνα με το αυστριακό πρότυπο ÖNORM, η κατώτερη θερμογόνος δύναμη του ξύλου κωνοφόρων δέντρων είναι 19,0 MJ/kg ξηρής ουσίας. Λόγω της χαμηλότερης περιεκτικότητας σε ρητίνη και λιγνίνη, η κατώτερη θερμογόνο δύναμη του ξύλου των πλατύφυλλων δέντρων είναι κάπως χαμηλότερη από την κατώτερη θερμογόνο δύναμη του μαλακού ξύλου και είναι 18,0 MJ/kg ξηρής ουσίας, σύμφωνα με το ÖNORM. Για τον υπολογισμό της κατώτερης θερμογόνου δύναμης του φλοιού (κωνοφόρων, πλατυφύλλων), το υπολογιστικό φύλλο χρησιμοποιεί τις ίδιες τιμές τόσο για την ξυλεία κωνοφόρων όσο και πλατυφύλλων. Ωστόσο, σε περίπτωση υψηλής περιεκτικότητας σε ρητίνη ή άλλα εκχυλίσματα, η κατώτερη θερμογόνος δύναμη του φλοιού μπορεί να φτάσει μέχρι 2,5 MJ/kg υψηλότερα από εκείνη του ξύλου. Πηγή: ÖNORM M 7132. Για τη μετατροπή μεταξύ MJ/kg και kWh/kg, χρησιμοποιείται ο συντελεστής 3,6 (1 kWh = 3,6 MJ). | G20: Capacitatea calorica inferioara (CCI) a lemnului substanta uscata (SU) [MJ/kg] Capacitatea calorica inferioara (CCI) a unui combustibil poate sa fie calculata din capacitatea calorica superioara (CCS) in functie de continutul de apa si hidrogen. Detalii privind conversia din CCS in CCI este explicata in manual. In acord cu standardul austriac ÖNORM, valoarea capacitatii calorice inferioare a lemnului de conifere este 19.0 MJ/kg SU. Datorita continutului scazut de rasina si lignina, capacitatea calorica inferioara a lemnului de non-conifere este intr-un fel mai scazuta decat CCI a lemnului de conifere, fiind aproximativ de 18.0 MJ/kg SU in acord cu ÖNORM. Pentru calculul valorii capacitatii calorice inferioare a scoartei (conifere, non-conifere), fisa de calcul utilizeaza aceleasi valori atat pentru lemnul de conifere, cat si pentru cel de non-conifere. Cu toate astea, in cazul unui continut ridicat de rasina sau alti compusi extractivi, capacitatea calorica inferioara a scoartei poate sa fie cu 2.5 MJ/kg mai mare decat cea a lemnului. Sursa: ÖNORM M 7132. Pentru conversia din MJ/kg in kWh/kg va fi folosit un factor of 3.6 (1 kWh = 3.6 MJ). | H20: Долна топлина на изгаряне (ДТИ) на сухо вещество (СВ) [МДж/kg] Долната топлина на изгаряне (ДТИ) на на гориво може да бъде изведена от горната топлина на изгаряне (ГТИ) чрез едно приближение, зависещо от съдържанието на влага и водород. Подробностите на преобразуването от ГТИ в ДТИ са обяснени в Ръководството. Съгласно австрийския стандарт ÖNORM, долната топлина на изгаряне на иглолистна дървесиина е около 19.0 МДж/kg СВ. Поради по-ниското съдържание на смола и лигнин, долната топлина на изгаряне на широколистна дървесина е малко по-ниска от ДТИ на иглолистна дървесина и е около 18.0 МДж/kg СВ, съгласно ÖNORM. За пресмятанията на долната топлина на изгаряне на кора (иглолистна дървесина, широколистна дървесина) таблицата използва същите стойности както за иглолистна и широколистна дървесина. Обаче в случай на високо съдържание на смола или други екстрахируеми компоненти долната топлина на изгаряне на кората може да достигне 2.5 MJ/kg повече от тази на дървесината Източник: ÖNORM M 7132. За преобразуване между MJ/kg и kWh/kg, се използва фактор 3.6 (1 kWh = 3.6 MJ). | I20: Výhrevnosť (LHV) sušiny (DM) [MJ/kg] Výhrevnosť (LHV) paliva môže byť odvodená od spalného tepla (HHV) ako predpokladaná závislosť na obsahu vlhkosti a vodíka. Detaily prevodu HHV na LHV sú popísané v manuály. Vzhľadom na Rakúske štandardy ÖNORM, výhrevnosť ihličnatého dreva je 19.0 MJ/kg DM. Vzhľadom na nižší obsah živice a lignínu, výhrevnosť neihličnatého dreva môže byť nižšia ako výhrevnosť mäkkého dreva a je 18.0 MJ/kg DM vzhľadom na ÖNORM. Pre výpočet výhrevnosti kôry (ihličnaté drevo, neihličnaté drevo), výpočtový hárok využíva rovnaké hodnoty ako pre ihličnaté tak i pre neihličnaté drevo. Avšak v prípade vysokého obsahu živice alebo iných extraktívnych zložiek, môže byť výhrevnosť kôry až do 2.5 MJ/kg vyššia ako u dreva. Zdroj: ÖNORM M 7132. Pre prepočet medzi MJ/kg a kWh/kg, je použitý koeficient 3.6 (1 kWh = 3.6 MJ). | J20: Alempi lämpöarvo (LHV) kuiva-aineesta (DM) [MJ / kg] | K20: wartość opałowa (LHV) suchej masy (s.m.) [MJ/kg] Dolną wartość opałową (LHV) paliwa można uzyskać z górnej wartości opałowej (HHV) przez przybliżenie na podstawie zawartości wilgoci i zawartości wodoru. Szczegóły przeliczenia z HHV na LHV wytłumaczone są w instrukcji. Wedle austriackiego standardu ÖNORM, wartość opałowa drewna iglastego to 19.0 MJ/kg s.m.. Z powodu niższej zawartośći żywicy i ligniny, wartość opałowa drewna liściastego jest niższa niż LHV drewna iglastego i wynosi 18.0 MJ/kg s.m. według ÖNORM. Do obliczania górnej wartości opałowej kory (drewna iglastego i liściastego) arkusz używa tych samych wartości opałowych jak dla drewna. Jednakże, z powodu wysokiej zawartości żywicy i innych związków ekstrakcyjnych wartość opałowa kory może być do 2.5 MJ/kg wyższa niż w przypadku drewna. Źródło: ÖNORM M 7132. Do przeliczania między MJ/kg a kWh/kg został użyty przelicznik 3.6 (1 kWh = 3.6 MJ).
A21: E21 | B21: Lower heating value (LHV) of dry matter (DM) [kWh/kg] The lower heating value (LHV) of a fuel can be derived from the higher heating value (HHV) via an approximation depending on moisture and hydrogen content. Details of the conversion from HHV to LHV are explained in the manual. According to the Austrian standard ÖNORM, the lower heating value of coniferous wood is around 5.3 kWh/kg DM. Due to a lower resin and lignin content, the lower heating value of non-coniferous wood is somewhat lower than the LHV of coniferous wood and is around 5.0 kWh/kg DM. For the calculation of the lower heating value of bark (coniferous wood, non-coniferous wood), the spreadsheet uses the same value as for coniferous wood and non-coniferous wood. However, in case of a high content of resin or other extractive compounds the lower heating value of bark can be up to 0.7 kWh/kg higher than that of the wood. Source: ÖNORM M 7132. For the conversion between MJ/kg and kWh/kg, a factor of 3.6 (1 kWh = 3.6 MJ) is used. | C21: Unterer Heizwert Hu der Trockensubstanz (TS) [kWh/kg] Der untere Heizwert Hu eines Brennstoffes läßt sich in Abhängigkeit von Wassergehalt und Wasserstoffgehalt über eine Näherungsgleichung aus dem Brennwert (bzw. oberen Heizwert) Ho errechnen. Die Details der Umrechnung zwischen Ho und Hu sind in der Bedienungsanleitung beschrieben. Der Heizwert von Nadelholz beträgt laut ÖNORM ca. 5,3 kWh/kg Trockensubstanz (TS). Der Heizwert von Laubholz ist durch den geringeren Lignin- und Harzgehalt etwas niedriger als der Heizwert von Nadelholz und beträgt ca. 5,0 kWh/kg TS. Der Heizwert für Rinde (Nadelholz, Laubholz) wird in diesem Berechnungsblatt entsprechend dem Heizwert von Nadelholz bzw. Laubholz angenommen; jedoch kann der Heizwert bei hohem Gehalt an Harzen oder anderen Extraktstoffen bis zu 0,7 kWh/kg höher sein, als der des Holzes. Datenquelle: ÖNORM M 7132. Die Umrechnung zwischen MJ/kg und kWh/kg erfolgt mit dem Faktor 3,6 (1 kWh = 3,6 MJ). | D21: Donja ogrjevna vrijednost (LHV) suhe tvari [kWh/kg] | E21: Нижча теплота згорання (НТЗ) сухої речовини (СР) [кВт*год/кг] Нижча теплота згорання (НТЗ) палива може бути отримана з вищої теплоти згорання (ВТЗ) через приблизне співвідношення в залежності від вологості та вмісту водню. Подробиці перерахунку ВТЗ у НТЗ представлено в посібнику. У відповідності до австрійського стандарту ÖNORM нижча теплота згорання хвойної деревини становить порядку 5,3 кВт*год/кг СР. Внаслідок меньшого вмісту смоли та лігніну нижча теплота згорання нехвойної деревини трохи нижча за НТЗ хвойної деревини і складає близько 5,0 кВт*год/кг СР. Для розрахунку нижчої теплоти згорання кори (хвойна деревина, нехвойна деревина) в електронній таблиці застосовуються ті ж самі величини, що й для хвойної та нехвойної деревини. Однак, у випадку значного вмісту смоли або інших екстрактивних речовин нижча теплота згорання кори може перевищувати цей показник для деревини на величину до 0,7 кВт*год/кг. Джерело: ÖNORM M 7132. Для перерахунку між MДж/кг та кВт*год/кг використовується коефіцієнт 3,6 (1 кВт*год = 3,6 MДж). | F21: Κατώτερη θερμογόνος δύναμη (ΚΘΔ) ξηρής ουσίας (ΞΟ) [MJ/kg] Η κατώτερη θερμογόνος δύναμη (ΚΘΔ) ενός καυσίμου μπορεί να εξαχθεί από την ανώτερη θερμογόνο δύναμη (ΑΘΔ) μέσω μιας προσέγγισης που εξαρτάται από την περιεκτικότητα σε υγρασία και υδρογόνο. Οι λεπτομέρειες της μετατροπής από την ΑΘΔ στην ΚΘΔ εξηγείται στο εγχειρίδιο. Σύμφωνα με το αυστριακό πρότυπο ÖNORM, η κατώτερη θερμογόνος δύναμη του ξύλου κωνοφόρων δέντρων είναι 5,3 kWh/kg ξηρής ουσίας. Λόγω της χαμηλότερης περιεκτικότητας σε ρητίνη και λιγνίνη, η κατώτερη θερμογόνος δύναμη του ξύλου των πλατύφυλλων δέντρων είναι κάπως χαμηλότερη από την κατώτερη θερμογόνο δύναμη του ξύλου κωνοφόρων και είναι περίπου 5,0 kWh/kg ξηρής ουσίας. Για τον υπολογισμό της κατώτερης θερμογόνου δύναμης του φλοιού (κωνοφόρων, πλατυφύλλων), το υπολογιστικό φύλλο χρησιμοποιεί τις ίδιες τιμές τόσο για την ξυλεία κωνοφόρων όσο και πλατυφύλλων. Ωστόσο, σε περίπτωση υψηλής περιεκτικότητας σε ρητίνη ή άλλα εκχυλίσματα η κατώτερη θερμογόνος δύναμη του φλοιού μπορεί να φτάσει μέχρι 0,7 kWh/kg υψηλότερα από εκείνη του ξύλου. Πηγή: ÖNORM M 7132. Για τη μετατροπή μεταξύ MJ/kg και kWh/kg, χρησιμοποιείται ο συντελεστής 3,6 (1 kWh = 3,6 MJ). | G21: Capacitatea calorica inferioara (CCI) a lemnului substanta uscata (SU) [kWh/kg] Capacitatea calorica inferioara (CCI) a unui combustibil poate sa fie calculata din capacitatea calorica superioara (CCS) in functie de continutul de apa si hidrogen. Detalii privind conversia din CCS in CCI este explicata in manual. In acord cu standardul Austriac ÖNORM, valoarea capacitatii calorice inferioare a lemnului de conifere este 5.3 kWh/kg SU. Datorita continutului scazut de rasina si lignina, capacitatea calorica inferioara a lemnului de non-conifere este intr-un fel mai scazuta decat CCI a lemnului de conifere, fiind aproximativ 5.0 kWh/kg SU. Pentru calculul valorii capacitatii calorice inferioare a scoartei (conifere, non-conifere), fisa de calcul utilizeaza aceleasi valori atat pentru lemnul de conifere, cat si pentru cel de non-conifere. Cu toate astea, in cazul unui continut ridicat de rasina sau alti compusi extractivi, capacitatea calorica inferioara a scoartei poate sa fie cu 0.7 kWh/kg mai mare decat cea a lemnului. Sursa: ÖNORM M 7132. Pentru conversia din MJ/kg in kWh/kg va fi folosit un factor of 3.6 (1 kWh = 3.6 MJ). | H21: Долна топлина на изгаряне (ДТИ) на сухо вещество (СВ) [кВтч/kg] Долната топлина на изгаряне (ДТИ) на на гориво може да бъде изведена от горната топлина на изгаряне (ГТИ) чрез едно приближение, зависещо от съдържанието на влага и водород. Подробностите на преобразуването от ГТИ в ДТИ са обяснени в Ръководството. Съгласно австрийския стандарт ÖNORM, долната топлина на изгаряне на иглолистна дървесиина е около 5.3 kWh/kg СВ. Поради по-ниското съдържание на смола и лигнин, долната топлина на изгаряне на широколистна дървесина е малко по-ниска от ДТИ на иглолистна дървесина и е около 5.0 kWh/kg СВ. За пресмятането на долната топлина на изгаряне на кора (иглолистна дървесина, широколистна дървесина) таблицата използва същите стойности както за иглолистна и широколистна дървесина. Обаче в случай на високо съдържание на смола или други екстрахируеми компоненти горната топлина на изгаряне на кората може да достигне 0.7 кВтч/кг повече от тази на дървесината Източник: ÖNORM M 7132. За преобразуване между MJ/kg и kWh/kg, се използва фактор 3.6 (1 kWh = 3.6 MJ). | I21: Výhrevnosť (LHV) sušiny (DM) [kWh/kg] Výhrevnosť (LHV) paliva môže byť odvodená od spalného tepla (HHV) ako predpokladaná závislosť na obsahu vlhkosti a vodíka. Detaily prevodu HHV na LHV sú popísané v manuály. Vzhľadom na Rakúske štandardy ÖNORM, výhrevnosť ihličnatého dreva je 5.3 kWh/kg DM. Vzhľadom na nižší obsah živice a lignínu, výhrevnosť neihličnatého dreva môže byť nižšia ako výhrevnosť ihličnatého dreva a je okolo 5 kWh/kg DM. Pre výpočet výhrevnosti kôry (ihličnaté drevo, neihličnaté drevo), výpočtový hárok využíva rovnaké hodnoty ako pre ihličnaté tak i pre neihličnaté drevo. Avšak v prípade vysokého obsahu živice alebo iných extraktívnych zložiek, môže byť výhrevnosť kôry až do 0.7 kWh/kg vyššia ako u dreva. Zdroj: ÖNORM M 7132. Pre prepočet medzi MJ/kg a kWh/kg, je použitý koeficient 3.6 (1 kWh = 3.6 MJ). | J21: Alempi lämpöarvo (LHV) kuiva-aineesta (DM) [kWh / kg] | K21: Wartość opałowa (LHV) suchej masy (s.m.) [kWh/kg] Wartość opałową (LHV) paliwa można uzyskać z ciepła spalania (C.S.) przez przybliżenie na podstawie zawartośc wilgoci i zawartośći wodoru. Szegóły przeliczenia z C.S. na W.O. wytłumaczono w instrukcji. Zgodnie z austriackim standardem ÖNORM, wartość opałowa drewna iglastego to 5.3 kWh/kg s.m. Z powodu niższej zawartości żywicy i ligniny, wartość opałowa drewna liściastego jest niższa i wynosi 5.0 kWh/kg s.m. Do obliczania wartości opałowej kory (drewna iglastego i liściastego), arkusz używa tch samych wartości opałowych jak dla drewna. Jednakże, z powodu wysokiej zawartości żywicy i innych związków ekstrakcyjnych wartość opałowa kory może być do 0.7 kWh/kg wyższa niż w przypadku drewna. Źródło: ÖNORM M 7132. Do przeliczania między MJ/kg und kWh/kg użyty został przelicznik 3.6 (1 kWh = 3.6 MJ).
A22: E22 | B22: Lower heating value (LHV) of fresh substance (FS) at x % H2O [MJ/kg] The lower heating value (LHV) of wood - per weight unit - mainly depends on the moisture content: A 5 % reduction of the moisture content results in an increase of the energy content by roughly 1 MJ/kg. Freshly felled wood with a moisture content of roughly 55 % has an energy content of around 7 MJ/kg; the moisture content of split firewood can be reduced to around 20 % if it is seasoned for 2 to 3 years, doubling its energy content to around 14 MJ/kg. | C22: Unterer Heizwert Hu der Frischsubstanz (FS) bei x % H2O [MJ/kg] Der untere Heizwert Hu von Holz ist - auf das Gewicht bezogen - vor allem vom Wassergehalt abhängig: eine Senkung des Wassergehaltes um 5 % bewirkt eine Erhöhung des Energieinhaltes um ca. 1 MJ/kg. Waldfrisches Holz hat zum Zeitpunkt der Schlägerung bei einem Wassergehalt von ca. 55 % einen Energieinhalt von ca. 7 MJ/kg, bei zwei- bis dreijährig gelagertem Scheitholz kann der Wassergehalt auf ca. 20 % gesenkt und der Energieinhalt auf ca. 14 MJ/kg verdoppelt werden. | D22: Donja ogrjevna vrijednost (LHV) mase svježeg drva kod x % H2O [MJ/kg] | E22: Нижча теплота згорання (НТЗ) свіжої речовини (СВР) при x % H2O [MДж/кг] Нижча теплота згорання (НТЗ) деревини - на одиницю маси - головним чином залежить від вмісту вологи: зменшення вологості на 5 % призводить до збільшення енерговмісту приблизно на 1 MДж/кг. Свіжозрубана деревина вологістю порядку 55 % має енерговміст близько 7 MДж/кг; вологість колотих дров може бути зменшена до порядку 20 %, якщо вони зберігаються протягом 2-3 років, при цьому їх енерговміст подвоюється й складає близько 14 MДж/кг. | F22: Κατώτερη θερμογόνος δύναμη (ΚΘΔ) νωπής ουσίας (ΝΟ) με x% Η2Ο [MJ/kg] Η κατώτερη θερμογόνος δύναμη (ΚΘΔ) του ξύλου - ανά μονάδα βάρους - εξαρτάται κυρίως από την περιεχομένη υγρασία: 5% μείωση της περιεχομένης υγρασίας οδηγεί σε αύξηση του ενεργειακού περιεχομένου κατά 1 MJ/kg περίπου. Το νωπό ξύλο με περιεχόμενη υγρασία 55% περίπου έχει ενεργειακό περιεχόμενο περίπου 7 MJ/kg. Η περιεχόμενη υγρασία του σκισμένου καυσόξυλου μπορεί να μειωθεί κατά περίπου 20% αν ξηρανθεί φυσικά για 2-3 χρόνια, διπλασιάζοντας το ενεργειακό του περιεχόμενο σε περίπου 14 MJ/kg. | G22: Capacitatea calorica inferioara (CCI) a materiei brute proaspate(MB) la x% H2O [MJ/kg] Capacitatea calorica inferioara (CCI) a lemnului - pe unitate de greutate - in general depinde de continutul de apa. O reducere de 5 % a umiditatii (continut de apa) determina o crestere a energiei continute cu aproximativ 1MJ/kg. Lemnul proaspat doborat cu o umiditate de aproximativ 55 % are o valoarea energetica de 7 MJ/kg; umiditatea lemnului crapat de foc poate sa fie redusa cu 20% daca este conservat in aer liber 2-3 ani, dublandu-si valoarea energiei pana la 14 MJ/kg. | H22: Долна топлина на изгаряне (ДТИ) на прясно вещество (ПВ) при х % Н2О [МДж/kg] Долната топлина на изгаряне (ДТИ) на дървесина за единица тегло основно зависи от влагосъдържанието: 5% -но намаляване на влагосъдържанието води до увеличаване на енергийното съдържание грубо с 1 МДж/kg. Прясно отсечени дървета с влагосъдържание грубо 55% има енергийно съдържание от около 7 МДж/kg; влагосъдържанието на нарязани дърва за огрев може да намалее до около 20%, ако е престояло 2 до 3 години, удвоявайки енергийното си съдържание до около 14 МДж/kg. | I22: Výhrevnosť (LHV) čerstvej zložky (FS) v x % H2O [MJ/kg] Výhrevnosť (LHV) dreva - na jednotku hmotnosti - závisí hlavne od obsahu vlhkosti: 5 % výsledkom redukcie obsahu vlhkosti je zvýšenie obsahu energie zhruba o 1MJ/kg. Čerstvo vyrúbané drevo s obsahom vlhkosti zhruba 55% má obsah energie okolo 7 MJ/kg; obsah vlhkosti narezaného palivového dreva sa môže zredukovať o cca. 20% ak je sušené 2 až 3 roky a zdvojnásobí sa tým energetický obsah na cca. 14MJ/kg. | J22: Alempi lämpöarvo (LHV) tuoreaineesta (FS), x% H2O [MJ / kg] | K22: Wartość opałowa (LHV) świeżej masy (ś.m.) przy x % H2O [MJ/kg] Wartość opałowa (LHV) drewna - na jednostkę masy - zależy od zawartości wilgoci: 5 % redukcja zawartości wilgoci powoduje zwiększenie zwawrtości energii o około 1 MJ/kg. Świeżo ścięte drewno z 55 % zawartością wilgoci zawiera około 7 MJ/kg energii; zawartość wilgoci drewna opałowego może zostać zmniejszona do około 20 % jeżeli jest sezonowane przez od 2 do 3 lat, podwajając zawartość energii do około 14 MJ/kg.
A23: E23 | B23: Lower heating value (LHV) of fresh substance (FS) at x % H2O [kWh/kg] The lower heating value (LHV) of wood - per weight unit - mainly depends on the moisture content: A 5 % reduction of the moisture content results in an increase of the energy content by roughly 0.3 kWh/kg. Freshly felled wood with a moisture content of roughly 55 % has an energy content of around 2 kWh/kg; the moisture content of split firewood can be reduced to around 20 % if it is seasoned for 2 to 3 years, doubling its energy content to around 4 kWh/kg. | C23: Unterer Heizwert Hu der Frischsubstanz (FS) bei x % H2O [kWh/kg] Der untere Heizwert Hu von Holz ist - auf das Gewicht bezogen - vor allem vom Wassergehalt abhängig: eine Senkung des Wassergehaltes um 5 % bewirkt eine Erhöhung des Energieinhaltes um ca. 0,3 kWh/kg. Waldfrisches Holz hat zum Zeitpunkt der Schlägerung bei einem Wassergehalt von ca. 55 % einen Energieinhalt von ca. 2 kWh/kg, bei zwei- bis dreijährig gelagertem Scheitholz kann der Wassergehalt auf ca. 20 % gesenkt und der Energieinhalt auf ca. 4 kWh/kg verdoppelt werden. | D23: Donja ogrjevna vrijednost (LHV) svježe drvne tvari kod x % H2O [kWh/kg] | E23: Нижча теплота згорання (НТЗ) свіжої речовини (СВР) при x % H2O [кВт*год/кг] Нижча теплота згорання (НТЗ) деревини - на одиницю маси - головним чином залежить від вмісту вологи: зменшення вологості на 5 % призводить до збільшення енерговмісту приблизно на 0,3 кВт*год/кг. Свіжозрубана деревина вологістю порядку 55 % має енерговміст близько 2 кВт*год/кг; вологість колотих дров може бути зменшена до порядку 20 %, якщо вони зберігаються протягом 2-3 років, при цьому їх енерговміст подвоюється й складає близько 4 кВт*год/кг. | F23: Κατώτερη θερμογόνος δύναμη (ΚΘΔ) νωπής ουσίας (ΝΟ) με x% Η2Ο [kWh/kg] Η κατώτερη θερμογόνος δύναμη (ΚΘΔ) του ξύλου - ανά μονάδα βάρους - εξαρτάται κυρίως από την περιεχομένη υγρασία: 5% μείωση της περιεχομένης υγρασίας οδηγεί σε αύξηση του ενεργειακού περιεχομένου κατά 0,3 kWh/kg περίπου. Το νωπό ξύλο με περιεχόμενη υγρασία 55% περίπου έχει ενεργειακό περιεχόμενο περίπου 2 kWh/kg. Η περιεχόμενη υγρασία του σκισμένου καυσόξυλου μπορεί να μειωθεί κατά περίπου 20% αν ξηρανθεί φυσικά για 2-3 χρόνια, διπλασιάζοντας το ενεργειακό του περιεχόμενο σε περίπου 4 kWh/kg. | G23: Capacitatea calorica inferioara (CCI) a materiei brute proaspete (MB) la x% H2O [MJ/kg] Capacitatea calorica inferioara (CCI) a lemnului - pe unitate de greutate - in general depinde de continutul de apa. O reducere de 5 % a umiditatii (continut de apa) determina o crestere a energiei continute cu aproximativ 0.3 kWh/kg. Lemnul proaspat doborat cu o umiditate de aproximativ 55 % are o valoarea energetica de 2 kWh/kg; umiditatea lemnului crapat de foc poate sa fie redusa cu 20% daca este conservat in aer 2-3 ani dublandu-si valoarea energiei pana la 4 kWh/kg. | H23: Долна топлина на изгаряне (ДТИ) на прясно вещество (ПВ) при х % Н2О [kWh/kg] Долната топлина на изгаряне (ДТИ) на дървесина за единица тегло основно зависи от влагосъдържанието: 5% -но намаляване на влагосъдържанието води до увеличаване на енергийното съдържание грубо с 0.3 kWh/kg. Прясно отсечени дървета с влагосъдържание грубо 55% има енергийно съдържание от около 2 kWh/kg; влагосъдържанието на нарязани дърва за огрев може да намалее до около 20%, ако е престояло 2 до 3 години, удвоявайки енергийното си съдържание до около 4kWh/kg. | I23: Výhrevnosť (LHV) čerstvej zložky (FS) v x % H2O [kWh/kg] Výhrevnosť (LHV) dreva - na jednotku hmotnosti - závisí hlavne od obsahu vlhkosti: 5 % výsledkom redukcie obsahu vlhkosti je zvýšenie obsahu energie zhruba o 1MJ/kg. Čerstvo vyrúbané drevo s obsahom vlhkosti zhruba 55% má obsah energie okolo 2 kWh/kg; obsah vlhkosti narezaného palivového dreva sa môže zredukovať o cca. 20% ak je sušené 2 až 3 roky a zdvojnásobí sa tým energetický obsah na cca. 4 kWh/kg. | J23: Alempi lämpöarvo (LHV) tuoreaineesta (FS), x% H2O [kWh/kg] | K23: Wartość opałowa (LHV) świeżej masy (ś.w.) przy x % H2O [kWh/kg] Wartość opałowa (LHV) drewna - na jednostkę masy - zależy od zawartości wilgoci: 5 % redukcja zawartości wilgoci powoduje zwiększenie zwawrtości energii o około 0.3 kWh/kg. Świeżo ścięte drewno z 55 % zawartością wilgoci ma zawierać około 2 kWh/kg energii; zawartość wilgoci drewna opałowego może zostać zmniejszona do około 20 % jeżeli jest sezonowane przez od 2 do 3 lat, podwajając zawartość energii do około 4 kWh/kg.
A24: E24 | B24: Lower heating value (LHV) of fresh substance (FS) at x % H2O [MJ/m³] The m³ unit refers to the unit (m³(solid), m³(stacked) or m³(loose)) of the selected assortment (e.g. larch, wood chips, moisture content 30 % => 1 m³ equals 1*1*1 m or 1 loose m³ of poured wood chips with an energy content of roughly 3,500 MJ). The lower heating value (LHV) of wood - per volume unit - depends on a variety of factors. Depending on wood species or mixture of wood species, growth site (nutrient-poor high altitude site versus nutrient-rich low altitude site), assortment (sawdust, coarse wood chips, fine wood chips, firewood, roundwood, compressed wood, etc.) and quality (moisture content, rot and decay, contamination, etc.), the energy content of a wood fuel shipment can vary greatly. The values per volume unit calculated in the spreadsheet are only approximate values for average wood quality and customary assortments. In order to reduce the risks associated with wood fuel transactions, it is recommended to set up contracts (in Euro per tonne DM or Euro per MWh) that take the bulk weight and the moisture content into account. | C24: Unterer Heizwert Hu der Frischsubstanz (FS) bei x % H2O [MJ/m³] Das m³-Maß bezieht sich auf das oben eingestellte Sortiment (z. B. Lärche, Holzhackgut, Wassergehalt 30 % => 1 m³ entspricht 1*1*1 m bzw. 1 srm lose geschüttetem Hackgut mit ca. 3.500 MJ Energieinhalt). Der untere Heizwert Hu von Holz ist - auf das Volumen bezogen - von vielen Einflußfaktoren abhängig. Je nach Holzart bzw. Holzartenmischung, Wuchsort (magerer Hochlagenstandort versus nährstoffreicher Tieflagenstandort), Handelssortiment (Späne, Grobhackgut, Feinhackgut, Scheitholz, Rundholz, Presslinge, etc.) und Qualität (Wassergehalt, Fäulnis, Verunreinigungen, etc.) ist eine sehr große Variabilität des Energieinhaltes einer Holzlieferung möglich. Die mit dem Kalkulationsblatt errechneten volumenbezogenen Kennwerte stellen nur Richtgrößen für mittlere Holzqualitäten und übliche Handelssortimente dar. Um das Übernahmerisiko für Energieholzlieferungen zu reduzieren, wird daher empfohlen, Kaufverträge unter Berücksichtigung des Liefergewichtes und Wassergehaltes (in Euro pro t-atro oder Euro pro MWh) abzuschließen. | D24: Donja ogrjevna vrijednost (LHV) svježe drvne tvari kod x % H2O [MJ/m³] | E24: Нижча теплота згорання (НТЗ) свіжої речовини (СВР) при x % H2O [MДж/м³] Одиниця виміру м³ (м³ (щільний), м³ (складометр) або м³ (насипом)) відноситься до вибраних видів палива (наприклад, модрина, деревна тріска , вологість 30 % => 1 м³ дорівнює 1*1*1 м або 1 м³ насипом деревної тріски з енерговмістом порядку 3500 MДж). Нижча теплота згорання (НТЗ) деревини - на одиницю об'єму - залежить від ряду факторів. В залежності від породи деревини або суміші порід, місця росту (бідна на поживні речовини земля високо над рівнем моря проти багатої на поживні речовини землі низько над рівнем моря), виду палива (тирса, крупна деревна тріска, мілка деревна тріска, дрова, круглий лісоматеріал, ущільнена деревина і т.і.) та якості (вологість, наявність гниття та розкладання, забрудненість і т.п.), енерговміст партії деревного палива може суттєво змінюватися. Значення на одиницю об'єму, розраховані в електронній таблиці, є тільки приблизними величинами для середніх показників якості та звичайних видів палива. Для зниження ризиків операцій, пов'язаних з деревним паливом, рекомендується укладання відповідних контрактів (у грн./т СР або грн./MВт*год), що враховують насипну масу та вологість палива. | F24: Κατώτερη θερμογόνος δύναμη (ΚΘΔ) νωπής ουσίας (ΝΟ) με x% Η2Ο [MJ/m³] Το m³ αναφέρεται στη μονάδα (m³ (συμπαγές), m³ (στοιβαχτού) ή m³ (χύμα)) του επιλεγμένου είδους (π.χ. Λάριξ, θρυμματισμένο ξύλο , περιεκτικότητα σε υγρασία 30% => 1 m³ ισούται με 1 * 1 * 1 m ή 1 m³ θρυμματισμένου ξύλου χύμα με ενεργειακό περιεχόμενο 3500 MJ περίπου). Η κατώτερη θερμογόνος δύναμη (ΚΘΔ) του ξύλου - ανά μονάδα όγκου - εξαρτάται από μια ποικιλία παραγόντων. Ανάλογα με το είδος του ξύλου ή του μείγματος των ειδών ξύλου, τον τόπο ανάπτυξης (τόπος υψηλού υψομέτρου φτωχός σε θρεπτικά στοιχεία σε σχέση με τόπο χαμηλού υψομέτρου πλούσιο σε θρεπτικά στοιχεία), το είδος (πριονίδι, χοντρό θρυμματισμένο ξύλο, λεπτό θρυμματισμένο ξύλο, καυσόξυλα, στρογγυλή ξυλεία, συμπιεσμένο ξύλο, κλπ.) και την ποιότητα (περιεχόμενη υγρασία, σήψη και τη αποσύνθεση, προσμίξεις, κ.λπ.), το ενεργειακό περιεχόμενο των καυσίμων ξύλου που παραδίδονται μπορεί να ποικίλλει σε μεγάλο βαθμό. Οι τιμές, ανά μονάδα όγκου, που υπολογίζονται στο υπολογιστικό φύλλο είναι μόνο ενδεικτικές, για ξύλο μέσης ποιότητας και συνήθη είδη. Προκειμένου να μειωθούν οι κίνδυνοι που σχετίζονται με τις συναλλαγές των καυσίμων ξύλου, συνίσταται η σύναψη συμβάσεων (σε Ευρώ ανά τόνο ξηρής ουσίας ή Ευρώ ανά MWh) που λαμβάνουν υπόψη τη φαινόμενη πυκνότητα και την περιεχόμενη υγρασία. | G24: Capacitatea calorica inferioara (CCI) a materiei brute (MB) la x% H2O [MJ/kg] Unitatea de 1 m³ se refera la unitateat (m³(solid), m³(stiva) or m³(vrac)) ale sortimentelor selectate (e.g. larita, talas , umiditate 30 % => 1 m³ este egal cu 1*1*1 m or 1 m³ vrac de talas de lemn cu o energie de aproximativ 3 500 MJ). Capacitatea calorica inferioara (CCI) - pe unitate de volum - depinde de o varietate de factori. Depinde de speciile de lemn sau mixtura din diferite specii de lemn, zona de provenienta (crestere) (saraca in nutrienti in zone de altitudine mai mare versus zona bogata in nutrienti de la altitudini mai joase), sortiment (rumegus, talas aspru, talas fin, lemn de foc crapat, lemn rotund lemn presat etc.) si calitate (umiditate, putrezire si degradare, contaminare etc.), valoarea energetica a transportului de combustibil de lemn poate varia mult. Valorile pe volum de unitate, calculate in fisa de calcul sunt valori aproximative pentru o medie a unui lemn de calitate si sortimentele de vanzare. Pentru a reduce riscurile asociate cu tranzactiile de combustibil de lemn, este recomandat de a semna contracte (in Euro/t SU sau Euro pe MWh) care ia in considerare greutatea vrac la densitate cunoscuta si umiditatea. | H24: Долна топлина на изгаряне (ДТИ) на прясно вещество (ПВ) при х % Н2О [МДж/м3] Единицата м3 се отнася за единица (м3(плътна) м3 (пакетирана), м3 (насипна) от избрания асортимент (напр.лиственица, дървесен чипс , влагосъдържание 30 % => 1 m³ се равнява на 1*1*1 м или 1 насипен м от изсипан дървесен чипс с енергийно съдържание грубо 3,500 MJ). Долната топлина на изгаряне (ДТИ) на дървесина за единица обем зависи от разнообразни фактори. В зависисмост от вида дървесина или влажността на дървесината, мястото на отглеждане (бедни на хранителни вещества високи места, богати на хранителни вещества ниски места) асортимента ( стърготини, едри трески, фини трески, дърва за огрев, греди, пресована дървесина и др.) и качеството (влагосъдържание, паразити и гниене, замърсявания и др.) енергийното съдържание на единица обем на товара дървесно гориво може да варира значително. Стойностите на единица обем изчислени от таблицата, са само приблизителни оценки за осреднено качество на дървесината и клиентски асортимент. С цел намаляване на рисковете, свързани със сделки дървесно гориво, се препоръчва да се създадат договори (в евро за тон DM или евро на MWh), които заемат по-голямата част теглото и съдържанието на влага под внимание. С цел намаляване на рисковете, свързани със сделки дървесно гориво, се препоръчва да се създадат договори (в евро за тон DM или евро на MWh), които заемат по-голямата част теглото и съдържанието на влага под внимание. | I24: Výhrevnosť (LHV) čerstvej zložky (FS) v x % H2O [MJ/m³] Jednotka m³ odkazuje na (m³(pevná), m³(plná) alebo m³(voľná)) z označeného výberu (t.j. smrekovec, drevná štiepka , obsah vlhkosti 30% => 1 m³ rovný 1*1*1 m alebo 1 voľný m³ nasypanej drevnej štiepky s obsahom energie zhruba 3,500 MJ). Výhrevnosť (LHV) dreva - na jednotku objemu - závisý na rôznych faktoroch. Závisí na druhu dreva alebo mixe druhov dreva, strane rastu (pôda chudobná na živiny verzus pôda na živiny bohatá), výber (piliny, hrubá drevná štiepka, jemná drevná štiepka, palivové drevo, guľatina, stlačené drevo atď.) a kvalita (obsah vlhkosti, hniloba a rozklad, kontaminácia, atď.), energetický obsah dodávky sa môže značne líšiť. Hodnoty vzhľadom na objemovú jednotku počítané vo výpočtovom hárku sú len približné hodnoty pre strednú (priemernú) kvalitu dreva a obvyklý výber. Za účelom zníženia rizika spojeného s manipuláciou s drevným palivom, je dôležité nastavenie kontraktov (v Euro za tonu sušiny (DM) alebo Euro za MWh), ktoré budú brať v úvahu objemovú hmotnosť a obsah vlhkosti. | J24: Alempi lämpöarvo (LVH) tuoreaineesta, x % H2O [MJ/m³] | K24: Wartość opałowa (LHV) świeżej masy (ś.w.) przy x % H2O [MJ/m³] Jednostka m³ odnosi się do jednostki (m³(lite drewno), m³(ułożone) lub m³(luz) wybranego asortymentu (n.p. modrzew, trociny , zawartość wilgoci 30 % => 1 m³ równa się 1*1*1 m lub 1 luz m³ sypkich trocin z zawartością energii chemicznej w paliwie około 3,500 MJ). Wartość opałowa (LHV) drewna - na jednostkę objętości - zależy od wielu czynników. W zależności od gatunku lub mieszaniny gatunków, warunków wzrostu (np. teren nisko położony, bogaty w składniki odżywcze lub teren wysoko położony, ubogi w składniki odżywacze), asortymentu (pył drzewny, gruboziarniste trociny, drewno opałowe, kłody, drewno prasowane itp.) i jakości (zawartość wilgoci, rozkład, zanieczyszczenia) zawartość energi dostaw może się znacznie różnić. Wartości na jednostkę objętości oblicznone w arkuszu są tylko przybliżonymi wartościami dla drewna średniej jakości i standardowych asortymentów. W celu zmniejszenia ryzyka powiązanego z transakcjami paliw drzewnych, rekomendowane są kontrakty (w Euro na tonę s.m. lub Euro na MWh), które biorą pod uwagę masę nasypową i zawartość wilgoci.
A25: E25 | B25: Lower heating value (LHV) of fresh substance (FS) at x % H2O [kWh/m³] The m³ unit refers to the unit (m³(solid), m³(stacked) or m³(loose)) of the selected assortment (e.g. larch, wood chips , moisture content 30 % => 1 m³ equals 1*1*1 m or 1 loose m³ of poured wood chips with an energy content of roughly 970 kWh). The lower heating value (LHV) of wood - per volume unit - depends on a variety of factors. Depending on wood species or mixture of wood species, growth site (nutrient-poor high altitude site, nutrient-rich low altitude site), assortment (sawdust, coarse wood chips, fine wood chips, firewood, roundwood, compressed wood, etc.) and quality (moisture content, rot and decay, contamination, etc.), the energy content per volume unit of a wood fuel shipment can vary greatly. The values per volume unit calculated in the spreadsheet are only approximate values for average wood quality and customary assortments. In order to reduce the risks associated with wood fuel transactions, it is recommended to set up contracts (in Euro per tonne DM or Euro per MWh) that take the bulk weight and the moisture content into account. | C25: Unterer Heizwert Hu der Frischsubstanz (FS) bei x % H2O [kWh/m³] Das m³-Maß bezieht sich auf das oben eingestellte Sortiment (z. B. Lärche, Holzhackgut , Wassergehalt 30 % => 1 m³ entspricht 1*1*1 m bzw. 1 srm lose geschüttetem Hackgut mit ca. 970 kWh Energieinhalt). Der untere Heizwert Hu von Holz ist - auf das Volumen bezogen - von vielen Einflußfaktoren abhängig. Je nach Holzart (Weichholz, Hartholz) bzw. Holzartenmischung, Wuchsort (magerer Hochlagenstandort, nährstoffreicher Tieflagenstandort), Handelssortiment (Späne, Grobhackgut, Feinhackgut, Scheitholz, Rundholz, Presslinge, etc.) und Qualität (Wassergehalt, Fäulnis, Verunreinigungen, etc.) ist eine sehr große Variabilität des Energieinhaltes pro Volumeneinheit einer Holzlieferung möglich. Die mit dem Kalkulationsblatt errechneten volumenbezogenen Kennwerte stellen nur Richtgrößen für mittlere Holzqualitäten und übliche Handelssortimente dar. Um das Übernahmerisiko für Energieholzlieferungen zu reduzieren, wird daher empfohlen, Kaufverträge unter Berücksichtigung des Liefergewichtes und Wassergehaltes (in Euro pro t-atro oder Euro pro MWh) abzuschließen. | D25: Donja ogrjevna vrijednost (LHV) svježe drvne tvari kod x % H2O [kWh/m³] | E25: Нижча теплота згорання (НТЗ) свіжої речовини (СВР) при x % H2O [кВт*год/м³] Одиниця виміру м³ (м³ (щільний), м³ (складометр) або м³ (насипом)) відноситься до вибраних видів палива (наприклад, модрина, деревна тріска , вологість 30 % => 1 м³ дорівнює 1*1*1 м або 1 м³ насипом деревної тріски з енерговмістом порядку 970 кВт*год). Нижча теплота згорання (НТЗ) деревини - на одиницю об'єму - залежить від ряду факторів. В залежності від породи деревини або суміші порід, місця росту (бідна на поживні речовини земля високо над рівнем моря проти багатої на поживні речовини землі низько над рівнем моря), виду палива (тирса, крупна деревна тріска, мілка деревна тріска, дрова, круглий лісоматеріал, ущільнена деревина і т.і.) та якості (вологість, наявність гниття та розкладання, забрудненість і т.п.), енергоміст партії деревного палива може суттєво змінюватися. Значення на одиницю об'єму, розраховані в електронній таблиці, є тільки приблизними величинами для середніх показників якості та звичайних видів палива. Для зниження ризиків операцій, пов'язаних з деревним паливом, рекомендується укладання відповідних контрактів (у грн./т СР або грн./MВт*год), що враховують насипну масу та вологість палива. | F25: Κατώτερη θερμογόνος δύναμη (ΚΘΔ) νωπής ουσίας (ΝΟ) με x% Η2Ο [kWh/m³] Το m³ αναφέρεται στη μονάδα (m³ (συμπαγές), m³ (στοιβαχτού) ή m³ (χύμα)) του επιλεγμένου είδους (π.χ. Λάριξ, θρυμματισμένο ξύλο , περιεκτικότητα σε υγρασία 30% => 1 m³ ισούται με 1 * 1 * 1 m ή 1 m³ θρυμματισμένου ξύλου χύμα με ενεργειακό περιεχόμενο 970 kWh περίπου). Η κατώτερη θερμογόνος δύναμη (ΚΘΔ) του ξύλου - ανά μονάδα όγκου - εξαρτάται από μια ποικιλία παραγόντων. Ανάλογα με το είδος του ξύλου ή του μείγματος των ειδών ξύλου, τον τόπο ανάπτυξης (τόπος υψηλού υψομέτρου φτωχός σε θρεπτικά στοιχεία σε σχέση με τόπο χαμηλού υψομέτρου πλούσιο σε θρεπτικά στοιχεία), το είδος (πριονίδι, χοντρό θρυμματισμένο ξύλο, λεπτό θρυμματισμένο ξύλο, καυσόξυλα, στρογγυλή ξυλεία, συμπιεσμένο ξύλο, κλπ.) και την ποιότητα (περιεχόμενη υγρασία, σήψη και τη αποσύνθεση, προσμίξεις, κ.λπ.), το ενεργειακό περιεχόμενο των καυσίμων ξύλου που παραδίδονται μπορεί να ποικίλλει σε μεγάλο βαθμό. Οι τιμές, ανά μονάδα όγκου, που υπολογίζονται στο υπολογιστικό φύλλο είναι μόνο ενδεικτικές, για ξύλο μέσης ποιότητας και συνήθη είδη. Προκειμένου να μειωθούν οι κίνδυνοι που σχετίζονται με τις συναλλαγές των καυσίμων ξύλου, συνίσταται η σύναψη συμβάσεων (σε Ευρώ ανά τόνο ξηρής ουσίας ή Ευρώ ανά MWh) που λαμβάνουν υπόψη τη φαινόμενη πυκνότητα και την περιεχόμενη υγρασία. | G25: Capacitatea calorica inferioara (CCI) a materiei brute (MB) la x% H2O [kWh/kg] Unitatea de 1 m³ se refera la unitateat (m³(solid), m³(stiva) or m³(vrac)) ale sortimentelor selectate (e.g. larita, talas , umiditate 30 % => 1 m³ este egal cu 1*1*1 m or 1 m³ vrac de talas de lemn cu o energie de aproximativ 970 kWh). Capacitatea calorica inferioara (CCI) - pe unitate de volum - depinde de o varietate de factori. Depinde de speciile de lemn sau mixtura dintre specii de lemn diferite, zona de provenienta (crestere) (saraca in nutrienti in zone la altitudine mai mare versus bogata in nutrienti din zone mai joase), sortiment (rumegus, bustean coarse si talas, talas fin, lemn de foc crapat, lemn rotund lemn presat etc.) si calitate (umiditate, rot and decay, contaminare etc.), valoarea energetica a transportului de combustibil de lemn poate varia mult. Valorile pe volum de unitate, calculate in fisa de calcul sunt valori aproximative pentru o medie a unui lemn de calitate si sortimentele de vanzare. Pentru a reduce riscurile asociate cu tranzactiile de comnustibil de lemn, este recomandat de a semna contracte (in Euro/t SU sau Euro pe MWh) care ia in considerare greutatea vrac la densitate cunoscuta si umiditatea. | H25: Долна топлина на изгаряне (ДТИ) на прясно вещество (ПВ) при х % Н2О [kWh/м3] Единицата м3 се отнася за единица (м3(плътна) м3 (пакетирана), м3 (насипна) от избрания асортимент (напр.лиственица, дървесен чипс , влагосъдържание 30 % => 1 m³ се равнява на 1*1*1 м или 1 насипен м от изсипан дървесен чипс с енергийно съдържание грубо 970 kWh). Долната топлина на изгаряне (ДТИ) на дървесина за единица обем зависи от разнообразни фактори. В зависисмост от вида дървесина или влажността на дървесината, мястото на отглеждане (бедни на хранителни вещества високи места, богати на хранителни вещества ниски места) асортимента ( стърготини, едри трески, фини трески, дърва за огрев, греди, пресована дървесина и др.) и качеството (влагосъдържание, паразити и гниене, замърсявания и др.) енергийното съдържание на единица обем на товара дървесно гориво може да варира значително. Стойностите на единица обем изчислени от таблицата, са само приблизителни оценки за осреднено качество на дървесината и клиентски асортимент. С цел намаляване на рисковете, свързани със сделки дървесно гориво, се препоръчва да се създадат договори (в евро за тон DM или евро на MWh), които заемат по-голямата част теглото и съдържанието на влага под внимание. | I25: Výhrevnosť (LHV)čerstvej zložky (FS) v x % H2O [kWh/m³] Jednotka m³ odkazuje na (m³(pevná), m³(plná) alebo m³(voľná)) z označeného výberu (t.j. smrekovec, drevná štiepka , obsah vlhkosti 30 % => 1 m³ rovný 1*1*1 m alebo 1 voľná m³ nasypanej drevnej štiepky s obsahom energie zhruba 970 kWh). Výhrevnosť (LHV) dreva - na jednotku objemu - závisý na rôznych faktoroch. Závisí na druhu dreva alebo mixe druhov dreva, strane rastu (pôda chudobná na živiny verzus pôda na živiny bohatá), výber (piliny, hrubá drevná štiepka, jemná drevná štiepka, palivové drevo, guľatina, stlačené drevo atď.) a kvalita (obsah vlhkosti, hniloba a rozklad, kontaminácia, atď.), energetický obsah dodávky sa môže značne líšiť. Hodnoty vzhľadom na objemovú jednotku počítané vo výpočtovom hárku sú len približné hodnoty pre strednú (priemernú) kvalitu dreva a obvyklý výber. Za účelom zníženia rizika spojeného s manipuláciou s drevným palivom, je dôležité nastavenie kontraktov (v Euro za tonu sušiny (DM) alebo Euro za MWh), ktoré budú brať v úvahu objemovú hmotnosť a obsah vlhkosti. | J25: Alempi lämpöarvo (LVH) tuoreaineesta, x % H2O [kWh/m³] | K25: Wartość opałowa (LHV) świeżej masy (ś.m.) przy x % H2O [kWh/m³] Jednostka m³ odnosi się do jednostki (m³(lite drewno), m³(ułożone) lub m³(luz) wybranego asortymentu (n.p. modrzew, trociny , zawartość wilgoci 30 % => 1 m³ równa się 1*1*1 m lub 1 luz m³ sypkich trocin z zawartością energii około 970 kWh). Wartość opałowa (LHV) drewna - na jednostkę objętości - zależy od wielu czynników. W zależności od gatunku lub mieszaniny gatunków, warunków wzrostu (np. teren nisko położony, bogaty w składniki odżywcze lub teren wysoko położony, ubogi w składniki odżywacze), asortymentu (pył drzewny, gruboziarniste trociny, drewno opałowe, kłody, drewno prasowane itp.) i jakości (zawartość wilgoci, rozkład, zanieczyszczenia) zawartość energii dostaw może się znacznie różnić. Wartości na jednostkę objętości oblicznone w arkuszu są tylko przybliżonymi wartościami dla drewna średniej jakości i standardowych asortymentów. W celu zmniejszenia ryzyka powiązanego z transakcjami paliw drzewnych, rekomendowane są kontrakty (w Euro na tonę s.m. lub Euro na MWh), które biorą pod uwagę masę nasypową i zawartość wilgoci.
A26: E27 | B26: Mean oven-dry density [kg/m³] (at 0 % H2O) The specified mean oven-dry densities refer to 1 m³ oven-dried solid wood mass. The oven-dry density values used for the calculation and the respective data sources can be found in the data sheet. In the "Other" column, you need to enter the oven-dry weight of the selected fuel as specified in your own data sources. | C26: Mittlere Darrdichte [kg/m³] (bei 0 % H2O) Die angezeigten mittleren Darrdichten beziehen sich auf 1 m³ darrgetrocknete feste Holzmasse. Die für die Berechnung verwendeten Darrdichten und die jeweilige Datenquelle sind im "Datenblatt" ersichtlich. Im Bereich "Sonstige" muss das Darrgewicht des gewählten Brennstoffes gemäß eigener Erfahrungswerte bzw. Informationsquellen eingetragen werden. | D26: Srednja gustoća prosušenog drva [kg/m³] (kod 0 % H2O) U stupcu "Ostalo" trebate unijeti težinu prosušenog odabranog drva (goriva) kako je navedena u vašem izvoru podataka | E26: Середня густина абсолютно сухої речовини [кг/м³] (при 0 % H2O) Визначені середні значення густини абсолютно сухої речовини відносяться до 1 м³ абсолютно сухої деревної маси. Значення густини абсолютно сухої речовини, використані для розрахунку, та відповідні джерела інформації можно знайти в таблиці даних. У стовпчику "Інше" ви маєте ввести власні значення маси абсолютно сухої речовини вибраних палив. | F26: Μέση πυκνότητα ξηρής ουσίας [kg/m³] (με 0% Η2Ο) Η καθορισμένη μέση πυκνότητα ξηρής ουσίας αναφέρεται σε 1 m³ ξηραμένης μάζας συμπαγούς ξύλου. Οι τιμές πυκνότητας ξηρής ουσίας που χρησιμοποιούνται για τον υπολογισμό και οι αντίστοιχες πηγές δεδομένων μπορούν να βρεθούν στο φύλλο δεδομένων. Στη στήλη "Άλλο", θα πρέπει να εισάγετε το ξηρό βάρος του επιλεγμένου καυσίμου, όπως καθορίζεται στις δικές σας πηγές δεδομένων. | G26: Valoarea medie a densitatii lemnului uscat - cuptor [ kg / m³ ] ( la 0 % H2O ) Densitățile medii specificate pentru lemn uscat - cuptor se referă la 1 m³ de masă din lemn masiv uscat în cuptor. Valorile densității lemnului uscat - cuptor utilizate pentru calculul și sursele de date respective pot fi găsite în fișa de date. În coloana "Altele" , trebuie să introduceți greutatea lemnului uscat-cuptor a combustibilului selectat, în conformitate cu sursele de date proprii. | H26: Средна плътност на изсушената дървесина [kg/m³] (при 0 % H2O) Специфицираните плътности на изсушената дървесина се отнасят за 1 куб.м изсушена твърда маса дървесина. Стойностите за плътността на изсушената дървесина, използвани за изчисления и съответните източници на данни могат да се намерят в таблицата. В колоната "Други" трябва да въведете теглото на изсушената дървесина на избраното гориво, както е специфицирано в собствените ви източници на данни | I26: Priemerná hustota predsušenia [kg/m³] (v 0 % H2O) Špecifikovanou priemernou hustotou predsušenia sa myslí 1 m³ predsušenej pevnej lesnej masy. Hodnoty predsušenia použité pre výpočet a príslušné údaje je možné nájsť v data hárku. V stĺpci "ostatné" je potrebné zadať predsušenú hmotnosť označeného drevného paliva akú máte špecifikovanú vo vašom vlastnom zdroji dát. | J26: Keskimääräinen tiheys uunikuivana [kg / m³] (0% H2O) | K26: Średnia gęstość drewna suszonego w suszarni [kg/m³] (przy 0 % H2O) Określona średnia gęstość suszonego drewna odnosi się do 1 m³ suszonej bryły masy drewna. Gęstości użyte w celu kalkulacji i źródła danych można znaleźć w arkuszu danych. W kolumnie “Inne” należy wpisać suszoną masę wybranego paliwa zgodnie z własnymi danymi.Określona średnia gęstość suszonego drewna odnosi się do 1 m³ suszonej masy drewna. Wartości suszonej gęstości użyte w celu kalkulacji i źródła danych można znaleźć w arkuszu danych.
A27: E28 | B27: Mean shrinkage [%] During the drying process, wood shrinks when the moisture content drops below the fibre saturation point until the oven-dry weight is reached; the shrinkage rate depends on wood species, density and fibre orientation. The shrinkage is smallest along the grain (longitudinally) (0.1 - 1 %), higher across the rings (radially) (5 %), and highest in the direction af the annual rings (tangentially) (10 - 17 %). The total shrinkage value (for the volume) used for the calculations in the spreadsheet is the sum of longitudinal, radial and tangential shrinkage of the respective wood species. An overview of the total shrinkage rates used for the calculation and the respective data sources are given in the data sheet. In the case of compressed wood, no shrinkage adjustment is calculated, since the moisture content of these fuel types usually does not exceed the value range specified by the standards. Deviations from the standards are not taken into account in the calculations in the spreadsheet. Unintended contact of compressed wood products with water due to improper storage or an ingress of water can lead to extreme swelling and the pellets disintegrating into sawdust. In the "Other" column, you need to enter the shrinkage of the selected fuel as specified in your own data sources. | C27: Mittleres Schwindmaß [%] Holz "schwindet" bei der Trocknung vom Fasersättigungspunkt bis zum Darrgewicht je nach Holzart, Dichte und Richtung zur Faser unterschiedlich. Am geringsten sind die Schwindmaße in Faserrichtung (0,1 bis 1 %), mittlere Werte werden in radialer Richtung (5 % in Richtung der Markstrahlen) erreicht, am stärksten "arbeitet" das Holz in tangentialer Richtung (10 bis 17 % in Richtung der Jahrringe). Das für die Berechnungen im Kalkulationsblatt verwendete Gesamtschwindmaß für das Volumen ergibt sich als Summe der Schwindmaße in Faserrichtung, radialer Richtung und tangentialer Richtung der jeweiligen Holzart. Eine Übersicht der verwendeten Gesamtschwindmaße und die jeweilige Datenquelle ist im Datenblatt dargestellt. Bei Presslingen wird im Kalkulationsblatt keine Schwindmaßkorrektur gerechnet, da der Wassergehalt dieser Brennstoffe in der Regel auf die laut Norm zulässigen Werte eingestellt ist. Abweichungen von den Normwerten werden in den Berechnungsroutinen des Kalkulationsblattes nicht berücksichtigt. Eine Durchfeuchtung von Presslingen durch unsachgemäße Lagerung oder Wassereinbrüche kann aber zu extremen Volumsvergrößerungen und zum Zerfall in Späne führen. Im Bereich "Sonstige" muss das Gesamtschwindmaß des gewählten Brennstoffes gemäß eigener Erfahrungswerte bzw. Informationsquellen eingetragen werden. | D27: Srednje utezanje [%] U stupcu "Ostalo" trebate unijeti utezanje odabranog goriva kako je navedeno u vašem izvoru podataka | E27: Середня усадка [%] В процесі сушки деревина усихає (зменшується в об'ємі), коли значення вологості падає нижче межі гігроскопічності до моменту досягнення стану абсолютно сухої речовини; величина усадки залежить від породи деревини, густини й орієнтації волокон. Усадка є мінімальною вздовж волокон (поздовжній напрям) (0.1 - 1 %), вище - поперек кілець (по радіусу) (5 %), й найбільша - в напрямку річних кілець (по дотичній) (10 - 17 %). Загальна величина усадки (для об'єму), використана в розрахунках електронної таблиці, є сумою поздовжньої, радіальної та тангенціальної усадки відповідної породи деревини. Значення усадок, застосовані для розрахунків, й відповідні джерела інформації представлено в таблиці даних. Для ущільненої деревини усадка не розраховується, оскільки вологість цих типів палива зазвичай не перевищує величин, зазначених у стандартах. Електронна таблиця не враховує випадки відхилення від стандартів. Випадковий контакт ущільнених видів деревного палива з водою через неналежне зберігання або доступ води може призвести до значного набрякання та руйнування гранул. У стовпчику "Інше" ви маєте ввести власне значення усадки вибраних палив. | F27: Μέση συρρίκνωση [%] Κατά τη διάρκεια της διαδικασίας ξήρανσης το ξύλο συρρικνώνεται, όταν η περιεκτικότητα σε υγρασία πέφτει κάτω από το σημείο κορεσμού των ινών, μέχρι να επιτευχθεί το βάρος ξήρανσης. Ο ρυθμός συρρίκνωσης εξαρτάται από το είδος του ξύλου, την πυκνότητα και τον προσανατολισμό των ινών. Η συρρίκνωση είναι η μικρότερη κατά μήκος των ινών (διαμήκως) (0,1-1%), υψηλότερη μεταξύ των δακτυλίων (ακτινικά) (5%), και η υψηλότερη στην κατεύθυνση των ετησίων δακτυλίων (εφαπτομενικά) (10-17%). Η συνολική τιμή συρρίκνωσης (για τον όγκο), που χρησιμοποιείται για τους υπολογισμούς στο υπολογιστικό φύλλο, είναι το άθροισμα της ακτινικής και της εφαπτομενικής συρρίκνωσης των αντίστοιχων ειδών ξύλου. Για τον υπολογισμό χρησιμοποιείται μια επισκόπηση του συνόλου των συντελεστών συρρίκνωσης και οι αντίστοιχες πηγές δεδομένων καθορίζονται στο φύλλο δεδομένων. Στην περίπτωση του συμπιεσμένου ξύλου, δεν υπολογίζεται η προσαρμογή λόγω της συρρίκνωσης, αφού η περιεκτικότητα σε υγρασία αυτών των τύπων καυσίμου συνήθως δεν υπερβαίνει το εύρος τιμών που καθορίζονται από τα πρότυπα. Τυχόν αποκλίσεις από τις προδιαγραφές δεν λαμβάνονται υπόψη για τους υπολογισμούς στο υπολογιστικό φύλλο. Ακούσια επαφή των συμπιεσμένων προϊόντων ξύλου με νερό, λόγω ακατάλληλης αποθήκευσης ή εισροή νερού, μπορεί να οδηγήσει σε ακραία διόγκωση και αποσύνθεση των pelletrs σε πριονίδι. Στη στήλη "Άλλο", θα πρέπει να εισάγετε την συρρίκνωση του επιλεγμένου καυσίμου, όπως καθορίζεται από τις δικές σας πηγές δεδομένων. | G27: Reducerea medie [%] Pe parcursul procesului de uscare, lemnul se micsoreaza/reduce când umiditatea scade sub punctul de saturație a fibrelor până la atingerea greutății lemnului uscat - cuptor; rata de reducere depinde de speciile de lemn, densitate și orientarea fibrelor. Micsorarea/reducerea este mai mica de-a lungul fibrelor(longitudinale) (0.1-1%), mai mare peste inele(radial) (5%), iar cea mai ridicată în direcția inelelor anuale (tangențial) (10-17%). Valoarea de reducere/micsorare totală (pentru volum) utilizata pentru calcule în foaia de calcul este suma reducerii longitudinale, radiale și contracția tangentiala a speciilor de lemn respective. O privire de ansamblu asupra ratelor de reducere/micsorare totale utilizate pentru calculul și sursele de date respective sunt prezentate în fișa de date. În cazul lemnului presat, nu se calculează nici o reducere/micsorare, deoarece conținutul de umiditate al acestor tipuri de combustibili de obicei nu depășeasc intervalul de valori specificate de standarde. Abateri de la standardele nu sunt luate în considerare în calculele din foaia de calcul. Contactul neintenționat al produselor din lemn presat cu apă din cauza depozitării necorespunzătoare sau o pătrunderii apei poate duce la umflari extreme și peletii se vor dezintegra în rumeguș. În coloana "Altele", trebuie sa introduceti valoarea de reducere/micsorare a combustibilului selectat, în conformitate cu sursele de date proprii. | H27: Средна свиваемост [%] По време на процеса на сушене, дървесината се свива при падане на влагосъдържанието под точката на насищане до достигане на теглото на изсушената дървесина; степента на свиваемост зависи от вида дървесина, плътността и ориентацията на фибрите. Свиваемостта е най-малка по посока на влакната (надлъжно) (0.1 - 1 %), по-висока срещу пръстените (радиално) (5%), и най-висока в направлението на годишните пръстени (тангенциално) (10=17%). Пълната стойност на свиваемостта ( за обема) , използвана при изчисленията в таблицата, е сумата от надлъжната, радиалната и тангенциалната свиваемост на съответния вид дървесина. Преглед на тоталните степени на свиваемостта, използвани за изчисленията и съответните източници на данни са дадени в таблицата. В случай на пресована дървесина не се изчислява уточнение за свиваемост, тъй като влагосъдържанието на тези типове гориво обикновено не превишава областта на стойности, специфицирани от стандарта. Отклонениеята от стандартите не са взети под внимание при пресмятането в таблицата. Непреднамерен контакт на пресованата дървесина с вода поради неправилно съхранение или на достъп на вода може да доведе до екстремално подуване или разпадане на пелетите до стърготини. В колоната "Други" трябва да въведете свиваемостта на избраните горива както са специфицирани във вашите собствени източници наданни. | I27: Stredné zmrštenie [%] Počas procesu sušenia sa drevo zmršťuje keď obsah vlhkosti klesne pod bod nasýtenia vlákien kým nie je dosiahnutá suchá váha; rozsah zmrštenia závisí od druhu dreva, hustote a orientácií vlákien. Zmrštenie je najmenšie pozdĺž vlákna (pozdĺžne) (0.1 - 1 %), väčšie naprieč prstencov (radiálne) (5 %) a najväčšie v smere letokruhov (tangenciálne) (10 - 17 %). Celková hodnota zmrštenia (pre objem) použitá pre výpočet vo výpočtovom hárku je suma pozdĺžneho, radiálneho a tangenciálneho zmrštenia pre dané druhy dreva. Prehľad celkového rozsahu zmrštenia použitého pre výpočet a príslušné zdroje údajov sú zadané v data hárku. V prípade stlačeného dreva, nie je počítané žiadne zmrštenie, vzhľadom na to, že obsah vlhkosti tohoto druhu paliva zvyčajne nepresiahne rozsah hodnôt stanovených normou. Ochýlky od normy nie sú brané v úvahu pri kalkulácii vo výpočtovom hárku. Nechcený kontakt stlačeného dreva s vodou počas nesprávneho skladovania alebo vstup vody môže viesť k extrémnemu napučaniu a pelety/brikety sa môžu rozpadnúť na prach. V stĺpci "ostatné" je potrebné zadať zmrštenie vybraného paliva na základe údajov z vaších vlastných dátových zdrojov. | J27: Keskimääräinen kutistuminen [%] | K27: Średnie wyszuszenie [%] Podczas suszenia, drewno kurczy się gdy zawartość wilgoci spada poniżej punktu nasycenia włókien aż osiągnięta zostanie osiągnięta masa wysuszona; średnie tempo wyszuszenia zależy od gatunku drewna, gęstości i orientacji włókien. wyszuszenie jest najmniejsze wzdłuż ziarna (podłużnie) (0.1 - 1 %), wyższe w poprzek pierścieni (promieniowo) (5 %), i najwyższe w stronę słojów (stycznie) (10 - 17 %). Łączna wartość wyszuszenia (objętości) wykorzystana do kalkulacji w arkuszu to suma wyszuszenia podłużnego, promieniowego i stycznego dla poszczególnych gatunków drzew. Wykaz łącznych wartości wyszuszenia użytych do kalkulacji ze źródłami można znaleźć w arkuszu danych. W przypadku drewna prasowanego, nie oblicza się poprawki na wyszuszenie, gdyż zawartość wilgoci w tym typie paliw zazwyczaj nie przekracza zakresu wartości określonych przez standardy. Odejścia od standardów nie są brane pod uwagę w kalkulacjach tego arkuszu. Niezamierzony kontakt prasowanego drewna z wodą z powodu nie poprawnego przechowywania lub przedostania się wody może prowadzić do ekstremalnego puchnięcia i rozpadu peletów w pył drzewny. W kolumnie “Inne” należy wpisać wyszuszenie wybranego paliwa wedle własnych źródeł.
A28: E29 | B28: Bulk density [kg/m³] (at x % H2O) The estimated bulk density of the selected wood fuel assortment is calculated based on the mean oven-dry density and in consideration of the selected assortment, the specified moisture content and mean shrinkage values. The m³ unit refers to the unit (m³(solid), m³(stacked) or m³(loose)) of the selected assortment (e.g. larch, wood chips , moisture content 30 % => 1 m³ equals 1*1*1 m or 1 loose m³ of poured wood chips with a bulk density of roughly 278 kg/m³(loose)). The bulk density of a specific shipment can deviate significantly from the calculated approximate value since the density of wood can differ considerably from the mean values even within one wood species depending on the growth site (nutrient-poor high altitude site, nutrient-rich low altitude site), and furthermore due to the fact that the chip size and the bulk density of wood chips or bark chippings can vary considerably depending on the wood chipper and the transportation distance. In order to reduce the risks associated with wood fuel transactions, it is recommended to set up contracts (in Euro per tonne DM or Euro per MWh) that take the bulk weight and the moisture content into account. | C28: Roh- bzw. Lagerungsdichte [kg/m³] (bei x % H2O) Unter Berücksichtigung des gewählten Sortiments, des eingegebenen Wassergehaltes und des mittleren Schwindmaßes wird über die mittlere Darrdichte eine Richtgröße für die Roh- bzw. Lagerungsdichte des Energieholzsortimentes errechnet. Die m³-Angabe bezieht sich hier auf die Einheit (fm - rm - srm) des oben eingestellten Sortiments (z. B. Lärche, Holzhackgut , Wassergehalt 30 % => 1 m³ entspricht 1*1*1 m bzw. 1 srm lose geschüttetem Hackgut mit einer Lagerungsdichte von ca. 278 kg/srm). Die Roh- bzw. Lagerungsdichte einer konkreten Lieferung kann stark von der errechneten Richtgröße abweichen, da die Holzdichte auch innerhalb einer Baumart je nach Wuchsort (karger Hochlagenstandort, nährstoffreicher Tieflagenstandort) deutlich von den Durchschnittswerten abweichen oder die Stückigkeit bzw. Lagerungsdichte von Hackgut oder Rinde je nach Hackgerät bzw. Transportdistanz erheblich variieren kann. Um das Übernahmerisiko für Energieholzlieferungen zu reduzieren, wird daher empfohlen, Kaufverträge unter Berücksichtigung des Liefergewichtes und Wassergehaltes (in Euro pro t-atro oder Euro pro MWh) abzuschließen. | D28: Nasipna gustoća [kg/m³] (kod x % H2O | E28: Об'ємна густина [кг/м³] (при x % H2O) Об'ємна густина вибраних видів деревного палива розраховується через середню густину абсолютно сухої речовини з урахуванням визначеної вологості та середньої усадки. Одиниця виміру м³ (м³ (щільний), м³ (складометр) або м³ (насипом)) відноситься до вибраного виду палива (наприклад, модрина, деревна тріска , вологість 30 % => 1 м³ дорівнює 1*1*1 м або 1 м³ насипом деревної тріски об'ємною густиною порядку 278 кг/м³ (насипом)). Об'ємна густина конкретної партії палива може суттєво відхилятися від розрахованої приблизної величини, оскільки густина деревини може значно відрізнятися від середніх значень навіть для однієї породи в залежності від місця росту (бідна на поживні речовини земля високо над рівнем моря, багата на поживні речовини земля низько над рівнем моря); крім того, розмір та об'ємна густина деревної тріски або тріски з кори може суттєво мінятися в залежності від виду рубальної мешини й відстані транспортування. Для зниження ризиків, пов'язаних з операціями з деревним паливом, рекомендується укладати відповідні контракти (у грн./т СР або грн./МВт*год), що враховують насипну густину та вологість палива. | F28: Φαινόμενη πυκνότητα [kg/m³] (με x% Η2Ο) Η εκτιμώμενη φαινόμενη πυκνότητα του επιλεγμένου είδους καύσιμου ξύλο υπολογίζεται με βάση τη μέση πυκνότητα ξηρής ουσίας και λαμβάνοντας υπόψη για το επιλεγμένο είδος, την καθορισμένη περιεχόμενη υγρασία και τη μέση τιμή συρρίκνωσης. Το m³ αναφέρεται στη μονάδα (m³ (συμπαγές), m³ (στοιβαχτό) ή m³ (χύμα)) του επιλεγμένου είδους (π.χ. Λάριξ, θρυμματισμένο ξύλο , περιεχόμενη υγρασία 30% => 1 m³ ισούται με 1 * 1 * 1 m ή ένα χωρικό m³ θρυμματισμένου ξύλου χύμα, με πυκνότητα περίπου 278 kg/m³ (χύμα)). Η φαινόμενη πυκνότητα μιας συγκεκριμένης ποσότητας μπορεί να αποκλίνει σημαντικά από την κατά προσέγγιση υπολογισμένη τιμή, δεδομένου ότι η πυκνότητα του ξύλου μπορεί να διαφέρει σημαντικά από τη μέση τιμή, ακόμη και σε ένα είδος ξύλου, ανάλογα με τον τόπο ανάπτυξης (τόπος υψηλού υψομέτρου φτωχός σε θρεπτικά στοιχεία , τόπος χαμηλού υψομέτρου πλούσιος σε θρεπτικά στοιχεία), και επιπλέον, λόγω του γεγονότος ότι το μέγεθος των θρυμμάτων και η φαινόμενη πυκνότητα του θρυμματισμένου ξύλου ή των θρυμμάτων φλοιού μπορεί να ποικίλουν σημαντικά ανάλογα με το θρυμματιστή και την απόσταση μεταφοράς. Προκειμένου να μειωθούν οι κίνδυνοι που σχετίζονται με τις συναλλαγές των καυσίμων ξύλου, συνιστάται να συνάπτονται συμβάσεις (σε ευρώ ανά τόνο ξηρής ουσίας ή Ευρώ ανά MWh) που λαμβάνουν υπόψη τη φαινόμενη πυκνότητα και την περιεχόμενη υγρασία. | G28: Densitate vrac [kg / m³] (la x% H2O) Densitatea în vrac estimativă a sortimentului de combustibil din lemnul selectat este calculată pe baza densitatii medii a lemnului uscat-cuptor și luand în considerare sortimentul selectat, a conținutul de umiditate specificat și valori medii reducere/micsorare. Unitatea m³ se referă la unitatea (m³ (solid), m³ (suprapuse) sau m³ (vrac)) a sortimentului selectat (de exemplu aschii de lemn , umiditate 30% => 1 m³ este egal cu 1 * 1 * 1 m sau 1 m³ vrac din aschii de lemn turnat cu o densitate în vrac de aproximativ 278 kg / m³ (vrac)). Densitatea în vrac a unui transport specific poate deviaze semnificativ de la valoarea aproximativă calculată deoarece densitatea de lemn poate diferi considerabil pentru valorile medii, chiar în cadrul unei singure specii, în funcție de conditiile de creștere (la altitudine mare saraca in nutrienți, altitudine joasă bogata in nutrienti), precum și din cauza faptul că dimensiunea aschie și densitatea în vrac a aschiilor de lemn sau așchii coaja poate varia considerabil în funcție de masina de tocat lemn și de distanța de transport. În scopul de a reduce riscurile asociate tranzacțiilor combustibil lemn, este recomandat sa se specifice in contracte (în euro pe tonă SU sau Euro per MWh), care iau in considerare masa în vrac și conținutul de umiditate. " | H28: Обемна плътност [kg/m³] (при x % H2O) Приблизителният дял на дървесното вещество за избрания асортимент дървесно гориво е изчислен на базата на средна плътност след изсушаване и в зависисмост о избрания асортимент, специфичното влагосъдържание средната свиваемост. Единицата м3 се отнася за единицата (м3(твърдо), м№ (пакетирано) м3 насипно)) на избрания асортимент (напр. Лиственица, дървесен чипс , влагосъдържание 30 % => 1 m³ е равно на 1 * 1 * 1 m или 1 насипен m³ на изливат дървесен чипс с обемна плътност от около 278 килограм / m³ (в насипно състояние). Обемната плътност на специална пратка може да се отклонява значително от изчислената приблизителна стойност, тъй като плътността на дървесината може да се различава значително от средните стойности, дори в рамките на един вид дърво в зависимост от мястото на растеж (бедни на хранителни вещества с голяма надморска височина сайт, богата на хранителни вещества с ниска надморска височина място), и освен това се дължи на факта, че размерът на чипа и насипната плътност на дървени стърготини или кора отломки може да варира значително в зависисмост от резачка дърво и разстоянието на транспортиране. С цел намаляване на рисковете, свързани със сделки дървесно гориво, се препоръчва да се създадат договори (в евро за тон DM или евро на MWh), които заемат по-голямата част теглото и съдържанието на влага под внимание. | I28: Objemová hustota [kg/m³] (v x % H2O) Odhadovaná objemová hustota vybraného typu drevného paliva je počítaná na základe priemernej hustoty predsušenia a s ohľadom na označený výber, špecifický obsah vlhkosti a stredné hodnoty zmrštenia. Jednotka m³ odkazuje na jednotku (m³(pevná), m³(plná) alebo m³(voľná)) vyznačeného výberu (t.j. smrekovec, drevná štiepka , obsah vlhkosti 30 % => 1 m³ je rovný 1*1*1 m alebo 1 voľnej m³ z navŕšenej drevnej štiepky približne 278 kg/m³(voľná)). Objemová hustota špecifickej dodávky môže významne líšiť od približnej hodnoty výpočtu, pretože stredná hodnota podľa druhu dreva sa môže meniť v rámci jedného druhu vzhľadom na podmienky rastu (pôda s vysokým obsahom živín, pôda z nízkym obsahom živín), a ďalšie ako i vzhľadom na fakt, že veľkosť štiepky, objemová hustota drevnej štiepky alebo kôrnej štiepky sa môže meniť v závislosti na štiepkovači a dopravnej vzdialenosti. Za účelom zníženia rizika spojeného s manipuláciou s drevným palivom, je dôležité nastavenie kontraktov (v Euro za tonu sušiny (DM) alebo Euro za MWh), ktoré budú brať v úvahu objemovú hmotnosť a obsah vlhkosti. | J28: Irtotiheys [kg / m³] (x% H2O) | K28: Gęstość nasypowa [kg/m³] (at x % H2O) Szacowana gęstość nasypowa wybranego asortymentu paliwa drzewnego jest obliczana na podstawie średniej objętości suszenia biorąc pod uwagę wybrany asortyment, określoną zawartość wilgoci i średnią wartość wyszuszenia. Jednostka m³ odnosi się do jednostki (m³(lite drewno), m³(ułożone) lub m³(luz) wybranego asortymentu (n.p. modrzew, trociny , zawartość wilgoci 30 % => 1 m³ równa się 1*1*1 m lub 1 luz m³ sypkich trocin z gęstością nasypową około 278 kg/m³(luz)). Gęstość nasypowa konkretnej dostawy może znacznie różnić się od obliczonej szacunkowej wartości ponieważ gęstość drewna może znacznie różnić się od średniej wartości nawet dla jednego gatunku drewna w zależności od warunków wzrostu (np. teren nisko położony, bogaty w składniki odżywcze lub teren wysoko położony, ubogi w składniki odżywcze), a także z powodu różnic w rozmiarze trocin i gęstości nasypowej trocin lub kory zależnych od rozdrabniarki i dystansu transportu. W celu zmniejszenia ryzyka powiązanego z transakcjami paliw drzewnych, rekomendowane są kontrakty (w Euro na tonę s.m. lub Euro na MWh), które biorą pod uwagę masę nasypową i zawartość wilgoci.
A29: E30 | B29: Proportion of wood substance [kg/m³] (proportion of DM at x % H2O) The estimated proportion of wood substance of the selected wood fuel assortment is calculated based on the mean oven-dry density and in consideration of the selected assortment, the specified moisture content and mean shrinkage values. The m³ unit refers to the unit (m³(solid), m³(stacked) or m³(loose)) of the selected assortment (e.g. larch, wood chips , moisture content 30 % => 1 m³ equals 1*1*1 m or 1 loose m³ of poured wood chips with a bulk density of roughly 278 kg/m³(loose) => a moisture content of 30 % corresponds to 84 kg H2O per m³(loose), 70 % wood substance (DM) correspond to 195 kg DM per m³(loose) (rounded)). The bulk density of a specific shipment can deviate significantly from the calculated approximate value since the density of wood can differ considerably from the mean values even within one wood species depending on the growth site (nutrient-poor high altitude site, nutrient-rich low altitude site), and furthermore due to the fact that the chip size and the bulk density of wood chips or bark chippings can vary considerably dependig on the wood chipper and the transportation distance. In order to reduce the risks associated with wood fuel transactions, it is recommended to set up contracts (in Euro per tonne DM or Euro per MWh) that take the bulk weight and the moisture content into account. | C29: Anteil der Holzsubstanz [kg/m³] (TS-Anteil bei x % H2O) Unter Berücksichtigung des gewählten Sortiments, des eingegebenen Wassergehaltes und des mittleren Schwindmaßes wird über die mittlere Darrdichte eine Richtgröße für den Anteil der Holzsubstanz am gelieferten Energieholzsortiment errechnet. Die m³-Angabe bezieht sich hier auf die Einheit (fm - rm - srm) des oben eingestellten Sortiments (z. B. Lärche, Holzhackgut , Wassergehalt 30% => 1 m³ entspricht 1*1*1 m bzw. 1 srm lose geschüttetem Hackgut mit einer Lagerungsdichte von ca. 278 kg/srm => davon 30 % Wasseranteil entspricht 84 kg H2O pro srm und 70 % Holz(trocken)substanzanteil entspricht 195 kg TS pro srm (gerundet)). Die Roh- bzw. Lagerungsdichte einer konkreten Lieferung kann stark von der errechneten Richtgröße abweichen, da die Holzdichte auch innerhalb einer Baumart je nach Wuchsort (karger Hochlagenstandort, nährstoffreicher Tieflagenstandort) deutlich von den Durchschnittswerten abweichen oder die Stückigkeit bzw. Lagerungsdichte von Hackgut oder Rinde je nach Hackgerät bzw. Transportdistanz erheblich variieren kann. Um das Übernahmerisiko für Energieholzlieferungen zu reduzieren, wird daher empfohlen, Kaufverträge unter Berücksichtigung des Liefergewichtes und Wassergehaltes (in Euro pro t-atro oder Euro pro MWh) abzuschließen. | D29: Omjer drvne tvari [kg/m³] (omjer suhe tvari kod x % H2O) | E29: Вміст деревної речовини [кг/м³] (обсяг СР при x % H2O) Вміст деревної речовини у вибраному виду палива розраховується через середню густину абсолютно сухої речовини цього палива, визначені значення вологості та середньої усадки. Одиниця виміру м³ (щільний), м³ (складометр) або м³ (насипом) відноситься до вибраного виду палива (наприклад, модрина, деревна тріска , вологість 30 % => 1 м³ дорівнює 1*1*1 м або 1 м³ насипом деревної тріски з об'ємною густиною порядку 278 кг/м³ (насипом) => вологість 30 % відповідає 84 кг H2O на м³ (насипом), 70 % деревної речовини (СР) відповідає 195 кг СР на м³ (насипом) (округлено)). Об'ємна густина конкретної партії палива може суттєво відхилятися від розрахованої приблизної величини, оскільки густина деревини може значно відрізнятися від середніх значень навіть для однієї породи в залежності від місця росту (бідна на поживні речовини земля високо над рівнем моря, багата на поживні речовини земля низько над рівнем моря); крім того, розмір та об'ємна густина деревної тріски або тріски з кори може суттєво мінятися в залежності від виду рубальної мешини й відстані транспортування. Для зниження ризиків, пов'язаних з операціями з деревним паливом, рекомендується укладати відповідні контракти (у грн./т СР або грн./МВт*год), що враховують насипну густину та вологість палива. | F29: "Ποσοστό της ύλης του ξύλου [kg/m³] (ποσοστό της ξηρής ουσίας σε x% Η2Ο) Το εκτιμώμενο ποσοστό της ουσίας του ξύλου στο επιλεγμένο είδος του καύσιμου ξύλου υπολογίζεται με βάση τη μέση πυκνότητα της ξηρής ουσίας, λαμβάνοντας υπόψη για το επιλεγμένο είδος, την καθορισμένη περιεχόμενη υγρασία και τις μέσες τιμές συρρίκνωσης. Το m³ αναφέρεται στη μονάδα (m³ (συμπαγές), m³ (στοιβακτό) ή m³ (χύμα)) του επιλεγμένου είδους (π.χ. Λάριξ, θρυμματισμένο ξύλο , περιεχόμενη υγρασία 30% => 1 m³ ισούται με 1 * 1 * 1 m ή 1 χωρικό m³ θρυμματισμένου ξύλου χύμα με φαινόμενη πυκνότητα περίπου 278 kg/m³ (χύμα) => περιεχόμενη υγρασία 30% αντιστοιχεί σε 84 kg H2O ανά m³ (χύμα), το 70% της ουσίας του ξύλου (ΞΟ) αντιστοιχεί σε 195 kg ΞΟ ανά m³ (χύμα) (στρογγυλοποιημένο)). Η φαινόμενη πυκνότητα μιας συγκεκριμένης ποσότητας μπορεί να αποκλίνει σημαντικά από την κατά προσέγγιση υπολογιζόμενη τιμή, δεδομένου ότι η πυκνότητα του ξύλου μπορεί να διαφέρει σημαντικά από τις μέσες τιμές, ακόμη και σε ένα είδος ξύλου, ανάλογα με τον τόπο ανάπτυξης (τόπος υψηλού υψομέτρου φτωχός σε θρεπτικά στοιχεία , τόπος χαμηλού υψομέτρου πλούσιος σε θρεπτικά στοιχεία), και επιπλέον, λόγω του γεγονότος ότι το μέγεθος των θρυμμάτων και η φαινόμενη πυκνότητα του θρυμματισμένου ξύλου ή των θρυμμάτων φλοιού μπορεί να ποικίλουν σημαντικά ανάλογα με το θρυμματιστή και την απόσταση μεταφοράς. Προκειμένου να μειωθούν οι κίνδυνοι που σχετίζονται με τις συναλλαγές των καυσίμων ξύλου, συνιστάται η σύναψη συμβάσεων (σε Ευρώ ανά τόνο ξηρής ουσίας ή Ευρώ ανά MWh) που λαμβάνουν υπόψη τη φαινόμενη πυκνότητα και την περιεχόμενη υγρασία." | G29: Proporția de substanță lemnoasa [kg / m³] (proportie de SU la x% H2O) Proporția estimată de substanță lemnoasa pe sortiment de combustibil din lemn selectat se calculează pe baza mediei densității lemnului uscat-cuptor și luand in considerare sortimentul selectat, a conținutul de umiditate specificat și valorile medii de micsorare/reducere. Unitatea m³ se referă la unitatea (m³ (solid), m³ (stiva) sau m³ (vrac)) a sortimentului selectat (de exemplu: pentru larita, aschii de lemn , umiditate 30% => 1 m³ este egal cu 1 * 1 * 1 m sau 1 m³ vrac din aschii de lemn cu o densitate în vrac de aproximativ 278 kg / m³ (vrac) => un conținut de umiditate de 30% corespunde 84 kg H2O pe m³ (vrac), 70% substanță lemn (SU) corespund 195 kg SU m³ (vrac) (rotunjit)). Densitatea în vrac a unui transport specific poate sa difere semnificativ de la valoarea aproximativă calculată deoarece densitatea lemnului poate diferi considerabil fata de valorile medii, chiar în cadrul aceleiasi specii, în funcție de zona de creștere (saraca in nutrienti in zone de altitudine mai mare versus bogata in nutrienti in zone mai joase), și în plus, datorită faptului că dimensiunea aschiilor de lemn și densitatea în vrac a așchiilor de lemn sau a așchiillor de coaja pot varia considerabil, depinzand de masina de tocat/maruntit lemn și distanța de transport. În scopul de a reduce riscurile asociate tranzacțiilor cu combustibil lemn, este recomandat sa fie semnate contracte (în euro pe tonă SU sau Euro per MWh) care iau in considerare masa în vrac și conținutul de umiditate. | H29: Дял на дървесното вещество[kg/m³] (при x % H2O) Приблизителният дял на дървесното вещество за избрания асортимент дървесно гориво е изчислен на базата на средна плътност след изсушаване и в зависисмост о избрания асортимент, специфичното влагосъдържание средната свиваемост. Единицата м3 се отнася за единицата (м3(твърдо), м№ (пакетирано) м3 насипно)) на избрания асортимент (напр. Лиственица, дървесен чипс , влагосъдържание 30 % => 1 m³ е равно на 1 * 1 * 1 m или 1 насипен m³ на изливат дървесен чипс с обемна плътност от около 278 килограм / m³ (в насипно състояние) => съдържание на влага 30% съответства 84кг H2O на m³ (в насипно състояние), 70% дървесина вещество (DM) съответства на 195 кг DM на m³ (в насипно състояние) (закръглено)). Обемната плътност на специална пратка може да се отклонява значително от изчислената приблизителна стойност, тъй като плътността на дървесината може да се различава значително от средните стойности, дори в рамките на един вид дърво в зависимост от мястото на растеж (бедни на хранителни вещества с голяма надморска височина сайт, богата на хранителни вещества с ниска надморска височина място), и освен това се дължи на факта, че размерът на чипа и насипната плътност на дървени стърготини или кора отломки може да варира значително dependig на резачка дърво и разстоянието на транспортиране. С цел намаляване на рисковете, свързани със сделки дървесно гориво, се препоръчва да се създадат договори (в евро за тон DM или евро на MWh), които заемат по-голямата част теглото и съдържанието на влага под внимание. | I29: Podiel drevnej hmoty [kg/m³] (podiel DM v x % H2O) Odhadovaný podiel drevnej hmoty v označenom výbere paliva je počítaný na základe priemernej hustoty predsušenia a vzhľadom na označený výber, špecifický obsah vlhkosti a priemerné hodnoty zmrštenia. Jednotka m³ odkazuje na jednotku (m³(pevná), m³(plná) alebo m³(voľná)) vyznačeného výberu (t.j. smrekovec, drevná štiepka , obsah vlhkosti 30 % => 1 m³ je rovný 1*1*1 m alebo 1 voľnej m³ z navŕšenej drevnej štiepky s objemom približne 278 kg/m³(voľná)) => obsah vlhkosti 30 % zodpovedajúci 84 kg H2O na m³(voľnej), 70 % drevnej hmoty (DM) zodpovedajúcej 195 kg DM na m³(voľná) (zaoblená)). Objemová hustota špecifickej dodávky môže významne líšiť od približnej hodnoty výpočtu, pretože stredná hodnota podľa druhu dreva sa môže meniť v rámci jedného druhu vzhľadom na podmienky rastu (pôda s vysokým obsahom živín, pôda z nízkym obsahom živín), a ďalšie ako i vzhľadom na fakt, že veľkosť štiepky, objemová hustota drevnej štiepky alebo kôrnej štiepky sa môže meniť v závislosti na štiepkovači a dopravnej vzdialenosti. Za účelom zníženia rizika spojeného s manipuláciou s drevným palivom, je dôležité nastavenie kontraktov (v Euro za tonu sušiny (DM) alebo Euro za MWh), ktoré budú brať v úvahu objemovú hmotnosť a obsah vlhkosti. | J29: Puuaineen osuus [kg / m³] (osuus DM, kun x% H2O) | K29: Proporcja drewna [kg/m³] (proporcja s.m. przy x % H2O) Szacowana proporcja drewna wybranego asortymentu paliwa drzewnego jest obliczana na podstawie średniej objętości suszonej z uwzględnieniem wybranego asortymentu, określonej zawartości wilgoci i średniej wartości wyszuszenia. Jednostka m³ odnosi się do jednostki (m³(lite drewno), m³(ułożone) lub m³(luz)) wybranego asortymentu (n.p. modrzew, trociny , zawartość wilgoci 30 % => 1 m³ równa się 1*1*1 m lub 1 luz m³ sypkich trocin z gęstością nasypową około 278 kg/m³(luz) => zawartość wilgoci 30 % odpowiada 84 kg H2O na m³(luz), 70 % drewna (s.m.) odpowiada 195 kg s.m. na m³(luz) (zaokrąglone)). Gęstość nasypowa konkretnej dostawy może znacznie różnić się od obliczonej szacunkowej wartości, ponieważ gęstość drewna możę znacznie różnić się od średniej wartości nawet dla jednego gatunku drewna w zależności od warunkunków wzrostu (np. teren nisko położony, bogaty w składniki odżywcze lub teren wysoko położony, ubogi w składniki odżywacze), a także z powodu różnic w rozmiarze trocin i gęstości nasypowej trocin lub kory zleżnej od rozdrabniarki i dystansu transportu. W celu zmniejszenia ryzyka powiązanego z transakcjami paliw drzewnych, rekomendowane są kontrakty (w Euro na tonę s.m. lub Euro na MWh), które biorą pod uwagę masę nasypową i zawartość wilgoci.
A30: E31 | B30: Proportion of water [kg/m³] (proportion of H2O at x % H2O) The estimated proportion of water of the selected wood fuel assortment is calculated based on the specified moisture content and in consideration of the selected assortment, the mean oven-dry density and mean shrinkage values. The m³ unit refers to the unit (m³(solid), m³(stacked) or m³(loose)) of the selected assortment (e.g. larch, wood chips , moisture content 30 % => 1 m³ equals 1*1*1 m or 1 loose m³ of poured wood chips with a bulk density of roughly 278 kg/m³(loose) => a moisture content of 30 % corresponds to 84 kg H2O per m³(loose), 70 % wood substance (DM) correspond to 195 kg DM per m³(loose) (rounded)). The bulk density of a specific shipment can deviate significantly from the calculated approximate value since the density of wood can differ considerably from the mean values even within one wood species depending on the growth site (nutrient-poor high altitude site, nutrient-rich low altitude site), and furthermore due to the fact that the chip size and the bulk density of wood chips or bark chippings can vary considerably dependig on the wood chipper and the transportation distance. In order to reduce the risks associated with wood fuel transactions, it is recommended to set up contracts (in Euro per tonne DM or Euro per MWh) that take the bulk weight and the moisture content into account. | C30: Anteil des Wassers [kg/m³] (H2O-Anteil bei x % H2O) Unter Berücksichtigung des gewählten Sortiments, der mittleren Darrdichte und des mittleren Schwindmaßes wird über den eingegebenen Wassergehalt eine Richtgröße für den Anteil des Wassers am gelieferten Energieholzsortiment errechnet. Die m³-Angabe bezieht sich hier auf die Einheit (fm - rm - srm) des oben eingestellten Sortiments (z. B. Lärche, Holzhackgut , Wassergehalt 30 % => 1 m³ entspricht 1*1*1 m bzw. 1 srm lose geschüttetem Hackgut mit einer Lagerungsdichte von ca. 278 kg/srm => davon 30 % Wasseranteil entspricht 84 kg H2O pro srm und 70 % Holz(trocken)substanzanteil entspricht 195 kg TS pro srm (gerundet)). Die Roh- bzw. Lagerungsdichte einer konkreten Lieferung kann stark von der errechneten Richtgröße abweichen, da die Holzdichte auch innerhalb einer Baumart je nach Wuchsort (karger Hochlagenstandort, nährstoffreicher Tieflagenstandort) deutlich von den Durchschnittswerten abweichen oder die Stückigkeit bzw. Lagerungsdichte von Hackgut oder Rinde je nach Hackgerät bzw. Transportdistanz erheblich variieren kann. Um das Übernahmerisiko für Energieholzlieferungen zu reduzieren, wird daher empfohlen, Kaufverträge unter Berücksichtigung des Liefergewichtes und Wassergehaltes (in Euro pro t-atro oder Euro pro MWh) abzuschließen. | D30: Omjer vode [kg/m³] (omjer H2O kod x % H2O) | E30: Вміст води [кг/м³] (вміст води при x % H2O) Вміст води у вибраному виді палива розраховується через визначену вологість цього палива, величини середньої густини абсолютно сухої речовини та середньої усадки. Одиниця виміру м³ (щільний), м³ (складометр) або м³ (насипом) відноситься до вибраного виду палива (наприклад, модрина, деревна тріска , вологість 30 % => 1 м³ дорівнює 1*1*1 м або 1 м³ насипом деревної тріски з об'ємною густиною порядку 278 кг/м³ (насипом) => вологість 30 % відповідає 84 кг H2O на м³ (насипом), 70 % деревної речовини (СР) відповідає 195 кг СР на м³ (насипом) (округлено)). Об'ємна густина конкретної партії палива може суттєво відхилятися від розрахованої приблизної величини, оскільки густина деревини може значно відрізнятися від середніх значень навіть для однієї породи в залежності від місця росту (бідна на поживні речовини земля високо над рівнем моря, багата на поживні речовини земля низько над рівнем моря), крім того, оскільки розмір та об'ємна густина деревної тріски або тріски з кори може суттєво мінятися в залежності від виду рубальної мешини й відстані транспортування. Для зниження ризиків, пов'язаних з операціями з деревним паливом, рекомендується укладати відповідні контракти (у грн./т СР або грн./МВт*год), що враховують насипну густину та вологість палива. | F30: “Ποσοστό του νερού [kg/m³] (ποσοστό Η2Ο σε x% Η2Ο) Το εκτιμώμενο ποσοστό του νερού στο επιλεγμένο είδος του καύσιμου ξύλου υπολογίζεται με βάση την καθορισμένη περιεχόμενη υγρασία, λαμβάνοντας υπόψη για το επιλεγμένο είδος, την καθορισμένη περιεχόμενη υγρασία και τις μέσες τιμές συρρίκνωσης. Το m³ αναφέρεται στη μονάδα (m³ (συμπαγές), m³ (στοιβακτό) ή m³ (χύμα)) του επιλεγμένου είδους (π.χ. Λάριξ, θρυμματισμένο ξύλο , περιεχόμενη υγρασία 30% => 1 m³ ισούται με 1 * 1 * 1 m ή 1 χωρικό m³ της θρυμματισμένου ξύλου χύμα με φαινόμενη πυκνότητα περίπου 278 kg/m³ (χύμα) => περιεχόμενη υγρασία 30% αντιστοιχεί σε 84 kg H2O ανά m³ (χύμα), το 70% της ουσίας του ξύλου (DM) αντιστοιχεί σε 195 kg ΞΟ ανά m³ (χύμα) (στρογγυλοποιημένο)). Η φαινόμενη πυκνότητα μιας συγκεκριμένης ποσότητας μπορεί να αποκλίνει σημαντικά από την κατά προσέγγιση υπολογιζόμενη τιμή, δεδομένου ότι η πυκνότητα του ξύλου μπορεί να διαφέρει σημαντικά από τις μέσες τιμές, ακόμη και σε ένα είδος ξύλου, ανάλογα με τον τόπο ανάπτυξης (τόπος υψηλού υψομέτρου φτωχός σε θρεπτικά στοιχεία, τόπος χαμηλού υψομέτρου πλούσιος σε θρεπτικά στοιχεία), και επιπλέον λόγω του γεγονότος ότι το μέγεθος των θρυμμάτων και η φαινόμενη πυκνότητα του θρυμματισμένου ξύλου ή των θρυμμάτων φλοιού μπορεί να ποικίλουν σημαντικά ανάλογα με το θρυμματιστή και την απόσταση μεταφοράς. Προκειμένου να μειωθούν οι κίνδυνοι που σχετίζονται με τις συναλλαγές των καυσίμων ξύλου, συνιστάται η σύναψη συμβάσεων (σε Ευρώ ανά τόνο ξηρής ουσίας ή Ευρώ ανά MWh) που λαμβάνουν υπόψη τη φαινόμενη πυκνότητα και την περιεχόμενη υγρασία." | G30: Proporția de apă [kg / m³] (proportie de H2O la x% H2O) Proporția estimată a apei pentru sortimentul de combustibil de lemn selectat se calculează pe baza conținutului de umiditate specificat și luand în considerare sortimentului selectat, media densității lemnului uscat-cuptor și valorilor medii de reducere/micsorare. Unitatea m³ se referă la unitatea (m³ (solid), m³ (stiva) sau m³ (vrac)) a sortimentului selectat (de exemplu: pentru larita, aschii de lemn , umiditate 30% => 1 m³ este egal cu 1 * 1 * 1 m sau 1 m³ vrac din aschii de lemn cu o densitate în vrac de aproximativ 278 kg / m³ (vrac) => un conținut de umiditate de 30% corespunde 84 kg H2O pe m³ (vrac), 70% substanță lemn (SU) corespund 195 kg SU m³ (vrac) (rotunjit)). Densitatea în vrac a unui transport specific poate sa difere semnificativ de la valoarea aproximativă calculată deoarece densitatea lemnului poate diferi considerabil fata de valorile medii, chiar în cadrul aceleiasi specii, în funcție de zona de creștere (saraca in nutrienti in zone de altitudine mai mare versus bogata in nutrienti in zone mai joase), și în plus, datorită faptului că dimensiunea aschiilor de lemn și densitatea în vrac a așchiilor de lemn sau a așchiillor de coaja pot varia considerabil, depinzand de masina de tocat/maruntit lemn și distanța de transport. În scopul de a reduce riscurile asociate tranzacțiilor cu combustibil lemn, este recomandat sa fie semnate contracte (în euro pe tonă SU sau Euro per MWh) care iau in considerare masa în vrac și conținutul de umiditate. | H30: Дял на вода (кг/м3) (част на Н2О при х % Н2О) Очакваният Приблизителният дял на вода за избрания асортимент дървесно гориво се изчислява въз основа на определено съдържание на влага и при отчитане на избрания асортимент, средната стойност на изсушена плътност и свиване. Единицата m³ се отнася съответно до (m³ (твърдо), m³ (подредени) или m³ (насипни) на избрания асортимент (напр лиственица, дървесен чипс , съдържание на влага 30% => 1 m³ е равно на 1 * 1 * 1 m или 1 хлабав m³ на изливат дървесен чипс с обемна плътност от около 278 килограм / m³ (в насипно състояние) => съдържание на влага 30% съответства 84кг H2O на m³ (в насипно състояние), 70% дървесина вещество (DM) съответства на 195 кг DM на m³ (в насипно състояние) (закръглено)). Обемната плътност на специафична пратка може да се отклонява значително от изчислената приблизителна стойност, тъй като плътността на дървесината може да се различава значително от средните стойности, дори в рамките на един вид дърво в зависимост от мястото на растеж (бедни на хранителни вещества с голяма надморска височина сайт, богата на хранителни вещества с ниска надморска височина място), и освен това се дължи на факта, че размерът на чипа и насипната плътност на дървени стърготини или кора отломки може да варира значително dependig на резачка дърво и разстоянието на транспортиране. С цел намаляване на рисковете, свързани със сделки дървесно гориво, се препоръчва да се създадат договори (в евро за тон DM или евро на MWh), които заемат по-голямата част теглото и съдържанието на влага под внимание. | I30: Podiel vody [kg/m³] (podiel H2O v x % H2O) Odhadovaný podiel vody v označenom výbere paliva je počítaný na základe špecifického obsahu vlhkosti a vzhľadom na označený výber, priemernej hodnoty predsušenia a priemernej hodnoty zmrštenia. Jednotka m³ odkazuje na jednotku (m³(pevná), m³(plná) alebo m³(voľná)) vyznačeného výberu (t.j. smrekovec, drevná štiepka , obsah vlhkosti 30 % => 1 m³ je rovný 1*1*1 m alebo 1 voľnej m³ z navŕšenej drevnej štiepky s objemom približne 278 kg/m³(voľná)) => obsah vlhkosti 30 % zodpovedajúci 84 kg H2O na m³(voľná), 70 % drevnej hmoty (DM) zodpovedajúcej 195 kg DM na m³(voľná) (zaoblená)). Objemová hustota špecifickej dodávky sa môže významne líšiť od približnej hodnoty výpočtu, pretože stredná hodnota podľa druhu dreva sa môže meniť v rámci jedného druhu vzhľadom na podmienky rastu (pôda s vysokým obsahom živín, pôda z nízkym obsahom živín), a ďalšie ako i vzhľadom na fakt, že veľkosť štiepky, objemová hustota drevnej štiepky alebo kôrnej štiepky sa môže meniť v závislosti na štiepkovači a dopravnej vzdialenosti. Za účelom zníženia rizika spojeného s manipuláciou s drevným palivom, je dôležité nastavenie kontraktov (v Euro za tonu sušiny (DM) alebo Euro za MWh), ktoré budú brať v úvahu objemovú hmotnosť a obsah vlhkosti. | J30: Veden osuus [kg/m³] (osuus H2O, kun x % H2O) | K30: Proporcja wody [kg/m³] (proporcja H2O przy x % H2O) Szacowana proporcja wody wybranego asortymentu paliwa drzewnego jest obliczana na podstawie średniej objętości suszonej z uwzględnieniem wybranego asortymentu, określonej zawartości wilgoci i średniej wartości wyszuszenia. Jednostka m³ odnosi się do jednostki (m³(lite drewno), m³(ułożone) lub m³(luz) wybranego asortymentu (n.p. modrzew, trociny , zawartość wilgoci 30 % => 1 m³ równa się 1*1*1 m lub 1 luz m³ sypkich trocin z gęstością nasypową około 278 kg/m³(luz) => zawartość wilgoci 30 % odpowiada 84 kg H2O na m³(luz), 70 % drewna (s.m.) odpowiada 195 kg s.m. na m³(luz) (zaokrąglone)). Gęstość nasypowa konkretnej dostawy może znacznie różnić się od obliczonej szacunkowej wartości ponieważ gęstość drewna możę znacznie różnić się od średniej wartości nawet dla jednego gatunku drewna w zależności od warunkunków wzrostu (np. teren nisko położony, bogaty w składniki odżywcze lub teren wysoko położony, ubogi w składniki odżywacze), a także z powodu różnic w rozmiarze trocin i gęstości nasypowej trocin lub kory zleżnej od rozdrabniarki i dystansu transportu. W celu zmniejszenia ryzyka powiązanego z transakcjami paliw drzewnych, rekomendowane są kontrakty (w Euro na tonę s.m. lub Euro na MWh), które biorą pod uwagę masę nasypową i zawartość wilgoci.
A31: E32 | B31: Ratio m³ per tonne fresh substance (FS) [m³/t] Provides an estimate of the required storage and transport volume per tonne fresh substance (FS) of the selected wood fuel assortment. The estimated bulk density of the selected wood fuel assortment is calculated based on the mean oven-dry density and in consideration of the selected assortment, the specified moisture content and mean shrinkage values. The m³ unit refers to the unit (m³(solid), m³(stacked) or m³(loose)) of the selected assortment (e.g. larch, wood chips , moisture content 30 % => 1 m³ equals 1*1*1 m or 1 loose m³ of poured wood chips with a bulk density of roughly 278 kg/m³(loose) => 1,000/278 = around 3.6 m³(loose) of wood chips per tonne fresh substance. The bulk density of a specific shipment can deviate significantly from the calculated approximate value since the density of wood can differ considerably from the mean values even within one wood species depending on the growth site (nutrient-poor high altitude site, nutrient-rich low altitude site), and furthermore due to the fact that the chip size and the bulk density of wood chips or bark chippings can vary considerably dependig on the wood chipper and the transportation distance. In order to reduce the risks associated with wood fuel transactions, it is recommended to set up contracts (in Euro per tonne DM or Euro per MWh) that take the bulk weight and the moisture content into account. | C31: Verhältniszahl m³ pro Tonne Frischsubstanz (FS) [m³/t] Gibt eine Richtgröße für das benötigte Lager- bzw. Transportvolumen pro Tonne Frischsubstanz (FS) des betrachteten Energieholzsortimentes an. Unter Berücksichtigung des gewählten Sortiments, des eingegebenen Wassergehaltes und des mittleren Schwindmaßes wird über die mittlere Darrdichte eine Richtgröße für die Roh- bzw. Lagerungsdichte des Energieholzsortimentes errechnet. Die m³-Angabe bezieht sich hier auf die Einheit (fm - rm - srm) des oben eingestellten Sortiments (z. B. Lärche, Holzhackgut , Wassergehalt 30 % => 1 m³ entspricht 1*1*1 m bzw. 1 srm lose geschüttetem Hackgut mit einer Lagerungsdichte von ca. 278 kg/srm => 1.000/278 = ca. 3,6 srm Hackgut pro Tonne Frischsubstanz). Die Roh- bzw. Lagerungsdichte einer konkreten Lieferung kann stark von der errechneten Richtgröße abweichen, da die Holzdichte auch innerhalb einer Baumart je nach Wuchsort (karger Hochlagenstandort, nährstoffreicher Tieflagenstandort) deutlich von den Durchschnittswerten abweichen oder die Stückigkeit bzw. Lagerungsdichte von Hackgut oder Rinde je nach Hackgerät bzw. Transportdistanz erheblich variieren kann. Um das Übernahmerisiko für Energieholzlieferungen zu reduzieren, wird daher empfohlen, Kaufverträge unter Berücksichtigung des Liefergewichtes und Wassergehaltes (in Euro pro t-atro oder Euro pro MWh) abzuschließen. | D31: Omjer m³ po toni svježe drvne tvari (FS) [m³/t] | E31: Величина м³ на тонну свіжої речовини (СВР) [м³/т] Показує об'єм, необхідний для зберігання та транспортування тонни свіжої речовини (СВР) вибраного виду палива. Об'ємна густина вибраного виду палива розраховується через середню густину абсолютно сухої речовини цього палива, визначені значення вологості та середньої усадки. Одиниця виміру м³ (щільний), м³ (складометр) або м³ (насипом) відноситься до вибраного виду палива (наприклад, модрина, деревна тріска , вологість 30 % => 1 м³ дорівнює 1*1*1 м або 1 м³ насипом деревної тріски з об'ємною густиною порядку 278 кг/м³ (насипом) => 1,000/278 = близько 3.6 м³ (насипом) деревної тріски на тонну свіжої річовини. Об'ємна густина конкретної партії палива може суттєво відхилятися від розрахованої приблизної величини, оскільки густина деревини може значно відрізнятися від середніх значень навіть для однієї породи в залежності від місця росту (бідна на поживні речовини земля високо над рівнем моря, багата на поживні речовини земля низько над рівнем моря); крім того, розмір та об'ємна густина деревної тріски або тріски з кори може суттєво мінятися в залежності від виду рубальної мешини й відстані транспортування. Для зниження ризиків, пов'язаних з операціями з деревним паливом, рекомендується укладати відповідні контракти (у грн./т СР або грн./МВт*год), що враховують насипну густину та вологість палива. | F31: Αναλογία m³ ανά τόνο νωπής ουσίας (ΝΟ) [m³/t] Παρέχει μια εκτίμηση του όγκου ανά τόνο νωπής ουσίας (ΝΟ), του επιλεγμένου είδους καύσιμου ξύλου, που απαιτείται για την αποθήκευση και τη μεταφορά του. Η εκτιμώμενη φαινόμενη πυκνότητα του επιλεγμένου είδους καύσιμου ξύλου υπολογίζεται με βάση τη μέση πυκνότητα της ξηρής ουσίας, λαμβάνοντας υπόψη για το επιλεγμένο είδος, την καθορισμένη περιεχόμενη υγρασία και τις μέσες τιμές συρρίκνωσης. Το m³ αναφέρεται στη μονάδα (m³ (συμπαγές), m³ (στοιβακτό) ή m³ (χύμα)) του επιλεγμένου είδους (π.χ. Λάριξ, θρυμματισμένο ξύλο , περιεχόμενη υγρασία 30% => 1 m³ ισούται με 1 * 1 * 1 m ή 1 χωρικό m³ θρυμματισμένου ξύλου χύμα με φαινόμενη πυκνότητα περίπου 278 kg/m³ (χύμα) => 1000/278 = περίπου 3,6 m³ (χύμα) ανά τόνο νωπής ουσίας θρυμματισμένου ξύλου. Η φαινόμενη πυκνότητα μιας συγκεκριμένης ποσότητας μπορεί να αποκλίνει σημαντικά από την κατά προσέγγιση υπολογιζόμενη τιμή, δεδομένου ότι η πυκνότητα του ξύλου μπορεί να διαφέρει σημαντικά από τις μέσες τιμές, ακόμη και σε ένα είδος ξύλου, ανάλογα με τον τόπο ανάπτυξης (τόπος υψηλού υψομέτρου φτωχός σε θρεπτικά στοιχεία, τόπος χαμηλού υψομέτρου πλούσιος σε θρεπτικά στοιχεία), και επιπλέον λόγω του γεγονότος ότι το μέγεθος των θρυμμάτων και η φαινόμενη πυκνότητα του θρυμματισμένου ξύλου ή των θρυμμάτων φλοιού μπορεί να ποικίλουν σημαντικά ανάλογα με το θρυμματιστή και την απόσταση μεταφοράς. Προκειμένου να μειωθούν οι κίνδυνοι που σχετίζονται με τις συναλλαγές των καυσίμων ξύλου, συνιστάται η σύναψη συμβάσεων (σε Ευρώ ανά τόνο ξηρής ουσίας ή Ευρώ ανά MWh) που λαμβάνουν υπόψη τη φαινόμενη πυκνότητα και την περιεχόμενη υγρασία. | G31: Procentul de 1 m³ pe tonă de materie bruta proaspata (MB) [m³ / t] Oferă o estimare a depozitării și volum transport necesar de substanță proaspătă tonă SP) a sortimentului de combustibil din lemn selectat. Densitatea în vrac estimată a sortimentului de combustibil din lemn selectat este calculată pe baza densitatii medii a lemnului uscat - cuptor, luand în considerare sortimentul selectat, conținutul de umiditate specificate și valorile medii de reducere/micsorare. Unitatea m³ se referă la (m³ (solid), m³ (stiva) sau m³ (vrac)) a sortimentului selectat (de exemplu aschii de lemn , umiditate 30% => 1 m³ este egal cu 1 * 1 * 1 m sau 1 m³ din aschii de lemn turnat cu o densitate în vrac de aproximativ 278 kg / m³ (vrac) => 1000/278 = 3,6 m³ aproximativ (vrac) din aschii de lemn pe tonă de substanță proaspătă. Densitatea în vrac a unui transport specific poate sa difere semnificativ de la valoarea aproximativă calculată deoarece densitatea lemnului poate diferi considerabil fata de valorile medii, chiar în cadrul aceleiasi specii, în funcție de zona de creștere (saraca in nutrienti in zone de altitudine mai mare versus bogata in nutrienti in zone mai joase), și în plus, datorită faptului că dimensiunea aschiilor de lemn și densitatea în vrac a așchiilor de lemn sau a așchiillor de coaja pot varia considerabil, depinzand de masina de tocat/maruntit lemn și distanța de transport. În scopul de a reduce riscurile asociate tranzacțiilor cu combustibil lemn, este recomandat sa fie semnate contracte (în euro pe tonă SU sau Euro per MWh) care iau in considerare masa în vrac și conținutul de umiditate. | H31: Съотношение m³ на т ПВ [m³/t]. Дава приблизителна оценка на необходимите обеми за съхранение и транспорт на тон прясна маса (ПВ) на избрания асортимент дървесиина. Приблизителната обемна плътностна избрания асортимент дървесина се изчислява на базата на данните за средната плътност на изсушена дървсина от дадения асортимент, специфичното влагосъдържание и средната свиваемост Единицата m³ се отнася съответно до (m³ (твърдо), m³ (подредени) или m³ (насипни) на избрания асортимент (напр лиственица, дървесен чипс , съдържание на влага 30% => 1 m³ е равно на 1 * 1 * 1 m или 1 хлабав m³ на изливат дървесен чипс с обемна плътност от около 278 килограм / m³ (в насипно състояние) => съдържание на влага 30% съответства 84кг H2O на m³ (в насипно състояние), 70% дървесина вещество (DM) съответства на 195 кг DM на m³ (в насипно състояние) (закръглено)). Обемната плътност на специална пратка може да се отклонява значително от изчислената приблизителна стойност, тъй като плътността на дървесината може да се различава значително от средните стойности, дори в рамките на един вид дърво в зависимост от мястото на растеж (бедни на хранителни вещества с голяма надморска височина сайт, богата на хранителни вещества с ниска надморска височина място), и освен това се дължи на факта, че размерът на чипа и насипната плътност на дървени стърготини или кора отломки може да варира значително dependig на резачка дърво и разстоянието на транспортиране. С цел намаляване на рисковете, свързани със сделки дървесно гориво, се препоръчва да се създадат договори (в евро за тон СВ или евро на MWh), които заемат по-голямата част теглото и съдържанието на влага под внимание. | I31: Pomer m³ na tonu čerstvej zložky (FS) [m³/t] Poskytuje odhad potrebného objemu skladovania a prepravy na tonu čerstvej zložky (FS) vyznačeného výberu paliva. Odhadovaná objemová hustota vyznačeného výberu paliva je počítaná na základe priemernej hodnoty hustoty predsušenia vzhľadom na vyznačený výber, špecifický obsah vlhkosti a priemernú hodnotu zmrštenia.Jednotka m³ odkazuje na jednotku (m³(pevná), m³(plná) alebo m³(voľná)) vyznačeného výberu (t.j. smrekovec, drevná štiepka , obsah vlhkosti 30 % => 1 m³ je rovný 1*1*1 m alebo 1 voľnej m³ z navŕšenej drevnej štiepky s objemom približne 278 kg/m³(voľnej)) => 1,000/278 = okolo 3.6 m³(volná) drevnej štiepky na tonu čerstvej zložky. Objemová hustota špecifickej dodávky sa môže významne líšiť od približnej hodnoty výpočtu, pretože stredná hodnota podľa druhu dreva sa môže meniť v rámci jedného druhu vzhľadom na podmienky rastu (pôda s vysokým obsahom živín, pôda z nízkym obsahom živín), a ďalšie ako i vzhľadom na fakt, že veľkosť štiepky, objemová hustota drevnej štiepky alebo kôrnej štiepky sa môže meniť v závislosti na štiepkovači a dopravnej vzdialenosti. Za účelom zníženia rizika spojeného s manipuláciou s drevným palivom, je dôležité nastavenie kontraktov (v Euro za tonu sušiny (DM) alebo Euro za MWh), ktoré budú brať v úvahu objemovú hmotnosť a obsah vlhkosti. | K31: Stosunek m³ na tonę świeżej masy (ś.m.) [m³/t] Umożliwia oszacowanie wymaganej objętości magazynowania i transportu na tonę świeżej masy (ś.m.) wybranego asortymentu paliwa drzewnego. Szacowana gęstość nasypowa wybranego asortymentu paliwa drzewnego jest obliczana na podstawie średniej objętości suszenia biorąc pod uwagę wybrany asortyment, określoną zawartość wilgoci i średnią wartość wyszuszenia. Jednostka m³ odnosi się do jednostki (m³(lite drewno), m³(ułożone) lub m³(luz)) wybranego asortymentu (n.p. modrzew, trociny , zawartość wilgoci 30 % => 1 m³ równa się 1*1*1 m lub 1 luz m³ sypkich trocin z gęstością nasypową około 278 kg/m³(luz) => 1,000/278 = około 3.6 m³(luz) trocin na tonę świeżej masy Gęstość nasypowa konkretnej dostawy może znacznie różnić się od obliczonej szacunkowej wartości ponieważ gęstość drewna może znacznie różnić się od średniej wartości nawet dla jednego gatunku drewna w zależności od warunków wzrostu (np. teren nisko położony, bogaty w składniki odżywcze lub teren wysoko położony, ubogi w składniki odżywcze), a także z powodu różnic w rozmiarze trocin i gęstości nasypowej trocin lub kory zależnych od rozdrabniarki i dystansu transportu. W celu zmniejszenia ryzyka powiązanego z transakcjami paliw drzewnych, rekomendowane są kontrakty (w Euro na tonę s.m. lub Euro na MWh), które biorą pod uwagę masę nasypową i zawartość wilgoci.
A32: E34 | B32: Ash content (estimate) [%] The ash content of wood fuel assortments mainly depends on the proportion of bark and the level of impurities (mineral contamination through storage and manipulation) in the fuel. Due to varying levels of impurities in wood fuel, only rough estimates of ash content are made in the referenced studies (see Obernberger 1997, "Nutzung fester Biomasse in Verbrennungsanlagen"). For the estimation of the amount of ash, the following ash content values in percent by weight of DM were used: - firewood: 1.0 % - wood chips and G50: 1.5 % - sawdust and wood shavings: 1.0 % - bark: 6.0 % - compressed wood: 0.3 - 0.5 % - compressed bark: 6.0 % Source: Empirical values, Obernberger 1997, ÖNORM M 7135. | C32: Aschengehalt als Schätzwert [%] Der Aschengehalt von Energieholzsortimenten ist in erster Linie vom Rindenanteil und Verschmutzungsgrad (Eintrag von mineralischen Bestandteilen durch Lagerung und Manipulation) des Brennstoffs abhängig. Aufgrund des unterschiedlichen Verschmutzungsgrads des Brennstoffs werden in der Literatur nur grobe Anhaltpunkte bezüglich des Aschenanteils angegeben (siehe Obernberger 1997, "Nutzung fester Biomasse in Verbrennungsanlagen"). Für eine Abschätzung der Aschenmengen wurden folgende Aschenanteile in Gewichts-% der Trockensubstanz für die einzelnen Sortimente angenommen: - Scheit- und Stückholz: 1,0 % - Holzhackgut und G50: 1,5 % - Säge- und Hobelspäne: 1,0 % - Rinde: 6,0 % - Holzpresslinge: 0,3 - 0,5 % - Rindenpresslinge: 6,0 % Datenquellen: Erfahrungswerte, Obernberger 1997, ÖNORM M 7135. | D32: Udio pepela (procjena) [%] | E32: Зольність (оцінка) [%] Зольність деревних палив головним чином залежить від обсягу кори та рівню забрудненості (забрудненість мінеральними речовинами в процесі зберігання та інших операцій з паливами). Оскільки деревне паливо може мати дуже різні рівні забрудненості, в літературі наводяться лише приблизні оцінки вмісту золи (див. Obernberger 1997, "Nutzung fester Biomasse in Verbrennungsanlagen"). Для оцінки вмісту золи було викорстано наступні значення зольності у відсотках на СР: - дрова: 1.0 % - деревна тріска та G50: 1.5 % - тирса та обрізки деревини: 1.0 % - кора: 6.0 % - ущільнена деревина: 0.3 - 0.5 % - ущільнена кора: 6.0 % Джерело: Емпірічні величини, Obernberger 1997, ÖNORM M 7135. | F32: Περιεκτικότητα σε τέφρα (εκτίμηση) [%] Η περιεκτικότητα σε τέφρα των καυσίμων ξύλου εξαρτάται κυρίως από το ποσοστό του φλοιού και το επίπεδο των προσμείξεων (προσμίξεις ορυκτών από την αποθήκευση και τη διαχείριση) στο καύσιμο. Λόγω των διαφορετικών επίπεδων των προσμίξεων στα καύσιμα ξύλου, στις σχετικές μελέτες έγιναν μόνο κατά προσέγγιση εκτιμήσεις της περιεκτικότητας σε τέφρα (βλέπε Obernberger 1997, "Nutzung fester Biomasse in Verbrennungsanlagen"). Για την εκτίμηση του ποσού της τέφρας, χρησιμοποιήθηκαν οι παρακάτω τιμές περιεκτικότητας σε τέφρα, επί τοις εκατό κατά βάρος της ΞΟ: – Καυσόξυλα: 1,0% – Θρυμματισμένο ξύλο και G50: 1,5% – Πριονίδι και εξακρίδια: 1,0% – Φλοιός: 6,0% – Συμπιεσμένο ξύλο: 0,3 έως 0,5% – Συμπιεσμένος φλοιός: 6,0% Πηγή: Εμπειρικές τιμές, Obernberger 1997, ÖNORM M 7135. | G32: Continut in cenusa (estimare) [%] Continutul in cenusa al combustibililor lemnosi depinde in principal de proportia de scoarta si de nivelul impuritatilor din combustibil (contaminare minerala prin depozitare si manipulare). Datorita nivelurilor diferite de impuritati in combustibilii lemnosi, in cadrul studiilor prezentate pot fi realizate doar estimari grosiere ale continutului in cenusa (vezi Obernberger 1997, "Nutzung fester Biomasse in Verbrennungsanlagen"). Pentru estimarea cantitatii de cenusa, urmatoarele valori ale continnutului in cenusa, exprimate in % greutate SU, au fost folosite: - lemn de foc: 1.0 % - talas si G50: 1.5 % - rumegus si aschii lemnoase: 1.0 % - scoarta lemnoasa: 6.0 % - lemn presat: 0.3 - 0.5 % - scoarta presata: 6.0 % Sursa: Empirical values, Obernberger 1997, ÖNORM M 7135. | H32: Пепелно съдържание (Приблизително) [%] Пепелното съдържание на асортиментите дървесното гориво зависи главно от количеството на кората в него и от нивото на замърсяванията ( минерални замърсявания по време на съхранението и манипулирането) в горивото. Поради различните нива на замърсяване на дървесното гориво се правят само груби оценки на пепелното съдържание в референтните изследвания (виж Obernberger 1997, "Nutzung fester Biomasse in Verbrennungsanlagen"). За оценка на количеството пепел са използвани следните стойности на пепелното съдържание в тегловни проценти от СВ: - дърва за огрев: 1.0% - дървесен чипс и G50: 1.5 % - стърготини и дървесни изрезки: 1.0 % - кора: 6.0 % - пресована дървесина: 0.3 - 0.5 % - пресована кора: 6.0 %. Източник: Емпирични стойности, Obernberger 1997, ÖNORM M 7135. | I32: Obsah popola (odhad) [%] Obsah popola v palivovom výbere závisí hlavne na podiele kôry a úrovni nečistôt (minerálna kontaminácia počas skladovania a manipulácie) v palive. Vzhľadom na meniaci sa podiel nečistôt v drevnom palive sú v referenčných štúdiách vytvorené len hrubé odhady obsahu popola.(pozri Obernberger 1997, "Nutzung fester Biomasse in Verbrennungsanlagen"). Pre očakávanie hodnoty popola, boli použité nasledujúce hodnoty obsahu popola v percentách na váhu DM: - palivové drevo: 1.0 % - drevná štiepka a G50: 1.5 % - piliny a hobliny: 1.0 % - kôra: 6.0 % - stlačené drevo: 0.3 - 0.5 % - stlačená kôra: 6.0 % Zdroj: Empirické hodnoty, Obernberger 1997, ÖNORM M 7135. | J32: Tuhkan osuus (arvio) [%] | K32: Zawartość popiołu (szacunek) [%] Zawartość popiołu asortymentu paliw drzewnych zależy głównie od proporcji kory i poziomu nieczystości (zanieczyszczenia mineralne spowodowane przechowywaniem i manipulacją) w paliwie. Z powodu różnych poziomów zanieczyszczenia w paliwie badania podają tylko przybliżone oszacowania zawartości popiołu (patrz Obernberger 1997, "Nutzung fester Biomasse in Verbrennungsanlagen"). Do oszacowania zawartości popiołu zostały użyte poniższe wartości zawartości popiołu w procentach suchej masy: - drewno opałowe: 1.0 % - trociny i G50: 1.5 % - pył drzewny i zrębki: 1.0 % - kora: 6.0 % - prasowane drewno: 0.3 - 0.5 % - prasowana kora: 6.0 % Źródło: Wartości eksperymentalne/empiryczne, Obernberger 1997, ÖNORM M 7135.
A33: E35 | B33: Ash density (estimate) [kg/m³] Depending on combustion efficiency and ash type (fly ash or bottom ash), the ash weight is between 300 und 1,000 kg/m³. For calculation purposes, a mean ash weight of 700 kg/m³ was assumed. Source: Empirical values; Ruckenbauer, Obernberger, Holzner; 1996. | C33: Aschendichte als Schätzwert [kg/m³] Das Aschengewicht kann je nach Verbrennungsqualität und Anfallsort der Asche (Fein- oder Grobasche) zwischen 300 und 1.000 kg/m³ betragen. Für die Berechnung wurde ein mittleres Aschengewicht von 700 kg/m³ angenommen. Datenquelle: Erfahrungswerte; Ruckenbauer, Obernberger, Holzner; 1996. | D33: Gustoća pepela (procjena) [kg/m³] | E33: Густина золи (оцінка) [кг/м³] В залежності від ефективності процесу спалювання й типу золи (летюча зола або нижня зола) вага золи коливається між 300 та 1000 кг/м³. Для розрахунків прийнято середню величину - 700 кг/м³. Джерело: Емпірічні значення; Ruckenbauer, Obernberger, Holzner; 1996. | F33: Πυκνότητα της τέφρας (εκτίμηση) [kg/m³] Ανάλογα με την απόδοση της καύσης και το είδος της τέφρας (ιπτάμενη τέφρα ή επικαθήμενη τέφρα), η πυκνότητα της είναι μεταξύ 300 και 1000 kg/m³. Για λόγους υπολογισμού, η μέση πυκνότητα της τέφρας θεωρήθηκε στα 700 kg/m³. Πηγή: Εμπειρικές τιμές, Ruckenbauer, Obernberger, Holzner, 1996. | G33: Densitatea cenusei (estimare) [kg/m³] In functie de eficienta arderii si tipul de cenusa (cenusa zburatoare si cenusa de vatra), greutatea cenusii este cuprinsa intre 300 si 1,000 kg/m³. In scopul calculatiilor efectuate, a fost folosita o medie a greutatii cenusii de 700 kg/m³ . Sursa: Empirical values; Ruckenbauer, Obernberger, Holzner; 1996. | H33: Плътност на пепелта (оценъчно) [kg/m³] В зависимост от ефективността на изгаряне и типа пепел (летяща пепел или дънна пепел), теглото на пепелта е между 300 и 1,000 kg/m³. За целите на пресмятането, се приема средно тегло на пепелта 700 kg/m³ . Източник: Емпирични стойности; Ruckenbauer, Obernberger, Holzner; 1996. | I33: Hustota popola (odhad) [kg/m³] Závisí na efektivite spaľovania a type popola (popolček či popol), váha popola je medzi 300 a 1,000 kg/m³. Pre potreby výpočtu sa predpokladá stredná hodnota váhy popola 700 kg/m³ . Zdroj: Empirické hodnoty; Ruckenbauer, Obernberger, Holzner; 1996. | J33: Tuhkan tiheys (arvio) [kg/m³] | K33: Gęstość popiołu (szacunek) [kg/m³] W zależności od efektywności spalania i rodzaju popiołu (popiół lotny lub popiół ciężki), masa popiołu wynosi od 300 do 1,000 kg/m³. Na potrzebę obliczeń założono, że średnią masa popiołu wynosi 700 kg/m³. Źródło: Wartości eksperymentalne/empiryczne; Ruckenbauer, Obernberger, Holzner; 1996.
A34: E37 | B34: Price per unit in [Euro/t DM] Enter the fuel price in Euro per tonne dry matter (DM). The entered value will immediately be converted into the other price units in the fields below, thus allowing immediate comparison of fuel prices in the different price units. Example: Larch, wood chips , moisture content 30 % => 1 m³ equals 1*1*1 m or 1 loose m³ of poured wood chips with an energy content of roughly 970 kWh/m³(loose) => enter price in Euro/t DM as "80.00" => immediate conversion into 56.00 Euro/t FS, 15.59 Euro/m³ (Euro/m³(loose)), 16.04 Euro/MWh and 4.46 Euro/GJ. For price comparisons, it is essential to consider the point of sale and the fuel quality of the wood fuel assortment since transportation and chopping costs can account for a significant part of the overall costs (e.g. point of sale at forest roadside in the form of roundwood or at heating plant or CHP plant in the form of ready-to-use wood chips). Important note: For the calculations to work as intended, macros have to be activated in the Excel settings. Should the other price unit cells not be updated with the respective converted values after one value has been entered, the macros have not been activated. Please check your Excel settings under Tools => Macro | Security | Security Level | Medium. | C34: Preis pro Einheit in [Euro/t TS] bzw. [Euro/t-atro] Geben Sie hier den Brennstoffpreis in Euro pro Tonne Trockensubstanz (TS) bzw. in Euro pro t-atro ein. Es erfolgt eine sofortige Umrechnung des eingegebenen Wertes in die weiteren Einheiten in den untenstehenden Feldern. Dadurch ist ein sofortiger Vergleich der Brennstoffpreise in den verschiedenen Einheiten möglich. Beispiel: Lärche, Holzhackgut , Wassergehalt 30 % => 1 m³ entspricht 1*1*1 m bzw. 1 srm lose geschüttetem Hackgut mit ca. 970 kWh/srm Energieinhalt => Preiseingabe in Euro/t TS (bzw. Euro/t-atro) mit "80,00" => sofortige Umrechnung in 56,00 Euro/t FS bzw. 15,59 Euro/m³ (entspricht Euro/srm) bzw. 16,04 Euro/MWh bzw. 4,46 Euro/GJ. Bei Preisvergleichen muss unbedingt auf den Erfüllungsort und die Brennstoffqualität des Energieholzsortiments geachtet werden, da die Transport- und Hackkosten einen erheblichen Teil der Gesamtkosten ausmachen können (z. B. Erfüllungsort frei Waldstraße als Rundholz oder frei Heizwerk bzw. KWK-Anlage als fertiges Hackgut). Wichtiger Hinweis: Zur Ausführung der Berechnungsroutinen müssen Makros in den Excelvoreinstellungen aktiviert sein. Falls nach der Eingabe in einem Preisfeld keine sofortige Umrechnung in die anderen Preiseinheiten erfolgt, wurden die Makros nicht aktiviert. Überprüfen Sie Ihre Einstellungen in Excel unter Extras => Makro | Sicherheit | Sicherheitsstufe | Mittel. | D34: Jedinična cijena u [Eur/t DM] Važna napomena: Da bi izračunska tablica radila ispravno, potrebno je u Excel postavkama aktivirati makro funkcije. Ukoliko se nakon unosa određene vrijednosti polje 'ostale jedinične cijene' ne ažurira, makroi nisu aktivirani. Provjerite Excel postavke koje trebaju biti Tools => Macro | Security | Security Level | Medium | E34: Ціна за одиницю у [грн./т СР] Введіть ціну палива в грн. за тонну сухої речовини (СР). Введене значення одразу перерахується в інші одиниці в полях нижче, що дасть можливість порівняти ціни . Приклад: Модрина, деревна тріска , вологість 30 % => 1 м³ дорівнює 1*1*1 м або 1 м³ насипом деревної тріски з енерговмістом порядку 970 кВт*год/м³ (насипом) => введіть ціну у грн./т СР, наприклад, "80.00" => миттєвий перерахунок у 56,00 грн./т СВР, 15,59 грн/м³ (грн./м³ (насипом)), 16,04 грн./МВт*год та 4,46 грн./ГДж. Для порівняння цін важливо брати до уваги точку продажу та якість деревного палива, оскільки вартість транспортування та подрібнення можуть складати значну частку загальної вартості (наприклад, продаж круглих лісоматеріалів на узбіччі лісу або продаж підготовленої до спалювання деревної тріски на котельні або ТЕЦ). Важливе зауваження: Для належного проведення розрахунків необхідно активувати макроси в настройках програми Excel. Якщо уведене значення не перераховується в інші одиниці ціни, це означає, що макроси не активовані. Перевірте настройки вашої програми Excel в розділі Інструменти => Макроси | Безпека | Рівень безпеки | Середній. | F34: Τιμή ανά μονάδα σε [Ευρώ/t ΞΟ] Εισάγετε την τιμή των καυσίμων σε Ευρώ ανά τόνο ξηράς ουσίας (ΞΟ). Η καταχωρημένη τιμή θα μετατραπεί αμέσως σε τιμή άλλων μονάδων στα παρακάτω πεδία, επιτρέποντας έτσι την άμεση σύγκριση των τιμών των καυσίμων σε διάφορες μονάδες τιμών. Παράδειγμα: Λάριξ, θρυμματισμένο ξύλο , περιεχόμενη υγρασία 30% => 1 m³ ισούται με 1 * 1 * 1 m ή 1 χωρικό m³ θρυμματισμένου ξύλου χύμα με ενεργειακό περιεχόμενο περίπου 970 kWh/m³ (χύμα) => εισάγετε "80,00" ως τιμή σε Ευρώ/τόνο ΞΟ => άμεση μετατροπή σε 56,00 Ευρώ/τόνο ΝΟ, 15,59 Ευρώ/m³ (ευρώ/m³ (χύμα)), 16,04 Ευρώ/MWh και 4,46 ευρώ/GJ. Για τις συγκρίσεις των τιμών, είναι απαραίτητο να ληφθούν υπόψη το σημείο πώλησης και η ποιότητα των καυσίμων του είδους του καύσιμου ξύλου, καθώς το κόστος μεταφοράς και θρυμματισμού μπορεί καλύπτει ένα σημαντικό μέρος του συνολικού κόστους (π.χ. σημείο πώλησης στο δασόδρομο με τη μορφή στρογγυλού ξύλου ή σε εγκαταστάσεις θέρμανσης ή μονάδα συμπαραγωγής σε μορφή θρυμματισμένου ξύλου, έτοιμου προς χρήση). Σημαντική σημείωση: Για να πραγματοποιηθούν οι υπολογισμοί όπως προβλέπεται, πρέπει να ενεργοποιηθούν οι μακροεντολές (macros) στις ρυθμίσεις του Excel. Σε περίπτωση που τα άλλα κελιά με τις τιμές μονάδας δεν είναι ενημερωμένα με τις αντίστοιχες τιμές μετατροπής, αφού έχει εισαχθεί μία τιμή, οι μακροεντολές δεν θα πρέπει να ενεργοποιηθούν. Παρακαλώ ελέγξτε τις ρυθμίσεις του Excel στο Tools => Macro | Security | Security level | Medium. | G34: Pret / unitate in [Euro/t SU] Introduceti pretul combustibilului / tona substanta uscata (SU) exprimat in Euro. Valoarea folosita va fi automat convertita in alte preturi unitare in campurile de mai jos, permitand astfel comparatii imediate ale p[returilor combustibililor in unitati diferite de pret. Exemplu: Larita, peleti de lemn , umiditate 30 % => 1 m³ echivalent 1*1*1 m sau 1 m³ talas cu un randament energetic de aprox. 970 kWh/m³ (vrac) => introduceti pretul in Euro/t DM ca si "80.00" => conversie imediata in 56.00 Euro/t FS, 15.59 Euro/m³ (Euro/m³ (vrac)), 16.04 Euro/MWh si 4.46 Euro/GJ. In scopul compararii preturilor, este important sa se ia in considerare punctul de vanzare si calitatea combustibilului lemnos deoarece costurile cu transportul si debitarea/macinarea reprezinta o parte importanta a costului total (e.g. punctul de vanzare la drumul de padure, sub forma bustenilor de copaci sau la nivelul fabricilor/centralelor termice sub forma talasului gata de folosit). Nota importanta: astfel incat calculele sa functioneze, trebuie activate functiile macro in setarile Excel. Daca celelalte preturi unitare nu se updateaza automat cu valorile respective convertite dupa ce o anummita valoare a fost introdusa in calcul, functiile macro nu au fost activate. Va rugam sa verificati setarile Excel la Tools => Macro | Security | Security Level | Medium. | H34: Цена за единица в [Евро/тон СВ] Въведете цената на горивото евро за тон сухо вещество (СВ). Въведената стойност веднага ще бъде преобразувана в други парични единици в полетата по-долу, позволявайки по този начин незабавно сравнение на цените на горивата в различни ценови единици. Пример; | I34: Jednotková cena v [Euro/t DM] Zadajte cenu paliva v Euro za tonu sušiny (DM). Zadaná hodnota bude okamžite prepočítaná na ostatné cenové jednotky v poliach nižšie, čo umožňuje okamžité porovnanie ceny paliva v rôznych cenových jednotkách. Príklad: Smrekovec, drevná štiepka , obsah vlhkosti 30 % => 1 m³ rovný 1*1*1 m alebo 1 voľný m³ sypanej drevnej štiepky s hrubým energetickým obsahom 970 kWh/m³(voľná) => zadajte cenu v Euro/t DM ako "80.00" => okamžitý prepočet 56.00 Euro/t FS, 15.59 Euro/m³ (Euro/m³(voľná)), 16.04 Euro/MWh a 4.46 Euro/GJ. Pre cenové porovnania je dôležité zobrať v úvahu bod predaja a kvalitu paliva podľa výberu, nakoľko cena prepravy a štiepkovania môže tvoriť podstatnú časť celkových nákladov. (t.j. bod predaja na lesnej ceste vo forme guľatiny alebo v teplárni, zariadení KVET, vo forme štiepky pripravenej na použitie). Dôležitá poznámka: Aby výpočet správne pracoval, musia byť aktivované makrá v nastaveniach Excelu. Ak sa bunky pre ostatné cenové jednotky nezmenia vzhľadom na príslušné prepočítané hodnoty po zadaní jednej hodnoty, makrá nie sú aktivované. Prosím skontrolujte si nastavenia Excelu pod Nástroje => Makrá | Bezpečnosť | úroveň zabezpečenia | Stredná. | J34: Hinta per yksikkö [Euro/t DM] | K34: Cena za jednostkę w [Euro/t s.m.] Wpisz cenę paliwa w Euro za tonę suchej masy (s.m.) Wpisana wartość zostanie natychmiast przeliczona na inne jednostki ceny w polach poniżej pozwalając na szybkie porównanie cen paliwa w różnych jednostkach cenowych. Przykład: Modrzew, trociny , zawartość wilgoci 30 % => 1 m³ równy 1*1*1 m lub 1 luz m³ sypkich trocin z zawartością energii chemicznej w paliwie około 970 kWh/m³(luz) => wpisz cenę w Euro/t s.m. jako "80.00" => natychmiastowe przeliczenie w 56.00 Euro/t ś.m., 15.59 Euro/m³ (Euro/m³(luz)), 16.04 Euro/MWh i 4.46 Euro/GJ. Przy porównywaniu ceny ważne jest wzięcie pod uwagę punktu sprzedaży i jakość asortymentu paliw drzewnych, ponieważ koszt transportu i rozdrobnienia mogą stanowić znaczną część całkowitego kosztu (n.p. punkt sprzedaży w lesie w formie kłód lub punkt sprzedaży w ciepłowni w formie trocin gotowych do użycia). Ważna uwaga: W celu prawidłowej kalkulacji należy włączyć makra w ustawieniach Excela. Jeżeli inne komórki cenowe nie zostaną wypełnione odpowiednimi przeliczonymi cenami, makra nie zostały aktywowane. Proszę sprawdzić ustawienia Excel=> Narzędzia | Makra | Bezpieczeństwo | Poziom bezpieczeństwa | Ustawić na średni Tools | Macro | Security | Security level | set to "Medium".
A35: E38 | B35: Price per unit in [Euro/t FS] Enter the fuel price in Euro per tonne fresh substance (FS). The entered value will immediately be converted into the other price units in the fields below and above, thus allowing immediate comparison of fuel prices in the different price units. Example: Larch, wood chips , moisture content 30 % => 1 m³ equals 1*1*1 m or 1 loose m³ of poured wood chips with an energy content of roughly 970 kWh/m³(loose) => enter price in Euro/t FS as "60.00" => immediate conversion into 85.71 Euro/t DM, 16.71 Euro/m³ (Euro/m³(loose)), 17.19 Euro/MWh and 4.77 Euro/GJ. For price comparisons, it is essential to consider the point of sale and the fuel quality of the wood fuel assortment since transportation and chopping costs can account for a significant part of the overall costs (e.g. point of sale at forest roadside in the form of roundwood or at heating plant or CHP plant in the form of ready-to-use wood chips). Important note: For the calculations to work as intended, macros have to be activated in the Excel settings. Should the other price unit cells not be updated with the respective converted values after one value has been entered, the macros have not been activated. Please check your Excel settings under Tools => Macro | Security | Security Level | Medium. | C35: Preis pro Einheit in [Euro/t FS] bzw. [Euro/t-lutro] Geben Sie hier den Brennstoffpreis in Euro pro Tonne Frischsubstanz (FS) bzw. in Euro pro t-lutro ein. Es erfolgt eine sofortige Umrechnung des eingegebenen Wertes in die weiteren Einheiten in den oben- bzw. untenstehenden Feldern. Dadurch ist ein sofortiger Vergleich der Brennstoffpreise in den verschiedenen Einheiten möglich. Beispiel: Lärche, Holzhackgut , Wassergehalt 30 % => 1 m³ entspricht 1*1*1 m bzw. 1 srm lose geschüttetem Hackgut mit ca. 970 kWh/srm Energieinhalt => Preiseingabe in Euro/t FS (bzw. Euro/t-lutro) mit "60,00" => sofortige Umrechnung in 85,71 Euro/t TS bzw. 16,71 Euro/m³ (entspricht Euro/srm) bzw. 17,19 Euro/MWh bzw. 4,77 Euro/GJ. Bei Preisvergleichen muss unbedingt auf den Erfüllungsort und die Brennstoffqualität des Energieholzsortiments geachtet werden, da die Transport- und Hackkosten einen erheblichen Teil der Gesamtkosten ausmachen können (z. B. Erfüllungsort frei Waldstraße als Rundholz oder frei Heizwerk bzw. KWK-Anlage als fertiges Hackgut). Wichtiger Hinweis: Zur Ausführung der Berechnungsroutinen müssen Makros in den Excelvoreinstellungen aktiviert sein. Falls nach der Eingabe in einem Preisfeld keine sofortige Umrechnung in die anderen Preiseinheiten erfolgt, wurden die Makros nicht aktiviert. Überprüfen Sie Ihre Einstellungen in Excel unter Extras => Makro | Sicherheit | Sicherheitsstufe | Mittel. | D35: Jedinična cijena u [Eur/t FS] Važna napomena: Da bi izračunska tablica radila ispravno, potrebno je u Excel postavkama aktivirati makro funkcije. Ukoliko se nakon unosa određene vrijednosti polje 'ostale jedinične cijene' ne ažurira, makroi nisu aktivirani. Provjerite Excel postavke koje trebaju biti Tools => Macro | Security | Security Level | Medium | E35: Ціна за одиницю у [грн./т СВР] Введіть ціну палива в грн. за тонну свіжої речовини (СВР). Введене значення одразу перерахується в інші одиниці в полях нижче і вище, що дасть можливість порівняти ціни . Приклад: Модрина, деревна тріска , вологість 30 % => 1 м³ дорівнює 1*1*1 м або 1 м³ насипом деревної тріски з енерговмістом порядку 970 кВт*год/м³ (насипом) => введіть ціну у грн./т СВР, наприклад, "60.00" => миттєвий перерахунок у 85,71 грн./т СР, 16,71 грн/м³ (грн./м³ (насипом)), 17,19 грн./МВт*год та 4,77 грн./ГДж. Для порівняння цін важливо брати до уваги точку продажу та якість деревного палива, оскільки вартість транспортування та подрібнення можуть складати значну частку загальної вартості (наприклад, продаж круглих лісоматеріалів на узбіччі лісу або продаж підготовленої до спалювання деревної тріски на котельні або ТЕЦ). Важливе зауваження: Для належного проведення розрахунків необхідно активувати макроси в настройках програми Excel. Якщо уведене значення не перераховується в інші одиниці ціни, це означає, що макроси не активовані. Перевірте настройки вашої програми Excel в розділі Інструменти => Макроси | Безпека | Рівень безпеки | Середній. | F35: Τιμή ανά μονάδα σε [Ευρώ/t ΝΟ] Εισάγετε την τιμή των καυσίμων σε Ευρώ ανά τόνο νωπής ουσίας (ΝΟ). Η καταχωρημένη τιμή θα μετατραπεί αμέσως σε τιμή άλλων μονάδων στα παρακάτω πεδία, επιτρέποντας έτσι την άμεση σύγκριση των τιμών των καυσίμων σε διάφορες μονάδες τιμών. Παράδειγμα: Λάριξ, θρυμματισμένο ξύλο , περιεχόμενη υγρασία 30% => 1 m³ ισούται με 1 * 1 * 1 m ή 1 χωρικό m³ θρυμματισμένου ξύλου χύμα με ενεργειακό περιεχόμενο περίπου 970 kWh/m³ (χύμα) => εισάγετε το "60,00" ως τιμή σε ευρώ/τόνο ξηρής ουσίας => άμεση μετατροπή σε 85,71 ευρώ/τόνο νωπής ουσίας, 16,71 ευρώ/m³ (ευρώ/m³ (χύμα)), 17,19 Ευρώ/MWh και 4,77 ευρώ/GJ. Για τις συγκρίσεις των τιμών, είναι απαραίτητο να ληφθούν υπόψη το σημείο πώλησης και η ποιότητα του είδους του καύσιμου ξύλου, καθώς το κόστος μεταφοράς και θρυμματισμού μπορεί καλύπτει ένα σημαντικό μέρος του συνολικού κόστους (π.χ. σημείο πώλησης στο δασόδρομο με τη μορφή στρογγυλού ξύλου ή σε εγκαταστάσεις θέρμανσης ή μονάδα συμπαραγωγής σε μορφή θρυμματισμένου ξύλου έτοιμου προς χρήση). Σημαντική σημείωση: Για να πραγματοποιηθούν οι υπολογισμοί όπως προβλέπεται, πρέπει να ενεργοποιηθούν οι μακροεντολές (macros) στις ρυθμίσεις του Excel. Σε περίπτωση που τα άλλα κελιά με τις μονάδες τιμών δεν είναι ενημερωμένα με τις αντίστοιχες τιμές μετατροπής, αφού έχει εισαχθεί μία τιμή, οι μακροεντολές δεν θα πρέπει να ενεργοποιηθούν. Παρακαλώ ελέγξτε τις ρυθμίσεις του Excel στο Tools => Macro | Security | Security level | Medium. | G35: Pret / unitate in [Euro/t MB] Introduceti pretul combustibilului / tona substanta bruta (MB) exprimat in Euro. Valoarea folosita va fi automat convertita in alte preturi unitare in campurile de mai jos, permitand astfel comparatii imediate ale preturilor combustibililor in unitati diferite de pret. Exemplu: Larita, talas de lemn , umiditate 30 % => 1 m³ echivalent 1*1*1 m sau 1 m³ talas cu un randament energetic de aprox. 970 kWh/m³ (vrac) => introduceti pretul in Euro/t MB ca si "60.00" => conversie imediata in 85.71 Euro/t SU, 16.71 Euro/m³ (Euro/m³(vrac)), 17.19 Euro/MWh si 4.77 Euro/GJ. In scopul compararii preturilor, este important sa se ia in considerare punctul de vanzare si calitatea combustibilului lemnos deoarece costurile cu transportul si debitarea/macinarea reprezinta o parte importanta a costului total (e.g. punctul de vanzare la drumul de padure, sub forma bustenilor de copaci sau la nivelul fabricilor/centralelor termice sub forma talasului gata de folosit). Nota importanta: astfel incat calculele sa functioneze, trebuie activate functiile macro in setarile Excel. Daca celelalte preturi unitare nu se updateaza automat cu valorile respective convertite dupa ce o anummita valoare a fost introdusa in calcul, functiile macro nu au fost activate. Va rugam sa verificati setarile Excel la Tools => Macro | Security | Security Level | Medium. | H35: Цена за единица в [Евро/тон ПВ] Въведете цената на горивото евро за тон прясно вещество (ПВ). Въведената стойност веднага ще бъде преобразувана в други парични единици в полетата по-долу, позволявайки по този начин незабавно сравнение на цените на горивата в различни ценови единици. Пример; С цел намаляване на рисковете, свързани със сделки дървесно гориво, се препоръчва да се създаде договори (в евро за тон СВ или евро на MWh), които заемат по-голямата част теглото и съдържанието на влага под внимание. | I35: Jednotková cena v [Euro/t FS] Zadajte cenu paliva v Euro za tonu čerstvej zložky (FS). Zadaná hodnota bude okamžite prepočítaná na ostatné cenové jednotky v poliach nižšie, čo umožňuje okamžité porovnanie ceny paliva v rôznych cenových jednotkách. Príklad: Smrekovec, drevná štiepka , obsah vlhkosti 30 % => 1 m³ rovný 1*1*1 m alebo 1 voľný m³ sypanej drevnej štiepky s hrubým energetickým obsahom 970 kWh/m³(voľnej) => zadajte cenu v Euro/t FS ako "60.00" => okamžitý prepočet 85.71 Euro/t FS, 16.71 Euro/m³ (Euro/m³(voľná)), 17.19 Euro/MWh a 4.77 Euro/GJ Pre cenové porovnania je dôležité zobrať v úvahu bod predaja a kvalitu paliva podľa výberu, nakoľko cena prepravy a štiepkovania môže tvoriť podstatnú časť celkových nákladov. (t.j. bod predaja na lesnej ceste vo forme guľatiny alebo v teplárni, zariadení KVET vo forme štiepky pripravenej na použitie). Dôležitá poznámka: Aby výpočet správne pracoval, musia byť aktivované makrá v nastaveniach Excelu. Ak sa bunky pre ostatné cenové jednotky nezmenia vzhľadom na príslušné prepočítané hodnoty po zadaní jednej hodnoty, makrá nie sú aktivované. Prosím skontrolujte si nastavenia Excelu pod Nástroje => Makrá | Bezpečnosť | úroveň zabezpečenia | Stredná. | J35: Hinta per yksikkö [Euro/t FS] | K35: Cena za jednostkę w [Euro/t FS] Wpisz cenę paliwa w Euro za tonę świeżęj masy (ś.m.). Wpisana wartość zostanie natychmiast przeliczona w inne jednostki ceny w polach poniżej pozwalająć na szybkie porównanie cen paliwa w różnych jednostkach cenowych. Przykład: Modrzew, trociny , zawartość wilgoci 30 % => 1 m³ równy 1*1*1 m lub 1 luz m³ sypkich trocin z zawartością energii około 970 kWh/m³(luz) => wpisz cenę w Euro/t ś.m. jako "60.00" => natychmiastowe przeliczenie w 85.71 Euro/t s.m., 16.71 Euro/m³ (Euro/m³(luz)), 17.19 Euro/MWh i 4.77 Euro/GJ. Przy porównywaniu ceny ważne jest wzięcie pod uwagę punkt sprzedaży i jakość asortymentu paliwa drzewnego ponieważ koszt transport i rozdrobnienia mogą stanowić znaczną część całkowitego kosztu (n.p. punkt sprzedaży w lesię w formie kłód lub punkt sprzedaży w ciepłowni w formie trocin gotowych do użycia). Ważna uwaga: W celu prawidłowej kalkulacji należy włączyć makra w ustawieniach Excela. Jeżeli inne komórki cenowe nie zostaną wypełnione odpowiednimi przeliczonymi cenami, makra nie zostały aktywowane. Proszę sprawdzić ustawienia Excel=> Narzędzia | Makra | Bezpieczeństwo | Poziom bezpieczeństwa | ustawić na średni Tools | Macro | Security | Security level | set to "Medium".
A36: E39 | B36: Price per unit in [Euro/m³ FS] Enter the fuel price in Euro per m³ fresh substance (FS). The m³ unit refers to the unit used in wood fuel trade for the selected assortment. The entered value will immediately be converted into the other price units in the fields below and above, thus allowing immediate comparison of fuel prices in the different price units. Example: Larch, wood chips , moisture content 30 % => 1 m³ equals 1*1*1 m or 1 loose m³ of poured wood chips with an energy content of roughly 970 kWh/m³(loose) => enter price in Euro/m³ (equals Euro/m³(loose)) as "17.50" => immediate conversion into 89.78 Euro/t DM, 62.85 Euro/t FS, 18.00 Euro/MWh and 5.00 Euro/GJ. For price comparisons, it is essential to consider the point of sale and the fuel quality of the wood fuel assortment since transportation and chopping costs can account for a significant part of the overall costs (e.g. point of sale at forest roadside in the form of roundwood or at heating plant or CHP plant in the form of ready-to-use wood chips). Important note: For the calculations to work as intended, macros have to be activated in the Excel settings. Should the other price unit cells not be updated with the respective converted values after one value has been entered, the macros have not been activated. Please check your Excel settings under Tools => Macro | Security | Security Level | Medium. | C36: Preis pro Einheit in [Euro/m³ FS] Geben Sie hier den Brennstoffpreis in Euro pro m³ Frischsubstanz (FS) ein. Das m³-Maß bezieht sich auf das oben eingestellte Sortiment. Es erfolgt eine sofortige Umrechnung des eingegebenen Wertes in die weiteren Einheiten in den oben- bzw. untenstehenden Feldern. Dadurch ist ein sofortiger Vergleich der Brennstoffpreise in den verschiedenen Einheiten möglich. Beispiel: Lärche, Holzhackgut , Wassergehalt 30 % => 1 m³ entspricht 1*1*1 m bzw. 1 srm lose geschüttetem Hackgut mit ca. 970 kWh/srm Energieinhalt => Preiseingabe in Euro/m³ (entspricht Euro/srm) mit "17,50" => sofortige Umrechnung in 89,78 Euro/t TS bzw. 62,85 Euro/t FS bzw. 18,00 Euro/MWh bzw. 5,00 Euro/GJ. Bei Preisvergleichen muss unbedingt auf den Erfüllungsort und die Brennstoffqualität des Energieholzsortiments geachtet werden, da die Transport- und Hackkosten einen erheblichen Teil der Gesamtkosten ausmachen können (z. B. Erfüllungsort frei Waldstraße als Rundholz oder frei Heizwerk bzw. KWK-Anlage als fertiges Hackgut). Wichtiger Hinweis: Zur Ausführung der Berechnungsroutinen müssen Makros in den Excelvoreinstellungen aktiviert sein. Falls nach der Eingabe in einem Preisfeld keine sofortige Umrechnung in die anderen Preiseinheiten erfolgt, wurden die Makros nicht aktiviert. Überprüfen Sie Ihre Einstellungen in Excel unter Extras => Makro | Sicherheit | Sicherheitsstufe | Mittel. | D36: Jedinična cijena u [Eur/m³ FS] Važna napomena: Da bi izračunska tablica radila ispravno, potrebno je u Excel postavkama aktivirati makro funkcije. Ukoliko se nakon unosa određene vrijednosti polje 'ostale jedinične cijene' ne ažurira, makroi nisu aktivirani. Provjerite Excel postavke koje trebaju biti Tools => Macro | Security | Security Level | Medium | E36: Ціна за одиницю у [грн./т СВР] Введіть ціну палива в грн. за тонну свіжої речовини (СВР). Одиниця виміру м³ відноситься до одиниць, що застосовуються в операціях купівлі-продажу вибраних видів деревного палива Введене значення одразу перерахується в інші одиниці в полях нижче і вище, що дасть можливість порівняти ціни . Приклад: Модрина, деревна тріска , вологість 30 % => 1 м³ дорівнює 1*1*1 м або 1 м³ насипом деревної тріски з енерговмістом порядку 970 кВт*год/м³ (насипом) => введіть ціну у грн./м³ (дорівнює грн./м³ (насипом)), наприклад, "17,50" => миттєвий перерахунок у 89,78 грн./т СР, 62,85 грн/т, 18,00 грн./МВт*год та 5,00 грн./ГДж. Для порівняння цін важливо брати до уваги точку продажу та якість деревного палива, оскільки вартість транспортування та подрібнення можуть складати значну частку загальної вартості (наприклад, продаж круглих лісоматеріалів на узбіччі лісу або продаж підготовленої до спалювання деревної тріски на котельні або ТЕЦ). Важливе зауваження: Для належного проведення розрахунків необхідно активувати макроси в настройках програми Excel. Якщо уведене значення не перераховується в інші одиниці ціни, це означає, що макроси не активовані. Перевірте настройки вашої програми Excel в розділі Інструменти => Макроси | Безпека | Рівень безпеки | Середній. | F36: "Τιμή ανά μονάδα σε [Ευρώ/m³ ΝΟ] Εισάγετε την τιμή του καυσίμου σε ευρώ ανά m³ νωπής ουσίας (ΝΟ). Το m³ αναφέρεται στη μονάδα που χρησιμοποιείται στο εμπόριο καυσίμων ξύλου για το επιλεγμένο είδος. Η καταχωρημένη τιμή θα μετατραπεί αμέσως σε τιμή άλλων μονάδων στα παρακάτω πεδία, επιτρέποντας έτσι την άμεση σύγκριση των τιμών των καυσίμων σε διάφορες μονάδες τιμών. Παράδειγμα: Λάριξ, θρυμματισμένο ξύλο , περιεχόμενη υγρασία 30% => 1 m³ ισούται με 1 * 1 * 1 m ή 1 χωρικό m³ θρυμματισμένου ξύλου χύμα με ενεργειακό περιεχόμενο περίπου 970 kWh/m³ (χύμα) => εισάγετε "17,50" ως τιμή σε Ευρώ/m³ (ίση με Ευρώ/m³ (χύμα)) => άμεση μετατροπή σε 89,78 ευρώ/τόνο ξηρής ουσίας, 62,85 ευρώ/τόνο νωπής ουσίας, 18,00 ευρώ/MWh και 5,00 ευρώ/GJ. Για τις συγκρίσεις των τιμών, είναι απαραίτητο να ληφθούν υπόψη το σημείο πώλησης και η ποιότητα του είδους του καύσιμου ξύλου, καθώς το κόστος μεταφοράς και θρυμματισμού μπορεί καλύπτει ένα σημαντικό μέρος του συνολικού κόστους (π.χ. σημείο πώλησης στο δασόδρομο με τη μορφή στρογγυλού ξύλου ή σε εγκαταστάσεις θέρμανσης ή μονάδα συμπαραγωγής σε μορφή θρυμματισμένου ξύλου έτοιμου προς χρήση). Σημαντική σημείωση: Για να πραγματοποιηθούν οι υπολογισμοί όπως προβλέπεται, πρέπει να ενεργοποιηθούν οι μακροεντολές (macros) στις ρυθμίσεις του Excel. Σε περίπτωση που τα άλλα κελιά με τις μονάδες τιμών δεν είναι ενημερωμένα με τις αντίστοιχες τιμές μετατροπής, αφού έχει εισαχθεί μία τιμή, οι μακροεντολές δεν θα πρέπει να ενεργοποιηθούν. Παρακαλώ ελέγξτε τις ρυθμίσεις του Excel στο Tools => Macro | Security | Security level | Medium. | G36: Pret / unitate in [Euro/ m³ MB] Introduceti pretul combustibilului pe m³ materie bruta proaspata (MB) exprimat in Euro. Valoarea folosita va fi automat convertita in alte preturi unitare in campurile de mai jos, permitand astfel comparatii imediate ale preturilor combustibililor in unitati diferite de pret. Exemplu: Larita, talas de lemn , umiditate 30 % => 1 m³ echivalent 1*1*1 m sau 1 m³ talas cu un randament energetic de aprox. 970 kWh/m³ (vrac) => introduceti pretul in Euro/m³ (egal cu Euro/m³(vrac)) ca si "17.50" => conversie imediata in 89.78 Euro/t SU, 62.85 Euro/t MB, 18.00 Euro/MWh si 5.00 Euro/GJ. In scopul compararii preturilor, este important sa se ia in considerare punctul de vanzare si calitatea combustibilului lemnos deoarece costurile cu transportul si debitarea/macinarea reprezinta o parte importanta a costului total (e.g. punctul de vanzare la drumul de padure, sub forma bustenilor de copaci sau la nivelul fabricilor/centralelor termice sub forma talasului gata de folosit). Nota importanta: astfel incat calculele sa functioneze, trebuie activate functiile macro in setarile Excel. Daca celelalte preturi unitare nu se updateaza automat cu valorile respective convertite dupa ce o anummita valoare a fost introdusa in calcul, functiile macro nu au fost activate. Va rugam sa verificati setarile Excel la Tools => Macro | Security | Security Level | Medium. | H36: Цена за единица в [Евро/куб.м ПВ] Въведете цената на горивото в евро за кубически метър прясно вещество (ПВ). Единицата m³ се отнася за единицата използвана в търговията с дървесно гориво за избрания асортимент. Въведената стойност веднага ще бъде преобразувана в други парични единици в полетата по-долу и по-горе, позволявайки по този начин незабавно сравнение на цените на горивата в различни ценови единици. Пример | I36: Jednotková cena v [Euro/m³ FS] Zadajte cenu paliva v Euro za m³ čerstvej zložky (FS). Zadaná hodnota bude okamžite prepočítaná na ostatné cenové jednotky v poliach nižšie, čo umožňuje okamžité porovnanie ceny paliva v rôznych cenových jednotkách. Príklad: Smrekovec, drevná štiepka , obsah vlhkosti 30 % => 1 m³ rovný 1*1*1 m alebo 1 voľný m³ sypanej drevnej štiepky s hrubým energetickým obsahom 970 kWh/m³(voľná) => zadajte cenu v Euro/m³ (rovné Euro/m³(voľná)) ako "17.50" => okamžitý prepočet do 89.78 Euro/t DM, 62.85 Euro/t FS, 18.00 Euro/MWh a 5.00 Euro/GJ Pre cenové porovnania je dôležité zobrať v úvahu bod predaja a kvalitu paliva podľa výberu, nakoľko cena prepravy a štiepkovania môže tvoriť podstatnú časť celkových nákladov. (t.j. bod predaja na lesnej ceste vo forme guľatiny alebo v teplárni, zariadení KVET vo forme štiepky pripravenej na použitie). Dôležitá poznámka: Aby výpočet správne pracoval, musia byť aktivované makrá v nastaveniach Excelu. Ak sa bunky pre ostatné cenové jednotky nezmenia vzhľadom na príslušné prepočítané hodnoty po zadaní jednej hodnoty, makrá nie sú aktivované. Prosím skontrolujte si nastavenia Excelu pod Nástroje => Makrá | Bezpečnosť | úroveň zabezpečenia | Stredná. | J36: Hinta per yksikkö [Euro/m³ FS] | K36: Cena za jednostkę w [Euro/m³ ś.m.] Wpisz cenę paliwa w Euro za m³ świeżej masy (ś.m.). Jednostka m³ odnosi się do jednostki używanej w handlu paliwem drzewnym dla wybranego asortymentu. Wpisana wartość zostanie natychmiast przeliczona na inne jednostki ceny w polach poniżej pozwalając na szybkie porównanie cen paliwa w różnych jednostkach cenowych. Przykład: Modrzew, trociny , zawartość wilgoci 30 % => 1 m³ równy 1*1*1 m lub 1 luz m³ sypkich trocin z zawartością energii chemicznej w paliwie około 970 kWh/m³(luz) => wpisz cenę w Euro/m³ (równą Euro/m³(luz)) jako "17.50" => natychmiastowe przeliczenie w 89.78 Euro/t s.m., 62.85 Euro/t ś.m., 18.00 Euro/MWh i 5.00 Euro/GJ. Przy porównywaniu ceny ważne jest wzięcie pod uwagę punktu sprzedaży i jakość asortymentu paliwa drzewnego, ponieważ koszt transportu i rozdrobnienia mogą stanowić znaczną część całkowitego kosztu (n.p. punkt sprzedaży w lesie w formie kłód lub punkt sprzedaży w ciepłowni w formie trocin gotowych do użycia). Ważna uwaga: W celu prawidłowej kalkulacji należy włączyć makra w ustawieniach Excela. Jeżeli inne komórki cenowe nie zostaną wypełnione odpowiednimi przeliczonymi cenami, makra nie zostały aktywowane. Proszę sprawdzić ustawienia Excel=> Narzędzia | Makra | Bezpieczeństwo | Poziom bezpieczeństwa | ustawić na średni Tools | Macro | Security | Security level | set to "Medium".
A37: E40 | B37: Price per unit in [Euro/MWh] Enter the fuel price in Euro per MWh. The entered value will immediately be converted into the other price units in the fields below and above, thus allowing immediate comparison of fuel prices in the different price units. Example: Larch, wood chips , moisture content 30 % => 1 m³ equals 1*1*1 m or 1 loose m³ of poured wood chips with an energy content of roughly 970 kWh/m³(loose) => enter price in Euro/MWh as "17.00" => immediate conversion into 84.77 Euro/t DM, 59.34 Euro/t FS, 16.52 Euro/m³ (Euro/m³(loose)) and 4.72 Euro/GJ. For price comparisons, it is essential to consider the point of sale and the fuel quality of the wood fuel assortment since transportation and chopping costs can account for a significant part of the overall costs (e.g. point of sale at forest roadside in the form of roundwood or at heating plant or CHP plant in the form of ready-to-use wood chips). Important note: For the calculations to work as intended, macros have to be activated in the Excel settings. Should the other price unit cells not be updated with the respective converted values after one value has been entered, the macros have not been activated. Please check your Excel settings under Tools => Macro | Security | Security Level | Medium. | C37: Preis pro Einheit in [Euro/MWh] Geben Sie hier den Brennstoffpreis in Euro pro MWh ein. Es erfolgt eine sofortige Umrechnung des eingegebenen Wertes in die weiteren Einheiten in den oben- bzw. untenstehenden Feldern. Dadurch ist ein sofortiger Vergleich der Brennstoffpreise in den verschiedenen Einheiten möglich. Beispiel: Lärche, Holzhackgut , Wassergehalt 30 % => 1 m³ entspricht 1*1*1 m bzw. 1 srm lose geschüttetem Hackgut mit ca. 970 kWh/srm Energieinhalt => Preiseingabe in Euro/MWh mit "17,00" => sofortige Umrechnung in 84,77 Euro/t TS bzw. 59,34 Euro/t FS bzw. 16,52 Euro/m³ (entspricht Euro/srm) bzw. 4,72 Euro/GJ. Bei Preisvergleichen muss unbedingt auf den Erfüllungsort und die Brennstoffqualität des Energieholzsortiments geachtet werden, da die Transport- und Hackkosten einen erheblichen Teil der Gesamtkosten ausmachen können (z. B. Erfüllungsort frei Waldstraße als Rundholz oder frei Heizwerk bzw. KWK-Anlage als fertiges Hackgut). Wichtiger Hinweis: Zur Ausführung der Berechnungsroutinen müssen Makros in den Excelvoreinstellungen aktiviert sein. Falls nach der Eingabe in einem Preisfeld keine sofortige Umrechnung in die anderen Preiseinheiten erfolgt, wurden die Makros nicht aktiviert. Überprüfen Sie Ihre Einstellungen in Excel unter Extras => Makro | Sicherheit | Sicherheitsstufe | Mittel. | D37: Jedinična cijena u [Eur/MWh] Jedinična cijena u [Eur/t DM] Važna napomena: Da bi izračunska tablica radila ispravno, potrebno je u Excel postavkama aktivirati makro funkcije. Ukoliko se nakon unosa određene vrijednosti polje 'ostale jedinične cijene' ne ažurira, makroi nisu aktivirani. Provjerite Excel postavke koje trebaju biti Tools => Macro | Security | Security Level | Medium | E37: Ціна за одиницю у [грн./МВт*год] Введіть ціну палива в грн. за МВт*год. Введене значення одразу перерахується в інші одиниці в полях нижче і вище, що дасть можливість порівняти ціни . Приклад: Модрина, деревна тріска , вологість 30 % => 1 м³ дорівнює 1*1*1 м або 1 м³ насипом деревної тріски з енерговмістом порядку 970 кВт*год/м³ (насипом) => введіть ціну у грн./МВт*год, наприклад, "17,00" => миттєвий перерахунок у 84,77 грн./т СР, 59,34 грн/т СВР, 16,52 грн./м³ (грн./м³ (насипом)) та 4,72 грн./ГДж. Для порівняння цін важливо брати до уваги точку продажу та якість деревного палива, оскільки вартість транспортування та подрібнення можуть складати значну частку загальної вартості (наприклад, продаж круглих лісоматеріалів на узбіччі лісу або продаж підготовленої до спалювання деревної тріски на котельні або ТЕЦ). Важливе зауваження: Для належного проведення розрахунків необхідно активувати макроси в настройках програми Excel. Якщо уведене значення не перераховується в інші одиниці ціни, це означає, що макроси не активовані. Перевірте настройки вашої програми Excel в розділі Інструменти => Макроси | Безпека | Рівень безпеки | Середній. | F37: Τιμή ανά μονάδα [Euro/MWh] Εισάγετε την τιμή του καυσίμου σε Ευρώ ανά MWh. Η καταχωρημένη τιμή θα μετατραπεί αμέσως σε τιμή άλλων μονάδων στα παρακάτω πεδία, επιτρέποντας έτσι την άμεση σύγκριση των τιμών των καυσίμων σε διάφορες μονάδες τιμών. Παράδειγμα: Λάριξ, θρυμματισμένο ξύλο , περιεχόμενη υγρασία 30% => 1 m³ ισούται με 1 * 1 * 1 m ή 1 χωρικό m³ θρυμματισμένου ξύλου χύμα με ενεργειακό περιεχόμενο περίπου 970 kWh/m³ (χύμα) => εισάγετε "17,50" ως τιμή σε Ευρώ/MWh => άμεση μετατροπή σε 84,77 ευρώ/τόνο ξηρής ουσίας, 59,34 ευρώ/τόνο νωπής ουσίας, 16,52 ευρώ/MWh και 4,72 ευρώ/GJ. Για τις συγκρίσεις των τιμών, είναι απαραίτητο να ληφθούν υπόψη το σημείο πώλησης και η ποιότητα του είδους του καύσιμου ξύλου, καθώς το κόστος μεταφοράς και θρυμματισμού μπορεί να καλύπτει ένα σημαντικό μέρος του συνολικού κόστους (π.χ. σημείο πώλησης στο δασόδρομο με τη μορφή στρογγυλού ξύλου ή σε εγκαταστάσεις θέρμανσης ή μονάδα συμπαραγωγής σε μορφή θρυμματισμένου ξύλου έτοιμου προς χρήση). Σημαντική σημείωση: Για να πραγματοποιηθούν οι υπολογισμοί όπως προβλέπεται, πρέπει να ενεργοποιηθούν οι μακροεντολές (macros) στις ρυθμίσεις του Excel. Σε περίπτωση που τα άλλα κελιά με τις μονάδες τιμών δεν είναι ενημερωμένα με τις αντίστοιχες τιμές μετατροπής, αφού έχει εισαχθεί μία τιμή, οι μακροεντολές δεν θα πρέπει να ενεργοποιηθούν. Παρακαλώ ελέγξτε τις ρυθμίσεις του Excel στο Tools => Macro | Security | Security level | Medium. | G37: Pret / unitate in [Euro/MWh] Introduceti pretul combustibilului in Euro pe MWh. Valoarea folosita va fi automat convertita in alte preturi unitare in campurile de mai jos, permitand astfel comparatii imediate ale preturilor combustibililor in unitati diferite de pret. Exemplu: Larita, talas de lemn , umiditate 30 % => 1 m³ echivalent 1*1*1 m sau 1 m³ vrac de talas cu un randament energetic de aprox. 970 kWh/m³ (vrac) => introduceti pretul in Euro/MWh ca si "17.00" => conversie imediata in 84.77 Euro/t SU, 59.34 Euro/m³ MB (Euro/m³(vrac)), 16.52 Euro/MWh si 4.72 Euro/GJ. In scopul compararii preturilor, este important sa se ia in considerare punctul de vanzare si calitatea combustibilului lemnos deoarece costurile cu transportul si debitarea/macinarea reprezinta o parte importanta a costului total (ex. punctul de vanzare la drumul de padure, sub forma bustenilor de copaci sau la nivelul fabricilor/centralelor termice sub forma talasului gata de folosit). Nota importanta: astfel incat calculele sa functioneze, trebuie activate functiile macro in setarile Excel. Daca celelalte preturi unitare nu se updateaza automat cu valorile respective convertite dupa ce o anummita valoare a fost introdusa in calcul, functiile macro nu au fost activate. Va rugam sa verificati setarile Excel la Tools => Macro | Security | Security Level | Medium. | H37: Цена за единица в [Евро/МВтч] Въведете цената на горивото в евро за МВтч. Въведената стойност веднага ще бъде преобразувана в други парични единици в полетата по-долу и по-горе, позволявайки по този начин незабавно сравнение на цените на горивата в различни ценови единици. Пример: | I37: jednotková cena v [Euro/MWh] Zadajte cenu paliva v Euro za m³ na MWh. Zadaná hodnota bude okamžite prepočítaná na ostatné cenové jednotky v poliach nižšie, čo umožňuje okamžité porovnanie ceny paliva v rôznych cenových jednotkách. Príklad: Smrekovec, drevná štiepka , obsah vlhkosti 30 % => 1 m³ rovný 1*1*1 m alebo 1 voľný m³ sypanej drevnej štiepky s hrubým energetickým obsahom 970 kWh/m³(voľná) => zadajte cenu v Euro/MWh ako "17.00" => okamžitý prepočet do 84.77 Euro/t DM, 59.34 Euro/t FS, 16.52 Euro/m³ (Euro/m³(voľná)) a 4,72 Euro/GJ Pre cenové porovnania je dôležité zobrať v úvahu bod predaja a kvalitu paliva podľa výberu, nakoľko cena prepravy a štiepkovania môže tvoriť podstatnú časť celkových nákladov. (t.j. bod predaja na lesnej ceste vo forme guľatiny alebo v teplárni, zariadení KVET vo forme štiepky pripravenej na použitie). Dôležitá poznámka: Aby výpočet správne pracoval, musia byť aktivované makrá v nastaveniach Excelu. Ak sa bunky pre ostatné cenové jednotky nezmenia vzhľadom na príslušné prepočítané hodnoty po zadaní jednej hodnoty, makrá nie sú aktivované. Prosím skontrolujte si nastavenia Excelu pod Nástroje => Makrá | Bezpečnosť | úroveň zabezpečenia | Stredná. | J37: Hinta per yksikkö [Euro/MWh] | K37: Cena za jednostkę w [Euro/MWh] Wpisz cenę w Euro za MWh. Wpisana wartość zostanie natychmiast przeliczona w inne jednostki ceny w polach poniżej pozwalająć na szybkie porównanie cen paliwa w różnych jednostkach cenowych. Przykład: Modrzew, trociny , zawartość wilgoci 30 % => 1 m³ równy 1*1*1 m lub 1 luz m³ sypkich trocin z zawartością energii około 970 kWh/m³(luz) => wpisz cenę w Euro/MWh jako "17.00" => natychmiastowe przeliczenie w 84.77 Euro/t s.m., 59.34 Euro/t ś.m., 16.52 Euro/m³ (Euro/m³(luz)) i 4.72 Euro/GJ. Przy porównywaniu ceny ważne jest wzięcie pod uwagę punkt sprzedaży i jakość asortymentu paliwa drzewnego ponieważ koszt transport i rozdrobnienia mogą stanowić znaczną część całkowitego kosztu (n.p. punkt sprzedaży w lesię w formie kłód lub punkt sprzedaży w ciepłowni w formie trocin gotowych do użycia). Ważna uwaga: W celu prawidłowej kalkulacji należy włączyć makra w ustawieniach Excela. Jeżeli inne komórki cenowe nie zostaną wypełnione odpowiednimi przeliczonymi cenami, makra nie zostały aktywowane. Proszę sprawdzić ustawienia Excel=> Narzędzia | Makra | Bezpieczeństwo | Poziom bezpieczeństwa | ustawić na średni Tools | Macro | Security | Security level | set to "Medium". | M37: 0 | O37: 0 | P37: 0 | Q37: 0
A38: E41 | B38: Price per unit in [Euro/GJ] In addition to the already mentioned units, fuel prices are also shown in Euro/GJ, facilitating conversion between Euro per MWh and Euro per GJ (conversion factor 3.6; i.e. 1 MWh = 3.6 GJ). Example: Larch, wood chips , moisture content 30 % => 1 m³ equals 1*1*1 m or 1 loose m³ of poured wood chips with an energy content of roughly 970 kWh/m³(loose) => enter price in Euro/MWh as "17.00" => immediate conversion into 84.77 Euro/t DM, 59.34 Euro/t FS, 16.52 Euro/m³ (Euro/m³(loose)) and 4.72 Euro/GJ. For price comparisons, it is essential to consider the point of sale and the fuel quality of the wood fuel assortment since transportation and chopping costs can account for a significant part of the overall costs (e.g. point of sale at forest roadside in the form of roundwood or at heating plant or CHP plant in the form of ready-to-use wood chips). Important note: For the calculations to work as intended, macros have to be activated in the Excel settings. Should the other price unit cells not be updated with the respective converted values after one value has been entered, the macros have not been activated. Please check your Excel settings under Tools => Macro | Security | Security Level | Medium. | C38: Preis pro Einheit in [Euro/GJ] Neben den bereits genannten Einheiten wird der Brennstoffpreis auch in der Einheit Euro/GJ dargestellt. Die Umrechnung erfolgt von Euro pro MWh in Euro pro GJ mit dem Faktor 3,6(1 MWh = 3,6 GJ). Es besteht hierdurch die Möglichkeit der Umrechnung z. B. von Euro/MWh in Euro/GJ. Beispiel: Lärche, Holzhackgut , Wassergehalt 30 % => 1 m³ entspricht 1*1*1 m bzw. 1 srm lose geschüttetem Hackgut mit ca. 970 kWh/srm Energieinhalt => Preiseingabe in Euro/MWh mit "17,00" => sofortige Umrechnung in 84,77 Euro/t TS bzw. 59,34 Euro/t FS bzw. 16,52 Euro/m³ (entspricht Euro/srm) bzw. 4,72 Euro/GJ. Bei Preisvergleichen muss unbedingt auf den Erfüllungsort und die Brennstoffqualität des Energieholzsortiments geachtet werden, da die Transport- und Hackkosten einen erheblichen Teil der Gesamtkosten ausmachen können (z. B. Erfüllungsort frei Waldstraße als Rundholz oder frei Heizwerk bzw. KWK-Anlage als fertiges Hackgut). Wichtiger Hinweis: Zur Ausführung der Berechnungsroutinen müssen Makros in den Excelvoreinstellungen aktiviert sein. Falls nach der Eingabe in einem Preisfeld keine sofortige Umrechnung in die anderen Preiseinheiten erfolgt, wurden die Makros nicht aktiviert. Überprüfen Sie Ihre Einstellungen in Excel unter Extras => Makro | Sicherheit | Sicherheitsstufe | Mittel. | D38: Jedinična cijena u [Eur/GJ] | E38: Ціна за одиницю у [грн./ГДж] Додатково до вже згаданих одиниць, ціни палива також показано у грн./ГДж для полегшення перерахунку між грн./МВт*год та грн./ГДж (коефіцієнт перерахунку 3,6; тобто 1 МВт*год = 3,6 ГДж). Приклад: Модрина, деревна тріска , вологість 30 % => 1 м³ дорівнює 1*1*1 м або 1 м³ насипом деревної тріски з енерговмістом порядку 970 кВт*год/м³ (насипом) => введіть ціну у грн./МВт*год, наприклад, "17,00" => миттєвий перерахунок у 84,77 грн./т СР, 59,34 грн/т СВР, 16,52 грн./м³ (грн./м³ (насипом)) та 4,72 грн./ГДж. Для порівняння цін важливо брати до уваги точку продажу та якість деревного палива, оскільки вартість транспортування та подрібнення можуть складати значну частку загальної вартості (наприклад, продаж круглих лісоматеріалів на узбіччі лісу або продаж підготовленої до спалювання деревної тріски на котельні або ТЕЦ). Важливе зауваження: Для належного проведення розрахунків необхідно активувати макроси в настройках програми Excel. Якщо уведене значення не перераховується в інші одиниці ціни, це означає, що макроси не активовані. Перевірте настройки вашої програми Excel в розділі Інструменти => Макроси | Безпека | Рівень безпеки | Середній. | F38: Τιμή ανά μονάδα σε [Ευρώ/GJ] Εκτός από τις ήδη αναφερθείσες μονάδες, οι τιμές των καυσίμων δίνονται επίσης σε Ευρώ/ GJ, διευκολύνοντας τη μετατροπή μεταξύ ευρώ ανά MWh και Ευρώ ανά GJ (συντελεστής μετατροπής 3,6, δηλαδή 1 MWh = 3,6 GJ). Παράδειγμα: Λάριξ, θρυμματισμένο ξύλο , περιεχόμενη υγρασία 30% => 1 m³ ισούται με 1 * 1 * 1 m ή 1 χωρικό m³ θρυμματισμένου ξύλου χύμα με ενεργειακό περιεχόμενο περίπου 970 kWh/m³ (χύμα) => εισάγετε "17,50" ως τιμή σε Ευρώ/MWh => άμεση μετατροπή σε 84,77 ευρώ/τόνο ξηρής ουσίας, 59,34 ευρώ/τόνο νωπής ουσίας, 16,52 ευρώ/MWh και 4,72 ευρώ/GJ. Για τις συγκρίσεις των τιμών, είναι απαραίτητο να ληφθούν υπόψη το σημείο πώλησης και η ποιότητα του είδους του καύσιμου ξύλου, καθώς το κόστος μεταφοράς και θρυμματισμού μπορεί να καλύπτει ένα σημαντικό μέρος του συνολικού κόστους (π.χ. σημείο πώλησης στο δασόδρομο με τη μορφή στρογγυλού ξύλου ή σε εγκαταστάσεις θέρμανσης ή μονάδα συμπαραγωγής σε μορφή θρυμματισμένου ξύλου έτοιμου προς χρήση). Σημαντική σημείωση: Για να πραγματοποιηθούν οι υπολογισμοί όπως προβλέπεται, πρέπει να ενεργοποιηθούν οι μακροεντολές (macros) στις ρυθμίσεις του Excel. Σε περίπτωση που τα άλλα κελιά με τις μανάδες τιμών δεν είναι ενημερωμένα με τις αντίστοιχες τιμές μετατροπής, αφού έχει εισαχθεί μία τιμή, οι μακροεντολές δεν θα πρέπει να ενεργοποιηθούν. Παρακαλώ ελέγξτε τις ρυθμίσεις του Excel στο Tools => Macro | Security | Security level | Medium. | G38: Pret / unitate in [Euro/GJ MB] Aditional la unitatile deja mentionate, preturile combustibilului de lemn sunt de asemenea exprimate in Euro/GJ, facilitand conversia dintre Euro pe MWh si Euro per GJ (factor de conversie 3.6; i.e. 1 MWh = 3.6 GJ). Exemplu: Larita, talas de lemn , umiditate 30 % => 1 m³ echivalent 1*1*1 m sau 1 m³ vrac de talas cu un randament energetic de aprox. 970 kWh/m³ (vrac) => introduceti pretul in Euro/t MB ca si "17.00" => conversie imediata in 84.77 Euro/t SU, 59.34 Euro/t MB, 16.52 Euro/m³ (Euro/m³(vrac) si 4.72 Euro/GJ. In scopul compararii preturilor, este important sa se ia in considerare punctul de vanzare si calitatea combustibilului lemnos deoarece costurile cu transportul si debitarea/macinarea reprezinta o parte importanta a costului total (ex. punctul de vanzare la drumul de padure, sub forma bustenilor de copaci sau la nivelul fabricilor/centralelor termice sub forma talasului gata de folosit). Nota importanta: astfel incat calculele sa functioneze, trebuie activate functiile macro in setarile Excel. Daca celelalte preturi unitare nu se updateaza automat cu valorile respective convertite dupa ce o anummita valoare a fost introdusa in calcul, functiile macro nu au fost activate. Va rugam sa verificati setarile Excel la Tools => Macro | Security | Security Level | Medium. | I38: jednotková cena v [Euro/GJ] Okrem už zmienených jednotiek, ceny paliva sú tiež zobrazené v Euro/GJ, uľahčujúce prepočet medzi Euro za MWh a Euro za GJ (prepočítavací koeficient 3.6; t.j. 1 MWh = 3.6GJ). Príklad: Smrekovec, drevná štiepka , obsah vlhkosti 30 % => 1 m³ rovný 1*1*1 m alebo 1 voľný m³ sypanej drevnej štiepky s hrubým energetickým obsahom 970 kWh/m³(voľná) => zadajte cenu v Euro/MWh ako "17.00" => okamžitý prepočet do 84.77 Euro/t DM, 59.34 Euro/t FS, 16.52 Euro/m³ (Euro/m³(voľná)) a 4,72 Euro/GJ Pre cenové porovnania je dôležité zobrať v úvahu bod predaja a kvalitu paliva podľa výberu, nakoľko cena prepravy a štiepkovania môže tvoriť podstatnú časť celkových nákladov. (t.j. bod predaja na lesnej ceste vo forme guľatiny alebo v teplárni, zariadení KVET vo forme štiepky pripravenej na použitie). Dôležitá poznámka: Aby výpočet správne pracoval, musia byť aktivované makrá v nastaveniach Excelu. Ak sa bunky pre ostatné cenové jednotky nezmenia vzhľadom na príslušné prepočítané hodnoty po zadaní jednej hodnoty, makrá nie sú aktivované. Prosím skontrolujte si nastavenia Excelu pod Nástroje => Makrá | Bezpečnosť | úroveň zabezpečenia | Stredná. | J38: Hinta per yksikkö [Euro/GJ] | K38: Cena za jednostkę w [Euro/GJ] Poza już wymienionymi jednostkami, ceny paliwa są też podawane w EuroGJ, ułatwiając przeliczenie pomiędzy Euro za MWh i Euro i GJ (przelicznik 3.6; tzn. 1 MWh = 3.6 GJ). Przykład: Modrzew, trociny , zawartość wilgoci 30 % => 1 m³ równy 1*1*1 m lub 1 luz m³ sypkich trocin z zawartością energii chemicznej w paliwie około 970 kWh/m³(luz) => wpisz cenę w Euro/MWh jako "17.00" => natychmiastowe przelicznie w 84.77 Euro/t DM, 59.34 Euro/t FS, 16.52 Euro/m³ (Euro/m³(luz)) i 4.72 Euro/GJ. Przy porównywaniu ceny ważne jest wzięcie pod uwagę punktu sprzedaży i jakość asortymentu paliwa drzewnego ponieważ koszt transportu i rozdrobnienia mogą stanowić znaczną część całkowitego kosztu (n.p. punkt sprzedaży w lesię w formie kłód lub punkt sprzedaży w ciepłowni w formie trocin gotowych do użycia). Ważna uwaga: W celu prawidłowej kalkulacji należy włączyć makra w ustawieniach Excela. Jeżeli inne komórki cenowe nie zostaną wypełnione odpowiednimi przeliczonymi cenami, makra nie zostały aktywowane. Proszę sprawdzić ustawienia Excel=> Narzędzia | Makra | Bezpieczeństwo | Poziom bezpieczeństwa | ustawić na średni Tools | Macro | Security | Security level | set to "Medium". | M38: 0 | O38: 0 | P38: 0 | Q38: 0
A39: E43 | B39: Fuel demand per year [MWh/a] The annual fuel demand of an installation can be estimated with the given fuel heat imput capacity (MW) and the expected full load hours per year (h) (MW * h = MWh). The annual full load hours can range from araound 1,500 h for small-scale installations for space heat generation to up to 8,000 h for process heat generating facilities for industrial purposes. For example, the estimated annual fuel demand of a biomass heating plant with a heat capacity of 1 MW and 1,500 full load hours is 1,500 MWh (corresponding to roughly 2,300 m³(loose) of wood chips), while a biomass CHP plant in the sawmill industry with a heat capacity of 24 MW and 7,500 full load hours would need 120 times as much fuel, i.e. 180,000 MWh (corresponding to roughly 270,000 m³(loose) of wood chips). | C39: Brennstoffbedarf pro Jahr [MWh/a] Der Jahresbrennstoffbedarf einer Anlage kann aus der Brennstoffwärmeleistung (MW) und den prognostizierten Jahresvolllaststunden (h) abgeschätzt werden (MW * h = MWh). Die Jahresvolllaststunden können Werte von ca. 1.500 h bei Kleinanlagen für die Raumwärmeerzeugung bis zu ca. 8.000 h bei Industrieanlagen für die Prozeßwärmeproduktion erreichen. So kann beispielsweise für ein Biomasseheizwerk mit 1 MW Brennstoffwärmeleistung und 1.500 Volllaststunden ein Brennstoffbedarf von 1.500 MWh (entspricht ca. 2.300 srm Hackgut) pro Jahr abgeschätzt werden, eine Biomasse-KWK-Anlage in der Sägeindustrie mit 24 MW Brennstoffwärmeleistung und 7.500 Volllasstunden würde hingegen den 120 fachen Brennstoffbedarf im Ausmaß von 180.000 MWh (entspricht ca. 270.000 srm Hackgut) pro Jahr generieren. | D39: Godišnja potrošnja goriva [MWh/a] | E39: Річна потреба у паливі [МВт*год/рік] Річна потреба у паливі енергоустановкою може бути оцінена для даної потужності по вхідному паливу (МВт) з урахуванням очікуваного періоду повного навантаження протягом року (години) (МВт * години = МВт*год). Період повного завантаження може мінятися від 1500 год/рік для маленьких опалювальних установок до 8000 год/рік для промислових установок, що виробляють технологічну теплоту. Наприклад, річна потреба в паливі котельної установки на біомасі тепловою потужністю 1 МВт та періодом повного навантаження 1500 год/рік оцінюється у 1500 МВт*год (відповідає приблизно 2300 м³ (насипом) деревної тріски), тоді як ТЕЦ на біомасі на лісопилці потужністю 24 MВт та періодом повного навантаження 7500 год/рік потребуватимя у 120 разів більше палива, тобто 180000 МВт*год (приблизно відповідає 270000 м³ (насипом) деревної тріски). | F39: Ζήτηση καυσίμου ανά έτος [MWh/a] Η ετήσια ζήτηση του καυσίμου μιας εγκατάστασης μπορεί να εκτιμηθεί με την καθορισμένη θερμοχωρητικότητα του καυσίμου (MW) και τις αναμενόμενες ώρες πλήρους φορτίου ανά έτος (h) (MW * h = MWh). Οι ετήσιες ώρες πλήρους φορτίου μπορεί να κυμαίνονται από περίπου 1500 ώρες, για εγκαταστάσεις μικρής κλίμακας για παραγωγή θέρμανσης χώρων, ως και 8000 ώρες, για τις εγκαταστάσεις παραγωγής θερμότητας διεργασιών για βιομηχανικούς σκοπούς. Για παράδειγμα, η εκτιμώμενη ετήσια ζήτηση καυσίμου της μονάδας θέρμανσης με βιομάζα, με θερμοχωρητικότητα 1 MW και 1500 ώρες πλήρους φορτίου είναι 1.500 MWh (που αντιστοιχεί σε περίπου 2.300 m³ θρυμματισμένου ξύλου (χύμα)), ενώ μια μονάδα συμπαραγωγής με βιομάζα, σε βιομηχανία πρίσης, με θερμοχωρητικότητα 24 MW και 7500 ώρες πλήρους φορτίου θα χρειαστεί 120 φορές περισσότερο καύσιμο, δηλαδή 180.000 MWh (που αντιστοιχεί σε περίπου 270.000 m³ θρυμματισμένου ξύλου (χύμα)). | G39: Cerinta de combustibil pe an [MWh/a] Cerinta de combustibili pentru o instalatie poate fi estimata cu capacitatea de input de combustibilul proiectata si in functie de perioada de functionare normala asteptata pe an (h) (MW * h = MWh) Perioada anuala de functionare in ore poate sa variaze de la aproximativ 1 500 h pentru instalatii mici pentru incalzirea spatiilor pana la 8 000 h pentru procesele de incalzire pentru facilitatile industriale. Exemplu: cererea anuala de combustibil al unei centrale pe biommasa cu o capacitate de 1 MW si 1,500 ore de functionare este de 1,500 MWh (corespunzand in mare 2 300 m³ vrac la talas), in timp ce CHP - centrala de cogenerare in industria morilor cu o capacitate de incalzire de 24 MW si 7 500 ore de functionare va avea nevoie de 120 de ori mai mult combustibil. ex. 180 000MWh (corespund in mare la 270 000 m³ de talas la vrac). | H39: Търсене на гориво за година [MWh/a] Годишната необходимост от гориво за дадена инсталация може да се оцени с въвеждането на топлинен капацитет на даден тип гориво (МВт) и очакваните часове с пълно натоварване за година (h) MW*h = MWh) | I39: Dopyt po teple za rok [MWh/r] Ročný odhad dopytu zariadenia po palive môže byť odhadnutý na základe danej vstupnej tepelnej kapacity (MW) a očakávanom plno zaťažení za rok (h) (MW*h = MWh). Ročné plné zaťaženie sa môže pohybovať okolo 1,500h pre malé zariadenia na výrobu tepla, do 8,000h pre zariadenia produkujúce procesné teplo pre priemyselné procesy. Napríklad, očakávaný ročný dopyt po palive v teplárni na biomasu s tepelnou kapacitou 1MW a 1,500 hodinami plného zaťaženia je 1,500MWh (zodpovedajúce v hrubom odhade 2,300m³ (voľná) drevnej štiepky)., kým kogeneračná jednotka na biomasu v drevospracujúcom priemysle s tepelnou kapacitou 24MW a 7,500 hodín plného zaťaženia bude potrebovať 120 krát viac paliva, t.j. 180,000MWh (zodpovedajúce v hrubom odhade 270,000m³ (voľná) drevnej štiepky). | J39: Polttoaineen kysyntä vuodessa [MWh/a] | K39: Roczne zapotrzebowanie na paliwo [MWh/rok] Roczne zapotrzebowanie na paliwo instalacji może być oszacowane na podstawie fuel heat input capacity (MW) i oczekiwanej ilości godzin (h) pracy przy pełnym obciążeniu w ciągu roku (MW * h = MWh). Roczna ilość godzin pracy przy pełnym obciążeniu może wynosić mędzy około 1,500 h dla małych instalacji ogrzewającach wnętrza do 8,000 h dla instalacji produkujących ciepło w procesach przemysłowych. Na przykład, szacowane roczne zapotrzebowanie na paliwo dla ciepłowni na biomasę o mocy nominalnej 1 MW i 1,500 godzinami pracy przy pełnym obciążeniu to 1,500 MWh (odpowiadającego około 2,300 m³(luz) trocin), podczas gdy elektrociepłownia na biomasę przy tartaku omocy nominalnej 24 MW i 7,500 godzin pracy przy pełnym obciążeniu wymaga 120 razy tyle paliwa tzn. 180,000 MWh (odpowiadającego około 270,000 m³(luz) trocin). | M39: 0 | O39: 0 | P39: 0 | Q39: 0
A40: E44 | B40: Fuel ratio [%] Enter the fuel ratio in % for each of your chosen fuel types in the light red cells of this row. The individual values must always add up to 100 %, otherwise the number in the cell showing the sum will be clearly marked by a dark red background. | C40: Brennstofffanteil [%] Geben Sie in die hellroten Zellen dieser Zeile die gewünschten Brennstoffanteile in % für die von Ihnen gewählten Brennstoffe ein. Die Summe der einzelnen Brennstoffanteile muss immer 100 % ergeben, von 100 % abweichende Fehleingaben werden in der Summenzelle durch eine dunkelrote Hintergrundfärbung deutlich hervorgehoben. | D40: Omjer goriva [%] Unesite omjer goriva u % za svaku od odabranih vrsta goriva u svijetlo crvena polja u ovom redu. Zbroj pojedinačnih cijena uvijek mora biti 100 %; u suprotnom, broj u polju koje pokazuje zbroj bit će vidljivo istaknut na tamno crvenoj pozadini. | E40: Склад палива [%] Введіть склад палива у % для кожного вибраного типу палива у світло-червоні комірки цього рядка. Окремі складові мають в сумі завжди дорівнювати 100 %, інакше число, що показує суму, буде помічено темно-червоним фоном комірки. | F40: Αναλογία καυσίμου [%] Εισάγετε την αναλογία καυσίμου σε % για καθένα από τους επιλεγμένους τύπους καυσίμων στα κελιά αυτής της σειράς που έχουν ανοιχτό κόκκινο χρώμα. Οι επιμέρους τιμές πρέπει πάντα να αθροίζονται μέχρι το 100%, αλλιώς ο αριθμός στο κελί που δείχνει το σύνολο θα επισημαίνονται ευκρινώς με σκούρο κόκκινο φόντο. | G40: Procentul de Combustibil [%] Introduceti procentul de combustibil ptr fiecare dintre tipurile de combustibil folosite in celulele rosii ale acestui rand. Suma valorilor individuale trebuie sa fie intotdeauna 100%, altfel numarul din celula suma va fi marcat printr-o culoare rosie inchisa drept fundal. | H40: Дял на горивата [%] Въведете делътна горивото в % за всяко от избраните от вас типове гориво в светлочервените клетки на този ред. Индивидуалните стойности винаги трябва да дават сумата 100%, иначе числата в клетките показващи сумата, ще бъдат маркирани с червен фон. | I40: Podiel paliva [%] Zadajte palivový pomer v % pre každý Vami zvolený typ paliva do svetločervených buniek tohoto riadku. Jednotlivé hodnoty musia byť vždy zadávané do 100%, inak číslo v bunke udávajúce sumu bude podfarbené tmavočerveným pozadím. | J40: Polttoaineiden suhteet [%] | K40: Stosunek paliwa [%] Wpisz stosunek paliwa w % dla każdego z wybranych typów paliw w jasno czerwone komórki w tym rzędzie. Sumą poszczególnych wartości musi być 100 %, inaczej komórka pokazująca sumę będzie widocznie zaznaczona ciemno czerwonym kolorem.
A41: E45 | B41: Fuel volume [m³ FS/a] Based on the entered fuel demand in MWh/a and considering the entered percentages for the selected fuel types, the spreadsheet calculates the estimated fuel volume for each assortment and the total fuel volume of the installation in m³ fresh substance (FS) per year. The m³ unit refers to the respective assortment selected above; in order to avoid a miscalculation of the total fuel volume nedded, it is therefore necessary to ensure that the volume unit (m³(solid), m³(stacked), m³(loose)) is the same for each assortment. Example: The estimated annual fuel demand of a biomass heating plant with a fuel heat imput capacity of 1 MW and 1,500 full load hours is 1,500 MWh. 70 % of the used fuel are coniferous wood and non-coniferous wood chips G50 (average moisture content 35 %), 30 % are coniferous wood bark chippings (loose) (average moisture content 50 %). The estimated annual fuel volume is around 2,350 m³(loose). A truck-trailer designed for the transportation of wood chips has a load capacity of roughly 80 m³(loose). Thus, about 30 truck loads of wood chips and bark would be needed to meet the fuel demand of this heating plant. | C41: Brennstoffvolumen [m³ FS/a] Ausgehend vom eingetragenen Brennstoffbedarf in MWh/a und gemäß der angegebenen Prozentanteile für die gewählten Brennstoffe wird das benötigte Brennstoffvolumen pro Sortiment und das benötigte Gesamtbrennstoffvolumen der Anlage in m³ Frischsubstanz (FS) pro Jahr abgeschätzt. Das m³-Maß bezieht sich hierbei auf die jeweils oben eingestellten Sortimente, es ist daher darauf zu achten, dass bei Mischsortimenten gleiche Volumenbezüge (fm - rm - srm) gewählt werden, um Fehlinterpretationen des benötigten Gesamtbrennstoffvolumens zu vermeiden. Beispiel: Ein Biomasseheizwerk mit 1 MW Brennstoffwärmeleistung und 1.500 h Volllasstunden hat einen Brennstoffbedarf von ca. 1.500 MWh pro Jahr. Der Brennstoffbedarf wird zu 70 % mit NH & LH Hackgut G50 (durchschnittlich 35 % Wassergehalt) und zu 30 % mit Nadelholzrinde geschüttet (durchschnittlich 50 % WG) abgedeckt. Das benötigte Brennstoffvolumen wird mit ca. 2.350 srm pro Jahr abgeschätzt. LKW-Züge, die für den Hackguttransport konzipiert sind, können etwa 80 srm pro Fuhre befördern. Für die Abdeckung des Brennstoffbedarfes dieses Heizwerkes wären daher ca. 30 LKW-Fuhren Hackgut und Rinde notwendig. | D41: Volumen goriva [m³ FS/a] | E41: Об'єм палива [м³ СВР/рік] Грунтуючися на уведеному значенні потреби в паливі (MВт*год/рік) та зазначеному складі вибраного типу палива (у відсотках), електронна таблиця розраховує об'єм кожного вида палива й загальний об'єм палива для установки у м³ свіжої речовини (СВР) на рік. Одиниця виміру м³ відноситься до певного виду палива, вибраного вище; для уникнення помилок в розрахунку загального обсягу палива необхідно переконатися, що одиниця об'єму (м³ (щільний), м³ (складометр), м³ (насипом)) є однаковою для кожного виду палива. Приклад: Річна потреба в паливі котельні на біомасі тепловою потужністю по вхідному паливу 1 МВт та періодом повного навантаження 1500 год/рік оцінюється у 1500 МВт*год. 70 % використаного палива - тріска з хвойної та нехвойної деревини G50 (середня вологість 35 %), 30 % - тріска з кори хвойної деревини (насипом) (середня вологість 50 %). Річний об'єм палива оцінюється приблизно у 2350 м³ (насипом). Вантажівка з прицепом, призначена для перевезення деревної тріски, має об'єм завантаження 80 м³ (насипом). Таким чином, необхідно близько 30 вантажівок деревної тріски та кори, щоби задовольнити потребу у паливі даної котельні. | F41: Όγκος καυσίμου [m³ ΝΟ/a] Με βάση την εισαγομένη από το χρήστη ζήτηση καυσίμου σε MWh/a και λαμβάνοντας υπόψη τα καθορισμένα ποσοστά για τους επιλεγμένους τύπους καυσίμων, το υπολογιστικό φύλλο υπολογίζει τον εκτιμώμενο όγκο του καυσίμου για κάθε είδος και το συνολικό όγκο του καυσίμου της εγκατάστασης σε m³ νωπής ουσίας (ΝΟ) ανά έτος. Η μονάδα m³ αναφέρεται στο αντίστοιχο είδος που επιλέξατε παραπάνω. Προκειμένου να αποφευχθεί ένας κακός υπολογισμός του συνολικού απαιτούμενου όγκου καυσίμων, είναι αναγκαίο να διασφαλιστεί ότι η μονάδα όγκου (m³ (συμπαγές), m³ (στοιβαχτού), m³ (χύμα)) είναι η ίδια για κάθε είδος. Παράδειγμα: Η εκτιμώμενη ετήσια ζήτηση καυσίμου της μονάδας θέρμανσης με βιομάζα, με θερμοχωρητικότητα καυσίμου 1 MW και 1500 ώρες πλήρους φορτίου είναι 1.500 MWh. Το 70% του καυσίμου που χρησιμοποιείται είναι θρυμματισμένο ξύλο κωνοφόρων και πλατυφύλλων ειδών G50 (μέση περιεχόμενη υγρασία 35%) και το 30% είναι θρυμματισμένος φλοιός κωνοφόρων (χύμα) (μέση περιεχόμενη υγρασία 50%). Ο εκτιμώμενος ετήσιος όγκος των καυσίμων είναι περίπου 2.350 m³ (χύμα). Ένα φορτηγό με ρυμουλκό, που σχεδιάστηκε για τη μεταφορά του θρυμματισμένου ξύλου, έχει χωρητικότητα φορτίου περίπου 80 m³ (χύμα). Έτσι, θα χρειαστούν περίπου 30 φορτία του φορτηγού με θρυμματισμένο ξύλο και φλοιό για να ανταποκριθεί στη ζήτηση καυσίμου αυτής της μονάδας θέρμανσης. | G41: Volumul de combustibil [m³ MB/a] In functie de valoare solicitata a combustibilului exprimata in MWh/a si luand in considerare procentul folosit pentru tipurile de combustibili selectate, fisierul calculeaza volumul estimativ de combustibil pentru fiecare sortiment si volumul total al combustibilului pentru instalatie, exprimat in m³ materie bruta proaspata (MB) pe an. Unitatile de m³ se refera la sortimentul respectiv selectat mai sus, ptr a evita o calculare eronata al volumului total de combustibil neceesar, este prin urmare necesar sa va asigurati ca unitatea de volum (m³(solid), m³(stiva), m³(vrac)) este la fel pentru fiecare sortiment. Exemplu: Solicitarea anuala de combustibil al unei centrale bazata pe biommasa cu o capacitate de 1 MW si 1 500 ore de functionare este 1 500 MWh. 70 % din combustibilul folosit sunt peleti de lemn rasinos si foios G50 (umiditate medie 35 %), 30 % este scoarta de conifere - rasinoase (stiva) (umiditate medie 50 %). Volumul anual de combustibil de lemn estimat este aprox. 2 350 m³ (vrac). Un transportor auto dedicat transportului de talas are o capacitate de incarcare de aprox. 80 m³ (vrac). Astfel, circa 30 de astfel de incarcaturi/transporturi de talas si scoarta ar fi necesare pentru a satisface cerinta de combustibil al acestei centrale. | H41: Обем на горивото (куб.м ПВ/год) На базата на въведеното търсене на гориво в MWh/a и вземайки предвид въведените проценти за избраните типове гориво, таблицата изчислява приблизителен обем на горивото за всеки асортимент и общ обем на горивото за инсталацията в кубически метри прясно вещество за година (м3 ПВ/год) [m³ FS/a] . Пример: | I41: Objem paliva [m³ FS/r] Na základe zadaného dopytu po palive v MWh/r a vzhľadom na zadané percentá vybraných druhov paliva, výpočtový hárok spočíta odhadovaný objem paliva pre každý výber a celkový objem paliva zariadenia v m³ čerstvej zložky (FS) za rok. Jednotka m³ odkazuje na príslušný výber označený vyššie; aby sa predišlo nesprávnemu výpočtu celkového objemu potrebného paliva, je dôležité sa uistiť, že jednotka objemu m³(pevná), m³(plná), m³(voľná)) je rovnaká pre každý výber. Príklad: Odhahovaná ročná potreba paliva teplárne na biomasu s tepelnou vstupnou kapacitou 1MW a 1,500 hodinami plného zaťaženia je 1,500 MWh. 70% využitého paliva je ihličnaté drevo a neihličnatá štiepka G50 (priemerný obsah vlhkosti 35%), 30 % je ihličnatá kôrna drť (voľná) (priemerná vlhkosť 50%). Odhadovaný objem paliva je okolo 2,350 m³(voľná). Kamión pre prepravu štiepky má prepravnú kapacitu v hrubom 80m³(voľná). Takže, okolo 30 kamiónov naplnených štiepkov a kôrou bude potrebných pre pokrytie palivových potrieb tejto teplárne. | J41: Polttoaineen tilavuus [m³ FS/a] | K41: Objętość paliwa [m³ ś.m./rok] Na podstawie podanego zapotrzebowania na paliwo w MWh/rok i biorąc pod uwagę podany stosunek paliwa wybranych rodzajów paliw arkusz obliczy szacowaną objętość paliwa poszczególnych asortymentów i całkowitą objętość instalacji w m³ świeżej masy (ś.m.) na rok. Jednostka m³ odnosi się do poszczególnych asorymentów wybranych powyżej; w celu uniknięcia błędu w obliczeniach całkowitej objętości potrzebowanego paliwa, wymagane jest upewnienie się, że jednostka objętości (m³(lite drewno), m³(ułożone), m³(luz)) jest taka sama przy każdym asortymencie. Przykład: Szacowane roczne zapotrzebowanie na paliwo ciepłowni na biomasę o mocy nominalnej 1 MW i 1,500 godzin pracy przy pełnym obciążeniu wynosi 1,500 MWh. 70 % używanego paliwa stanowią trociny drewna iglastego i drewna liściastego G50 (średnia zawartość wilgoci 35 %), a 30 % stanowią zrębki kory drewna iglastego (luz) (średnia zawartość wilgoci 50%). Szacowana objętość rocznego zapasu paliwa to około 2,350 m³(luz). Ciężarówka przeznaczona do transportu trocin ma pojemność około 80 m³(luz). Toteż około 30 ciężarówek wypełnionych trocinami i zrębkami kory jest potrzebne aby zapewnić roczne zapotrzebowanie tej ciepłowni.
A42: E46 | B42: Fuel weight in terms of dry matter [t DM/a] Based on the entered fuel demand in MWh/a and considering the entered percentage for the selected fuel types, the spreadsheet calculates the estimated fuel weight for each assortment and the total fuel weight of the installation in tonnes dry matter per year [t DM/a]. Trading wood in tonnes DM is common practice when dealing with industrial roundwood assortments of inferior quality. Example: The estimated annual fuel demand of a biomass heating plant with a fuel heat input capacity of 1 MW and 1,500 full load hours is 1,500 MWh. 70 % of the used fuel are coniferous wood and non-coniferous wood chips G50 (average moisture content 35 %), 30 % are coniferous wood bark chippings (loose) (average moisture content 50 %). The estimated annual fuel volume is around 314 tonnes dry matter. | C42: Brennstoffgewicht als Trockensubstanz [t TS/a] bzw. [t-atro/a] Ausgehend vom eingetragenen Brennstoffbedarf in MWh/a und gemäß der angegebenen Prozentanteile für die gewählten Brennstoffe wird das benötigte Brennstoffgewicht pro Sortiment und das benötigte Gesamtbrennstoffgewicht für die Anlage in Tonnen Trockensubstanz pro Jahr [t TS/a] bzw. t-atro pro Jahr [t-atro/a] abgeschätzt. Die Holzübernahme in atro-Tonnen ist eine übliche Handelsusance bei Industrieholzsortimenten geringerer Qualität, die häufig verwendete Kurzbezeichnung AMM bedeutet Atro Tonne, Mit Rinde geliefert, Mit Rinde verrechnet Beispiel: Ein Biomasseheizwerk mit 1 MW Brennstoffwärmeleistung und 1.500 h Volllasstunden hat einen Brennstoffbedarf von ca. 1.500 MWh pro Jahr. Der Brennstoffbedarf wird zu 70 % mit NH & LH Hackgut G50 (durchschnittlich 35 % Wassergehalt) und zu 30 % mit Nadelholzrinde geschüttet (durchschnittlich 50 % WG) abgedeckt. Das benötigte Brennstoffgewicht wird mit ca. 314 Tonnen Trockensubstanz bzw. t-atro pro Jahr abgeschätzt. | D42: Težina goriva u odnosu na suhu tvar [t DM/a] | E42: Вага деревини в одиницях сухої речовини [т СР/рік] Виходячи з уведеного значення потреби в паливі (MВт*год/рік) та складу (у %) вибраних типів палива, електронна таблиця розраховує вагу палива для кожного виду й загальну вагу палива для установки у тоннах сухої речовини в рік [т СР/рік]. Купля-продаж круглих лісоматеріалів в одиницях СР є загальноприйнятою практикою для ділової деревини невисокої якості. Приклад: Річна потреба в біомасі котельні потужністю 1 МВт по вхідному паливу з періодом повного навантаження 1500 год/рік становить 1500 Мвт*год. 70 % використовуваного палива - хвойна деревина й тріска з нехвойної деревини G50 (середньою вологістю 35 %), 30 % - тріска з кори хвойної деревини (насипом) (середня вологість 50 %). Оцінений річний обсяг палива складає близько 314 тонн сухої речовини. | F42: Βάρος καυσίμου ως ξηρή ουσία [t ΞΟ/a] Με βάση τη ζήτηση καυσίμου, που εισάγετε από το χρήστη, σε MWh/a και λαμβάνοντας υπόψη το ποσοστό που τέθηκε για τα επιλεγμένα είδη καυσίμου, το υπολογιστικό φύλλο υπολογίζει το εκτιμώμενο βάρος καυσίμου για κάθε είδος και το συνολικό βάρος του καυσίμου της εγκατάστασης σε τόνους ξηρής ουσίας ανά έτος [t ΞΟ/a]. Το εμπόριο του ξύλου σε τόνους ΞΟ είναι κοινή πρακτική όταν αναφέρεται σε είδη βιομηχανικής στρογγυλής ξυλείας κατώτερης ποιότητας. Παράδειγμα: Η εκτιμώμενη ετήσια ζήτηση καυσίμου σε μονάδας θέρμανσης με βιομάζα με θερμοχωρητικότητα καυσίμου ισχύος 1 MW και 1500 ώρες πλήρους φορτίου είναι 1.500 MWh. Το 70% του καυσίμου που χρησιμοποιείται είναι θρυμματισμένο ξύλο κωνοφόρων και πλατυφύλλων ειδών G50 (μέση περιεχόμενη υγρασία 35%) και το 30% είναι θρυμματισμένος φλοιός κωνοφόρων (χύμα) (μέση περιεχόμενη υγρασία 50%). Ο εκτιμώμενος ετήσιος όγκος καυσίμου είναι περίπου 314 τόνοι ξηρής ουσίας. | G42: Greutatea combustibilului in termeni de substanta uscata [t SU/a] In functie de cererea de combustibil exprimata in MWh/a si luand in considerare procentul folosit pentru tipurile selectate de combustibile, fisierul calculeaza greutatea estimata a combustibilului pentru fiecare sortiment si greutatea totala a combustibilului instalatiei exprimata in tone de substanta uscata pe an [t SU/a]. Comercializarea lemnului in tone SU este o practica comuna cand avem de-a face cu lemn industrial sub forma de trunchiuri de calitate inferioara. Exemplu: valoare anuala estimata a cererii de combustibil intr-o centrala bazata pe biomasa cu o capacitate termica de 1 MW si 1 500 ore de functionare este de 1 500 MWh. 70 % din combustibilul folosit sunt peleti de lemn de conifere si non-conifere foios G50 (umiditate medie 35 %), 30 % este scoarta de rasinos (vrac) (umiditate medie 50 %). Volumul anual necesar estimat este in jur de 314 tone substanta uscata. | H42: Тегло на горивото в сухо вещество [t СВ/a] На базата на въведеното търсене на гориво в MWh/a и вземайки предвид въведените проценти за избраните типове гориво, таблицата изчислява приблизително тегло на горивото за всеки асортимент и общо тегло на горивото за инсталацията в тонове сухо вещество за година (т СВ/год)[t СВ/a] . Търгуването на дървесина в тонове СВ е обичайна практика при сделките с асортимент висококачествени индустриални трупи. Пример: | I42: Hmotnosť paliva, pokiaľ ide o sušinu [t DM/r] Na základe zadanej potreby paliva v MWh/r a vzhľadom na zadané percentá pre vybrané druhy palív, výpočtový hárok vypočíta odhadovanú váhu paliva pre každý výber a celkovú váhu paliva pre zariadenie v tonách sušiny za rok [t DM/a]. Obchodovanie s drevom v tonách DM je bežná praktika pri dohadovaní si guľatiny nižšej kvality. Príklad Odhahovaná ročná potreba paliva teplárne na biomasu s tepelnou vstupnou kapacitou 1MW a 1,500 hodinami plného zaťaženia je 1,500 MWh. 70% využitého paliva je ihličnaté drevo a neihličnatá štiepka G50 (priemerný obsah vlhkosti 35%), 30 % je ihličnatá kôrna drť (voľná) (priemerná vlhkosť 50%). Odhadovaná ročná váha paliva je okolo 314 ton sušiny. | J42: Polttoaineen paino kuiva-aineena [t DM/a] | K42: Masa paliwa w suchej masię [t s.m./rok] Na podstawie podanego rocznego zapotrzebowania na paliwo w MWh/rok i biorąc pod uwagę podany stosunek wybranych typów paliw, arkusz obliczy szacowaną masę dla każdego asortymentu i całkowitą masę rocznego zapasu paliwa dla instalacji w tonach suchej masy [t s.m./rok]. Handel drewnem w tonach s.m. jest popularną praktyką przy obrocie przemysłowym asortymentem (kłody) o niskiej jakości. Przykład: Szacowane roczne zapotrzebowanie na paliwo ciepłowni na biomasęo mocy nominalnej 1 MW i 1,500 godzin pracy przy pełnym obciążeniu wynosi 1,500 MWh. 70 % używanego paliwa stanowią trociny drewna iglastego i drewna liściastego G50 (średnia zawartość wilgoci 35 %), a 30 % stanowią zrębki kory drewna iglastego (luz) (średnia zawartość wilgoci 50%). Objętość rocznego zapotrzebowania na paliwo wynosi około 314 ton suchej masy.
A43: E47 | B43: Fuel weight in terms of fresh substance [t FS/a] Based on the entered fuel demand in MWh/a and considering the entered percentages for the selected fuel types, the spreadsheet calculates the estimated fuel weight for each assortment and the total fuel weight of the installation in tonnes fresh substance per year [t FS/a]. Example: The estimated annual fuel demand of a biomass heating plant with a fuel heat input capacity of 1 MW and 1,500 full load hours is 1,500 MWh. 70 % of the used fuel are coniferous wood and non-coniferous wood chips G50 (average moisture content 35 %), 30 % are coniferous wood bark chippings (loose) (average moisture content 50 %). The estimated annual fuel weight is around 528 tonnes fresh substance. | C43: Brennstoffgewicht der Frischsubstanz [t FS/a] bzw. [t-lutro/a] Ausgehend vom eingetragenen Brennstoffbedarf in MWh/a und gemäß der angegebenen Prozentanteile für die gewählten Brennstoffe wird das benötigte Brennstoffgewicht pro Sortiment und das benötigte Gesamtbrennstoffgewicht für die Anlage in Tonnen Frischsubstanz pro Jahr [t FS/a] bzw. t-lutro pro Jahr [t-lutro/a] abgeschätzt. Beispiel: Ein Biomasseheizwerk mit 1 MW Brennstoffwärmeleistung und 1.500 h Volllasstunden hat einen Brennstoffbedarf von ca. 1.500 MWh pro Jahr. Der Brennstoffbedarf wird zu 70 % mit NH & LH Hackgut G50 (durchschnittlich 35 % Wassergehalt) und zu 30 % mit Nadelholzrinde geschüttet (durchschnittlich 50 % WG) abgedeckt. Das benötigte Brennstoffgewicht wird mit ca. 528 Tonnen Frischsubstanz bzw. t-lutro pro Jahr abgeschätzt. | D43: Težina goriva u odnosu na svježu drvnu tvar [t FS/a] | E43: Вага деревини в одиницях свіжої речовини [т СВР/рік] Виходячи з уведеного значення потреби в паливі (MВт*год/рік) та складу (у %) вибраних типів палива, електронна таблиця розраховує вагу палива для кожного виду й загальну вагу палива для установки у тоннах свіжої речовини в рік [т СВР/рік]. Приклад: Річна потреба в біомасі котельні потужністю 1 МВт по вхідному паливу з періодом повного навантаження 1500 год/рік становить 1500 Мвт*год. 70 % використовуваного палива - хвойна деревина й тріска з нехвойної деревини G50 (середньою вологістю 35 %), 30 % - тріска з кори хвойної деревини (насипом) (середня вологість 50 %). Оцінений річний обсяг палива складає близько 528 тонн свіжої речовини. | F43: Βάρος καυσίμου ως νωπή ουσία [t ΝΟ/a] Με βάση τη ζήτηση καυσίμου που εισάγεται από το χρήστη σε MWh/a και λαμβάνοντας υπόψη τα ποσοστά που τέθηκαν για τα επιλεγμένα είδη καυσίμων, το υπολογιστικό φύλλο υπολογίζει το εκτιμώμενο βάρος καυσίμου για κάθε είδος και το συνολικό βάρος καυσίμου της εγκατάστασης σε τόνους νωπής ουσίας ανά έτος [t ΝΟ/α]. Παράδειγμα: Η εκτιμώμενη ετήσια ζήτηση καυσίμου σε μονάδας θέρμανσης με βιομάζα με θερμοχωρητικότητα καυσίμου ισχύος 1 MW και 1500 ώρες πλήρους φορτίου είναι 1.500 MWh. Το 70% του καυσίμου που χρησιμοποιείται είναι θρυμματισμένο ξύλο κωνοφόρων και μη κωνοφόρων ειδών G50 (μέση περιεχόμενη υγρασία 35%) και το 30% είναι θρυμματισμένος φλοιός κωνοφόρων (χύμα) (μέση περιεχόμενη υγρασία 50%). Το εκτιμώμενο ετήσιο βάρος των καυσίμων είναι περίπου 528 τόνοι νωπής ουσίας. | G43: Greutatea combustibilului in termeni de materie bruta proapsata [t MB/a] In functie de cererea de combustibil exprimata in MWh/a si luand in considerare procentul folosit pentru tipul selectat de combustibil, fisierul calculeaza greutatea estimata a combustibilului pentru fiecare sortiment si greutatea totala a combustibilului instalatiei exprimata in tone de materie bruta pe an [t DM/a]. Exemplu: Valoare anuala estimata a cererii de combustibil intr-o centrala bazata pe biomasa cu o capacitate termica de 1 MW si 1 500 ore de functionare este de 1 500 MWh. 70 % din combustibilul folosit sunt talas de conifere si non-conifere G50 (umiditate medie 35 %), 30 % sunt aschii de scoarta de conifere (vrac) (umiditate medie 50 %). Volumul anual necesar estimat este in jur de 528 de tone materie bruta proaspata. | H43: Тегло на горивото в прясно вещество [t ПВ/a] На базата на въведеното търсене на гориво в MWh/a и вземайки предвид въведените проценти за избраните типове гориво, таблицата изчислява приблизително тегло на горивото за всеки асортимент и общо тегло на горивото за инсталацията в тоновепрясно вещество за година (т ПВ/год)[t FS/a] Пример: | I43: Váha paliva vzhľadom na čerstvú zložku [t FS/r] Na základe zadanej potreby paliva v MWh/r a vzhľadom na zadané percentá pre vybrané druhy palív, výpočtový hárok vypočíta odhadovanú váhu paliva pre každý výber a celkovú váhu paliva pre zariadenie v tonách čerstvej zložky za rok [t FS/r]. Príklad Odhahovaná ročná potreba paliva teplárne na biomasu s tepelnou vstupnou kapacitou 1MW a 1,500 hodinami plného zaťaženia je 1,500 MWh. 70% využitého paliva je ihličnaté drevo a neihličnatá štiepka G50 (priemerný obsah vlhkosti 35%), 30 % je ihličnatá kôrna drť (voľná) (priemerná vlhkosť 50%). Odhadovaná ročná váha paliva je okolo 528 ton čerstvej zložky. | J43: Polttoaineen paino tuoreaineena [t FS/a] | K43: Masa paliwa w świeżej masie [t ś.m./rok] Na podstawie podanego rocznego zapotrzebowania na paliwo w MWh/rok i biorąc pod uwagę podany stosunek wybranych typów paliw, arkusz obliczy szacowaną masę dla każdego asortymentu i całkowitą masę rocznego zapasu paliwa dla instalacji w tonach świeżej masy masy [t ś.m./rok]. Przykład: Szacowane roczne zapotrzebowanie na paliwo ciepłowni na biomasę o mocy nominalnej 1 MW i 1,500 godzin pracy przy pełnym obciążeniu wynosi 1,500 MWh. 70 % używanego paliwa stanowią trociny drewna iglastego i drewna liściastego G50 (średnia zawartość wilgoci 35 %), a 30 % stanowią zrębki kory drewna iglastego (luz) (średnia zawartość wilgoci 50%). Objętość rocznego zapotrzebowania na paliwo wynosi około 528 ton świeżej masy.
A44: E48 | B44: Ash weight (estimate) [t/a] Based on the entered fuel demand in MWh/a and considering the entered percentages for the selected fuel types, the spreadsheet calculates the estimated ash weight for each assortment and the total ash weight of the installation in tonnes per year [t/a]. Example: The estimated annual fuel demand of a biomass heating plant with a fuel heat input capacity of 1 MW and 1,500 full load hours is 1,500 MWh. 70 % of the used fuel are coniferous wood and non-coniferous wood chips G50 (average moisture content 35 %, ash content 1.5 %), 30 % are coniferous wood bark chippings (loose) (average moisture content 50 %, ash content 6 %). The estimated amount of ash produced in the combustion process is around 12 tonnes per year. | C44: Aschengewicht (Schätzwert) [t/a] Ausgehend vom eingetragenen Brennstoffbedarf in MWh/a und gemäß der angegebenen Prozentanteile für die gewählten Brennstoffe wird das Gewicht der anfallenden Asche pro Sortiment und für die gesamte Anlage in Tonnen pro Jahr [t/a] abgeschätzt. Beispiel: Ein Biomasseheizwerk mit 1 MW Brennstoffwärmeleistung und 1.500 h Volllasstunden hat einen Brennstoffbedarf von ca. 1.500 MWh pro Jahr. Der Brennstoffbedarf wird zu 70 % mit NH & LH Hackgut G50 (durchschnittlich 35 % Wassergehalt, 1,5 % Aschengehalt) und zu 30 % mit Nadelholzrinde geschüttet (durchschnittlich 50 % WG, 6 % Aschengehalt) abgedeckt. Die im Verbrennungsprozess anfallende Aschenmenge wird auf ca. 12 Tonnen pro Jahr geschätzt. | D44: Težina pepela (procjena) [t/a] | E44: Вага золи (оцінка) [т/рік] Виходячи з уведеного значення потреби в паливі (MВт*год/рік) та складу (у %) вибраних типів палива, електронна таблиця розраховує вагу золи для кожного виду палива й загальну вагу золи для установки у тоннах в рік [т/рік]. Приклад: Річна потреба в біомасі котельні потужністю 1 МВт по вхідному паливу з періодом повного навантаження 1500 год/рік становить 1500 МВт*год. 70 % використовуваного палива - хвойна деревина й тріска з нехвойної деревини G50 (середньою вологістю 35 %, зольністю 1,5 %), 30 % - тріска з кори хвойної деревини (насипом) (середня вологість 50 %, зольність 6 %). Оцінений річний обсяг утвореної золи складає близько 12 тонн. | F44: Βάρος της τέφρας (εκτίμηση) [t/a] Με βάση τη ζήτηση καυσίμου που εισάγεται από το χρήστη σε MWh/a και λαμβάνοντας υπόψη τα ποσοστά των επιλεγμένων ειδών καυσίμου που τέθηκαν, το υπολογιστικό φύλλο υπολογίζει το εκτιμώμενο βάρος της τέφρας για κάθε είδος και το συνολικό βάρος της τέφρας της εγκατάστασης σε τόνους ανά έτος [t/a]. Παράδειγμα: Η εκτιμώμενη ετήσια ζήτηση καυσίμου σε μονάδας θέρμανσης με βιομάζα με θερμοχωρητικότητα καυσίμου ισχύος 1 MW και 1500 ώρες πλήρους φορτίου είναι 1.500 MWh. Το 70% του καυσίμου που χρησιμοποιείται είναι θρυμματισμένο ξύλο κωνοφόρων και πλατυφύλλων ειδών G50 (μέση περιεχόμενη υγρασία 35%, περιεκτικότητα σε τέφρα 1,5%) και το 30% είναι θρυμματισμένος φλοιός κωνοφόρων (χύμα) (μέση περιεχόμενη υγρασία 50%, περιεκτικότητα σε τέφρα 6%). Το εκτιμώμενο ποσό της τέφρας που παράγεται κατά τη διαδικασία της καύσης είναι περίπου 12 τόνοι ανά έτος. | G44: Greutatea de cenusa (estimativ) [t /a] In functie de cererea de combustibil exprimata in MWh/a si luand in considerare procentul folosit pentru tipul selectat de combustibil, fisierul calculeaza greutatea estimata a cenusii pentru fiecare sortiment si greutatea totala a cenusii din instalatie exprimata in tone pe an [t /a]. Exemplu: Valoare anuala estimata a cererii de combustibil intr-o centrala bazata pe biomasa cu o capacitate termica de 1 MW si 1 500 ore de functionare este de 1 500 MWh. 70 % din combustibilul folosit sunt talas de conifere si non-conifere G50 (umiditate medie 35 %, continut de cenusa de 1.5%), 30 % este scoarta de rasinos (vrac) (umiditate medie 50 %, comtinut de censa de 6%). Volumul estimat de cenusa produsa in procesele de combustie este de aproximativ 12 tone pe an. | H44: Тегло на пепелта (приблизително) [t/a] На базата на въведеното търсене в МВтч/а и вземайки под внимание въведените проценти за избраните типове гориво, таблицата изчислява оценка за теглото на пепелта за всеки сортимент и общото тегло на пепелта за инсталацията в тонове за година Пример: | I44: Váha popola (odhad) [t/r] Na základe zadanej potreby paliva v MWh/r a vzhľadom na zadané percentá pre vybrané druhy palív, výpočtový hárok vypočíta odhadovanú váhu popola pre každý výber a celkovú váhu popola pre zariadenie v tonách popola za rok [t/r]. Príklad Odhahovaná ročná potreba paliva teplárne na biomasu s tepelnou vstupnou kapacitou 1MW a 1,500 hodinami plného zaťaženia je 1,500 MWh. 70% využitého paliva je ihličnaté drevo a neihličnatá štiepka G50 (priemerný obsah vlhkosti 35%, obsah popola 1,5%), 30 % je ihličnatá kôrna drť (voľná) (priemerná vlhkosť 50%, obsah popola 6%). Odhadovaný ročný objem vyprodukovaného popola spaľovacím procesom je okolo 12 ton za rok. | J44: Tuhkan paino (arvio) [t/a] | K44: Masa popiołu (szacunek) [t/rok] Na podstawie podanego rocznego zapotrzebowania na paliwo w MWh/rok i biorąc pod uwagę podany stosunek wybranych typów paliw, arkusz obliczy szacowaną masę popiołu dla każdego asortymentu i całkowitą masę popiołu instalacji w tonach popiołu na rok [t/rok]. Przykład: Szacowane roczne zapotrzebowanie na paliwo ciepłowni na biomasę o mocy nominalnej 1 MW i 1,500 godzin pracy przy pełnym obciążeniu wynosi 1,500 MWh. 70 % używanego paliwa stanowią trociny drewna iglastego i drewna liściastego G50 (średnia zawartość wilgoci 35 %, zawartość popiołu 1.5 %), a 30 % stanowią zrębki kory drewna iglastego (luz) (średnia zawartość wilgoci 50%, zawartość popiołu 6 %). Szacowana ilość popiołu wytworzonego w procesię spalania to około 12 ton rocznie.
A45: E49 | B45: Ash volume (estimate) [m³/a] Based on the entered fuel demand in MWh/a and considering the entered percentages for the selected fuel types, the spreadsheet calculates the estimated ash volume for each assortment and the total ash volume of the installation in m³ per year [m³/a]. Example: The estimated annual fuel demand of a biomass heating plant with a fuel heat input capacity of 1 MW and 1,500 full load hours is 1,500 MWh. 70 % of the used fuel are coniferous wood and non-coniferous wood chips G50 (average moisture content 35 %, 1.5 % ash content with an ash density of around 700 kg/m³), 30 % are coniferous wood bark chippings (loose) (average moisture content 50 %, 6 % ash content with an ash density of around 700 kg/m³). The estimated amount of ash produced in the combustion process is around 16 m³ per year. | C45: Aschenvolumen (Schätzwert) [m³/a] Ausgehend vom eingetragenen Brennstoffbedarf in MWh/a und gemäß der angegebenen Prozentanteile für die gewählten Brennstoffe wird das Volumen der anfallenden Asche pro Sortiment und für die gesamte Anlage in m³ pro Jahr [m³/a] abgeschätzt. Beispiel: Ein Biomasseheizwerk mit 1 MW Brennstoffwärmeleistung und 1.500 h Volllasstunden hat einen Brennstoffbedarf von ca. 1.500 MWh pro Jahr. Der Brennstoffbedarf wird zu 70 % mit NH & LH Hackgut G50 (durchschnittlich 35 % Wassergehalt, 1,5 % Aschengehalt mit ca. 700 kg/m³ Aschendichte) und zu 30 % mit Nadelholzrinde geschüttet (durchschnittlich 50 % WG, 6 % Aschengehalt mit ca. 700 kg/m³ Aschendichte) abgedeckt. Die im Verbrennungsprozess anfallende Aschenmenge wird auf ca. 16 m³ pro Jahr geschätzt. | D45: Volumen pepela (procjena) [m³/a] | E45: Об'єм золи (оцінка) [м³/рік] Виходячи з уведеного значення потреби в паливі (MВт*год/рік) та складу (у %) вибраних типів палива, електронна таблиця розраховує об'єм золи для кожного виду палива й загальний об'єм золи для установки в м³ на рік [м³/рік]. Приклад: Річна потреба в біомасі котельні потужністю 1 МВт по вхідному паливу з періодом повного навантаження 1500 год/рік становить 1500 МВт*год. 70 % використовуваного палива - хвойна деревина й тріска з нехвойної деревини G50 (середньою вологістю 35 %, зольністю 1,5 %, густина золи - порядку 700 кг/м³), 30 % - тріска з кори хвойної деревини (насипом) (середня вологість 50 %, зольність 6 %, густина золи - порядку 700 кг/м³). Оцінений річний обсяг утвореної золи складає близько 16 м³. | F45: Όγκος της τέφρας (εκτίμηση) [m³/a] Με βάση τη ζήτηση καυσίμου που εισάγεται από το χρήστη σε MWh/a και λαμβάνοντας υπόψη τα ποσοστά των επιλεγμένων ειδών καυσίμου που τέθηκαν, το υπολογιστικό φύλλο υπολογίζει τον εκτιμώμενο όγκο τέφρας για κάθε είδος και το συνολικός όγκο της τέφρας της εγκατάστασης σε m³ ανά έτος [m³/a]. Παράδειγμα: Η εκτιμώμενη ετήσια ζήτηση καυσίμου σε μονάδας θέρμανσης με βιομάζα με θερμοχωρητικότητα καυσίμου ισχύος 1 MW και 1500 ώρες πλήρους φορτίου είναι 1.500 MWh. Το 70% του καυσίμου που χρησιμοποιείται είναι θρυμματισμένο ξύλο κωνοφόρων και πλατυφύλλων ειδών G50 (μέση περιεχόμενη υγρασία 35%, περιεκτικότητα σε τέφρα 1,5%, πυκνότητα τέφρας περίπου 700 kg/m³) και το 30% είναι θρυμματισμένος φλοιός κωνοφόρων (χύμα) (μέση περιεχόμενη υγρασία 50%, περιεκτικότητα σε τέφρα 6%, πυκνότητα τέφρας περίπου 700 kg/m³). Το εκτιμώμενο ποσό της τέφρας που παράγεται κατά τη διαδικασία της καύσης είναι περίπου 16 m³ ανά έτος. | G45: Volumul de cenusa (estimativ) [m³/ /a] In functie de cererea de combustibil exprimata in MWh/a si luand in considerare procentul folosit pentru tipul selectat de combustibil, fisierul calculeaza volumul estimativ al cenusii pentru fiecare sortiment si volumul total al cenusii din instalatie exprimata in tone de materie bruta pe an [m³/ /a]. Exemplu: Valoare anuala estimata a cererii de combustibil intr-o centrala bazata pe biomasa cu o capacitate termica de 1 MW si 1 500 ore de functionare este de 1 500 MWh. 70 % din combustibilul folosit sunt talas de conifere si non-conifere G50 (umiditate medie 35 %, continut de cenusa de 1.5% cu o densitate a cenusii de aproximativ 700 kg/m³), 30 % este scoarta de rasinos (vrac) (umiditate medie 50 %, comtinut de cenusa de 6% cu densitate de 700 aproximativ kg/m³). Volumul estimat de cenusa produsa in procesele de combustie este de aproximativ 16 m³ pe an. | H45: Обем на пепелта (приблизително) [m³/a] На базата на въведеното търсене в МВтч/а и вземайки под внимание въведените проценти за избраните типове гориво, таблицата изчислява оценка за обема на пепелта за всеки сортимент и общия обем на пепелта за инсталацията в кубически метри за година Пример: | I45: Objem popola (odhad) [m³/r] Na základe zadanej potreby paliva v MWh/r a vzhľadom na zadané percentá pre vybrané druhy palív, výpočtový hárok vypočíta odhadovaný objem popola pre každý výber a celkový objem popola pre zariadenie v tonách popola v m³ za rok [m³/r]. Príklad Odhahovaná ročná potreba paliva teplárne na biomasu s tepelnou vstupnou kapacitou 1MW a 1,500 hodinami plného zaťaženia je 1,500 MWh. 70% využitého paliva je ihličnaté drevo a neihličnatá štiepka G50 (priemerný obsah vlhkosti 35%, obsah popola 1,5% s hustotou popola okolo 700kg/m³), 30 % je ihličnatá kôrna drť (voľná) (priemerná vlhkosť 50%, obsah popola 6% s hustotou popola okolo 700kg/m³). Odhadovaný ročný objem vyprodukovaného popola spaľovacím procesom je okolo 16 m³ za rok. | J45: Tuhkan tilavuus (arvio) [m³/a] | K45: Objętość popiołu (szacunek) [m³/rok] Na podstawie podanego rocznego zapotrzebowania na paliwo w MWh/rok i biorąc pod uwagę podany stosunek wybranych typów paliw, arkusz obliczy szacowaną objętość popiołu dla każdego asortymentu i całkowitą objętość popiołu instalacji w m³ na rok [m³/rok]. Przykład: Szacowane roczne zapotrzebowanie na paliwo ciepłowni na biomasę o mocy nominalnej 1 MW i 1,500 godzin pracy przy pełnym obciążeniu wynosi 1,500 MWh. 70 % używanego paliwa stanowią trociny drewna iglastego i drewna liściastego G50 (średnia zawartość wilgoci 35 %, zawartość popiołu 1.5 % i gęstość popiołu 700 kg/m³), a 30 % stanowią zrębki kory drewna iglastego (luz) (średnia zawartość wilgoci 50%, zawartość popiołu 6 % i gęstość popiołu 700 kg/m³). Szacowna całkowita objętość popiołu wytwodzonego w procesię spalania to około16 m³ rocznie.
A46: E50 | B46: Fuel costs per year [Euro/a] Based on the entered fuel demand in MWh/a and considering the entered percentages for the selected fuel types, the spreadsheet calculates the fuel costs for each assortment and the total fuel costs of the installation in Euro per year [Euro/a]. Example: The estimated annual fuel demand of a biomass heating plant with a fuel heat input capacity of 1 MW and 1,500 full load hours is 1,500 MWh. 70 % of the used fuel are coniferous wood and non-coniferous wood chips G50 (average moisture content 35 %, 80 Euro/t DM), 30 % are coniferous wood bark chippings (loose) (average moisture content 50 %, 7 Euro/m³(loose)). The total fuel cost is araound 23,000 Euro per year. | C46: Brennstoffkosten pro Jahr [Euro/a] Ausgehend vom eingetragenen Brennstoffbedarf in MWh/a und gemäß der angegebenen Prozentanteile für die gewählten Brennstoffe werden die Brennstoffkosten pro Sortiment und für die gesamte Anlage in Euro pro Jahr [Euro/a] ermittelt. Beispiel: Ein Biomasseheizwerk mit 1 MW Brennstoffwärmeleistung und 1.500 h Volllasstunden hat einen Brennstoffbedarf von ca. 1.500 MWh pro Jahr. Der Brennstoffbedarf wird zu 70 % mit NH & LH Hackgut G50 (durchschnittlich 35 % Wassergehalt, Einkauf um 80,-- Euro/t TS) und zu 30 % mit Nadelholzrinde geschüttet (durchschnittlich 50 % WG, Einkauf um 7,-- Euro/srm) abgedeckt. Die Brennstoffkosten summieren sich auf ca. 23.000,-- Euro pro Jahr. | D46: Troškovi goriva na godišnjoj razini [Eur/a] | E46: Річна вартість палива [грн./рік] Виходячи з уведеного значення потреби в паливі (MВт*год/рік) та складу (у %) вибраних типів палива, електронна таблиця розраховує вартість палива для кожного виду й загальну вартість палива для установки в грн на рік [грн./рік]. Приклад: Річна потреба в біомасі котельні потужністю 1 МВт по вхідному паливу з періодом повного навантаження 1500 год/рік становить 1500 МВт*год. 70 % використовуваного палива - хвойна деревина й тріска з нехвойної деревини G50 (середня вологість 35 %, 80 грн./т СР), 30 % - тріска з кори хвойної деревини (насипом) (середня вологість 50 %, 7 грн./м³ (насипом)). Загальна вартість палива - порядку 23000 грн./рік. | F46: Κόστος καυσίμου ανά έτος [Ευρώ/a] Με βάση τη ζήτηση καυσίμου που εισάγεται από το χρήστη σε MWh/a και λαμβάνοντας υπόψη τα ποσοστά των επιλεγμένων ειδών καυσίμου που τέθηκαν, το υπολογιστικό φύλλο υπολογίζει το κόστος καυσίμου για κάθε είδος και το συνολικό κόστος καυσίμου σε ευρώ ανά έτος [ευρώ/a]. Παράδειγμα: Η εκτιμώμενη ετήσια ζήτηση καυσίμου σε μονάδας θέρμανσης με βιομάζα με θερμοχωρητικότητα καυσίμου ισχύος 1 MW και 1500 ώρες πλήρους φορτίου είναι 1.500 MWh. Το 70% του καυσίμου που χρησιμοποιείται είναι θρυμματισμένο ξύλο κωνοφόρων και πλατυφύλλων ειδών G50 (μέση περιεχόμενη υγρασία 35%, 80 ευρώ/t ξηρής ουσίας) και το 30% είναι θρυμματισμένος φλοιός κωνοφόρων (χύμα) (μέση περιεχόμενη υγρασία 50%, 7 ευρώ/m³ (χύμα)). Το συνολικό κόστος καυσίμου είναι περίπου 23.000 ευρώ ανά έτος. | G46: Costul combustibilului pe an [Euro³/a] In functie de cererea de combustibil exprimata in MWh/a si luand in considerare procentul folosit pentru tipul selectat de combustibil, fisierul calculeaza costul combustibilului pentru fiecare sortiment si costurile legate de combustibil ale instalatiei exprimate in Euro pe an [Euro /a]. Exemplu: Valoare anuala estimata a cererii de combustibil intr-o centrala bazata pe biomasa cu o capacitate termica de 1 MW si 1 500 ore de functionare este de 1 500 MWh. 70 % din combustibilul folosit sunt talas de conifere si non-conifere G50 (umiditate medie 35 %, 80 Euro/t de SU), 30 % este scoarta de rasinos (vrac) (umiditate medie 50 %, 7 Euro/m³ (vrac)). Costul total anual este in jur de 23 000 Euro pe an. | H46: Цена на горивото за година (евро/год) На базата на въведеното търсене в МВтч/а и вземайки под внимание въведените проценти за избраните типове гориво, таблицата изчислява приблизително разходите за гориво за всеки сортимент и общия разход на гориво за инсталацията в Евро за година Пример: | I46: Ročné náklady na palivo [Euro/r] Na základe zadaného dopytu po palive v MWh/ročne a uvažovanej zadanej percentuálnej hodnote pre vybraný typ paliva, výpočtový hárok vypočíta náklady na palivo pre každý výber a celkové náklady na palivo inštalácie v Euro za rok [Euro/r]. Príklad: Očakávaný ročný dopyt po palive teplárne na biomasu s tepelnou vstupnou kapacitou 1MW a 1,500 plného zaťaženia je 1,500 MWh. 70 % používaného dreva je ihlačnaté drevo a neihličnatá drevná štiepka G50 (stredná hodnota obsahu vlhkosti 35 %, 80 Euro/t DM), 30 % sú ihličnaté drevné triesky (voľné) (priemerný obsah vlhkosti 50 %, 7 Euro/m³(voľné)). Celkové náklady na palivo sú 23,000 Euro za rok. | J46: Polttoainekustannukset vuodessa [Euro/a] | K46: Roczny koszt paliwa [Euro/rok] Na podstawie podanego rocznego zapotrzebowania na paliwo w MWh/rok i biorąc pod uwagę podany stosunek wybranych typów paliw, arkusz obliczy szacowany koszt paliwa dla każdego asortymentu i całkowity roczny koszt paliwa dla instalacji [Euro/rok]. Przykład: Szacowane roczne zapotrzebowanie na paliwo ciepłowni na biomasę o mocy nominalnej 1 MW i 1,500 godzin pracy przy pełnym obciążeniu wynosi 1,500 MWh. 70 % używanego paliwa stanowią trociny drewna iglastego i drewna liściastego G50 (średnia zawartość wilgoci 35 %, 80 Euro/t s.m.), a 30 % stanowią zrębki kory drewna iglastego (luz) (średnia zawartość wilgoci 50%, 7 Euro/m³(luz)). Całkowity koszt paliwa wynosi około 23,000 Euro/rok.
A47: E51 | B47: Composite fuel price [Euro/MWh] Based on the entered fuel demand in MWh/a and considering the entered percentages for the selected fuel types, the spreadsheet calculates the fuel costs for each assortment and the composite fuel price in Euro per MWh [Euro/MWh]. Example: The estimated annual fuel demand of a biomass heating plant with a fuel heat input capacity of 1 MW and 1,500 full load hours is 1,500 MWh. 70 % of the used fuel are coniferous wood and non-coniferous wood chips G50 (average moisture content 35 %, 80 Euro/t DM), 30 % are coniferous wood bark chippings (loose) (average moisture content 50 %, 7 Euro/m³(loose)). The total fuel cost is araound 23,000 Euro per year. This corresponds to a composite fuel price of around 15 Euro per MWh. | C47: Brennstoff Mischpreis [Euro/MWh] Ausgehend vom eingetragenen Brennstoffbedarf in MWh/a und gemäß der angegebenen Prozentanteile für die gewählten Brennstoffe wird der Mischpreis für den Brennstoff in Euro pro MWh [Euro/MWh] ermittelt. Beispiel: Ein Biomasseheizwerk mit 1 MW Brennstoffwärmeleistung und 1.500 h Volllasstunden hat einen Brennstoffbedarf von ca. 1.500 MWh pro Jahr. Der Brennstoffbedarf wird zu 70 % mit NH & LH Hackgut G50 (durchschnittlich 35 % Wassergehalt, Einkauf um 80,-- Euro/t TS) und zu 30 % mit Nadelholzrinde geschüttet (durchschnittlich 50 % WG, Einkauf um 7,-- Euro/srm) abgedeckt. Die Brennstoffkosten summieren sich auf ca. 23.000,-- Euro pro Jahr. Dies entspricht einem Brennstoffmischpreis von ca. 15,-- Euro pro MWh. | D47: Mješovita cijena goriva [Eur/MWh] | E47: Вартість "комбинованого"палива [грн./МВт*год] Виходячи з уведеного значення потреби в паливі (MВт*год/рік) та складу (у %) вибраних типів палива, електронна таблиця розраховує вартість палива для кожного виду й вартість "комбінованого" палива для установки в грн за МВт*год [грн./МВт*год]. Приклад: Річна потреба в біомасі котельні потужністю 1 МВт по вхідному паливу з періодом повного навантаження 1500 год/рік становить 1500 МВт*год. 70 % використовуваного палива - хвойна деревина й тріска з нехвойної деревини G50 (середня вологість 35 %, 80 грн./т СР), 30 % - тріска з кори хвойної деревини (насипом) (середня вологість 50 %, 7 грн./м³ (насипом)). Загальна вартість палива - порядку 23000 грн./рік. Це відповідає вартості "комбінованого" палива - близько 15 грн./МВт*год. | F47: Συνολικό κόστος καυσίμου ανά έτος [Ευρώ/a] Με βάση τη ζήτηση καυσίμου που εισάγεται από το χρήστη σε MWh/a και λαμβάνοντας υπόψη τα ποσοστά των επιλεγμένων ειδών καυσίμου που τέθηκαν, το υπολογιστικό φύλλο υπολογίζει το συνολικό κόστος καυσίμου σε ευρώ ανά μεγαβατώρα [ευρώ/MWh]. Παράδειγμα: Η εκτιμώμενη ετήσια ζήτηση καυσίμου σε μονάδας θέρμανσης με βιομάζα με θερμοχωρητικότητα καυσίμου ισχύος 1 MW και 1500 ώρες πλήρους φορτίου είναι 1.500 MWh. Το 70% του καυσίμου που χρησιμοποιείται είναι θρυμματισμένο ξύλο κωνοφόρων και μη κωνοφόρων ειδών G50 (μέση περιεχόμενη υγρασία 35%, 80 ευρώ/t ξηρής ουσίας) και το 30% είναι θρυμματισμένος φλοιός κωνοφόρων (χύμα) (μέση περιεχόμενη υγρασία 50%, 7 ευρώ/m³ (χύμα)). Το συνολικό κόστος καυσίμου είναι περίπου 23.000 ευρώ ανά έτος. Αυτό αντιστοιχεί σε συνολικό κόστος καυσίμου περίπου 15 ευρώ ανά μεγαβατώρα. | G47: Pretul composit al combustibilului pe an [Euro³/a] In functie de cererea de combustibil exprimata in MWh/a si luand in considerare procentul folosit pentru tipul selectat de combustibil, fisierul calculeaza costurile combustibilului pentru fiecare sortiment si pretul composit al combustibilului in Euro pe MWh [Euro /MWh]. Exemplu: Valoare anuala estimata a cererii de combustibil intr-o centrala bazata pe biomasa cu o capacitate termica de 1 MW si 1 500 ore de functionare este de 1 500 MWh. 70 % din combustibilul folosit sunt talas de conifere si non-conifere G50 (umiditate medie 35 %, 80 Euro/t de SU), 30 % este scoarta de rasinos (vrac) (umiditate medie 50 %, 7 Euro/m³ (vrac)). Aceasta corespunde la un pret compozit a combustibilului in jur de 15 Euro pe MWh. | H47: Цена на композитното гориво, (евро/МВтч) На базата на въведеното търсене на гориво в MWh/a и вземайки предвид въведените проценти за избраните видове гориво, таблицата изчислява разходите за гориво за всеки сортимент и цената на композитното гориво в Евро за МВтч [Euro/MWh]. Пример: | I47: Zložená cena paliva [Euro/MWh] Na základe zadaného dopytu po palive v MWh/ročne a uvažovanej zadanej percentuálnej hodnote pre vybraný typ paliva, výpočtový hárok vypočíta náklady na palivo pre každý výber a zloženú cenu paliva v Euro za MWh [Euro/MWh]. Príklad: Očakávaný ročný dopyt po palive teplárne na biomasu s tepelnou vstupnou kapacitou 1MW a 1,500 plného zaťaženia je 1,500 MWh. 70% používaného dreva je ihlačnaté drevo a neihličnatá drevná štiepka G50 (stredná hodnota obsahu vlhkosti 35 %, 80 Euro/t DM), 30 % sú ihličnaté drevné triesky (voľná) (priemerný obsah vlhkosti 50 %, 7 Euro/m³(voľná)). Celkové náklady na palivo sú 23,000 Euro za rok. Toto zodpovedá zloženej cene okolo 15 Euro za MWh. | J47: Yhdistetty polttoaineen hinta [Euro/MWh] | K47: Kompozytowy koszt paliwa [Euro/MWh] Na podstawie podanego rocznego zapotrzebowania na paliwo w MWh/rok i biorąc pod uwagę podany stosunek wybranych typów paliw, arkusz obliczy kompopzytowy koszt paliwa dla każdego asortymentu i kompozytowy koszt paliwa w Euro na MWh [Euro/MWh]. Przykład: Szacowane roczne zapotrzebowanie na paliwo ciepłowni na biomasę o mocy nominalnej 1 MW i 1,500 godzin pracy przy pełnym obciążeniu wynosi 1,500 MWh. 70 % używanego paliwa stanowią trociny drewna iglastego i drewna liściastego G50 (średnia zawartość wilgoci 35 %, 80 Euro/t s.m.), a 30 % stanowią zrębki kory drewna iglastego (luz) (średnia zawartość wilgoci 50%, 7 Euro/m³(luz)). Całkowity koszt paliwa wynosi około 23,000 Euro na rok. Odpowiada to kompozyowemu kosztowi paliwa na poziomie około 15 Euro za MWh.
A48: S7 | B48: In this section, the parameters are not automatically taken from the data sheet, but have to be entered manually in the light red cells. | C48: Brennstoff Mischpreis [Euro/MWh] Ausgehend vom eingetragenen Brennstoffbedarf in MWh/a und gemäß der angegebenen Prozentanteile für die gewählten Brennstoffe wird der Mischpreis für den Brennstoff in Euro pro MWh [Euro/MWh] ermittelt. Beispiel: Ein Biomasseheizwerk mit 1 MW Brennstoffwärmeleistung und 1.500 h Volllasstunden hat einen Brennstoffbedarf von ca. 1.500 MWh pro Jahr. Der Brennstoffbedarf wird zu 70 % mit NH & LH Hackgut G50 (durchschnittlich 35 % Wassergehalt, Einkauf um 80,-- Euro/t TS) und zu 30 % mit Nadelholzrinde geschüttet (durchschnittlich 50 % WG, Einkauf um 7,-- Euro/srm) abgedeckt. Die Brennstoffkosten summieren sich auf ca. 23.000,-- Euro pro Jahr. Dies entspricht einem Brennstoffmischpreis von ca. 15,-- Euro pro MWh. | D48: Dodatne informacije: U ovom odjeljku parametri se ne preuzimaju automatski iz podatkovne tablice već se moraju ručno unositi u svijetlo crvena polja | E48: В цьому розділі параметри не завантажуються автоматично із таблиці даних, їх треба вводити вручну у світло-червоні комірки. | F48: Σε αυτή την ενότητα, οι παράμετροι δεν λαμβάνονται αυτόματα από το φύλλο δεδομένων, αλλά εισάγονται από το χρήστη στα κελιά με ανοιχτό κόκκινο χρώμα. | G48: In aceasta sectiune, parametrii nu sunt automat luati din Data sheet/Fisierul cu date, insa pot sa fie introdusi manual in celulele marcate cu rosu | H48: В тази секция параметрите не се вземат автоматично от таблицата, а трябва да се вкарват ръчно в светлочервените клетки | I48: V tejto sekcii, nie sú parametre automaticky načítané z dátového hárka, ale sa musia zadávať manuálne do svetločervených buniek. | J48: Arvot on syötettävä käsin punaisiin soluihin | K48: W tej sekcji parametry nie są automatycznie uzupełniane z arkusza danych, muszą zostać wpisane ręcznie w jasno czerwone komórki.
A49: M13 | B49: Compressed wood is usually traded in weight units (t FS). | C49: Presslinge werden in der Regel mit Gewichtsmaßen (t-lutro) gehandelt | E49: При купівлі-продажу ущільненої деревини зазвичай використовуються одиниці маси (т СВР) | F49: Το συμπιεσμένο ξύλο συνήθως εμπορεύεται σε μονάδες βάρους (t ΝΟ) | G49: Lemnul presat (densificat) este uzual comercializat pe unitati de greutate (t MB) | H49: Пресованата дървесина обикновено се търгува в тегловни единици (т ПВ) | I49: Stlačené drevo je obyčajne udávané v hmotnostných jednotkách (t FS) | J49: Puristetun puun kaupankäynti on yleensä painoyksikköinä (t FS) | K49: Jednostkami używanymi w handlu drewnem prasowanym są t ś.m.
A50: M15 | B50: According to ÖNORM M 7135, the moisture content of compressed wood has to be ≤ 10 % and ≤ 18 % for compressed bark. | C50: Der Wassergehalt muss laut ÖNORM M7135 bei Holzpresslingen ≤10% und bei Rindenpresslingen ≤ 18% sein | E50: Згідно ÖNORM M 7135, вологість ущільненої деревини має бути ≤ 10 %, ущільненої кори - ≤ 18 %. | F50: Σύμφωνα με το πρότυπο ONORM M7135, η περιεχόμενη υγρασία για το συμπιεσμένο ξύλο πρέπει να είναι ≤10% και ≤18% για τον συμπιεσμένο φλοιό. | G50: In acord cu ÖNORM M 7135, umiditatea lemnului presat (densificat) trebuie sa fie intre ≤ 10 % si ≤ 18 % pentru scoarta presata | H50: Съгласно Австрийския стандарт ONORM M 7135 влагосъдържанието на пресованата дървесина трябва да бъде ≤ 10 % и ≤ 18 % за пресована дървесна кора | I50: Podľa ÖNORM M 7135, obsah vlhkosti stlačeného dreva musí byť ≤ 10% a ≤ 18% pre stlačenú kôru. | J50: Puristetun puun kosteuspitoisuuden pitää olla alle ≤ 10 % ja kuorelle ≤ 18 % | K50: Zgodnie ze standardem ÖNORM M 7135, zawartość wilgoci drewna prasowanego musi wynosić ≤ 10 %, a dla kory prasowanej ≤ 18 %.
A51: M28 | B51: In the case of compressed wood, no shrinkage adjustment is calculated, since the moisture content of these fuel types usually does not exceed the value range specified by the standards. Deviations from the standards are not taken into account in the calculations in the spreadsheet. Unintended contact of compressed wood products with water due to improper storage or an ingress of water can lead to extreme swelling and the pellets/briquettes disintegrating into sawdust. | C51: Bei Presslingen wird im Kalkulationsblatt keine Schwindmaßkorrektur gerechnet, da der Wassergehalt dieser Brennstoffe in der Regel auf die laut Norm zulässigen Werte eingestellt ist. Abweichungen von den Normwerten werden in den Berechnungsroutinen des Kalkulationsblattes nicht berücksichtigt. Eine Durchfeuchtung von Presslingen durch unsachgemäße Lagerung oder Wassereinbrüche kann aber zu extremen Volumsvergrößerungen und zum Zerfall in Späne führen. | E51: Для ущільненої деревини усадка не розраховується, оскільки вологість таких палив зазвичай не перевищує величин, зазначених в стандартах. Відхилення від стандартів не враховуються в розрахунках електронної таблиці. Випадковий контакт ущільненої деревини з водою через неналежне зберігання або доступ води може призвести до сильного набухання й руйнування гранул/брикетів. | F51: Στην περίπτωση του συμπιεσμένου ξύλου, προσαρμογή της συρρίκνωσης δεν υπολογίζεται, αφού η περιεχόμενη υγρασία, σε αυτόν τον τύπο καυσίμου συνήθως δεν υπερβαίνει το εύρος των τιμών που καθορίζονται από τα πρότυπα. Τυχόν αποκλίσεις από τις προδιαγραφές δεν λαμβάνονται υπόψη στο υπολογιστικό φύλλο. Η μη επιδιωκόμενη επαφή των προϊόντων συμπιεσμένου ξύλου με νερό, λόγω ακατάλληλης αποθήκευσης ή εισροής νερού, μπορεί να οδηγήσει σε ακραία διόγκωση και στην αποσύνθεση των pellets/μπριγκέτων σε πριονίδι. | G51: In cazul lemnului presat, nu se calculeaza ajustarile de reducere/micsorare, deoarece umiditatea acestui tip de combustibil in mod normal nu depasese valorile specificate in standarde. Diferentele fata de standarde nu sunt luate in considerare pentru calculele din fisa de calcul. In cazul unei suprafete de contact neomogene in cazul produselor de lemn presat cu umiditate mai mare, din cauza unui mod impropriu de stocare sau de absorbtie a apei, poate sa determine craparea extrema a peletilor/brichetelor dezintegrandu-se in rumegus. | H51: В случай на пресована дървесина не се изчислява корекция на свиване, тъй като съдържанието на влага в тези горива не надвишава сойностите, определени от стандартите. Отклонениеа от нормите не се вземат предвид при изчисленията в електронната таблица.Неволен контакт на компресираната дървесина поради неправилно съхранение или намокряне може да доведе до подуване или разпадане на пелетите/ брикетите на стърготини. | I51: V prípade stlačeného dreva, nie je počítané s úpravou zmrštením, kým obsah vlhkosti tohto typu paliva nepresiahne hodnoty stanovené v norme. Odchýlky od štandardu nie sú brané v úvahu v kalkulácii tohto výpočtového hárku. Nechcený kontakt stlačeného dreva s vodou počas nesprávneho skladovania alebo vstup vody môže viesť k extrémnemu napučaniu a pelety/brikety sa môžu rozpadnúť na prach. | K51: W przypadku drewna prasowanego, nie oblicza się poprawki na wyszuszenie, gdyż zawartość wilgoci w tym typie paliw zazwyczaj nie przekracza zakresu wartości określonych przez standardy. Odejścia od standardów nie są brane pod uwagę w kalkulacjach tego arkuszu. Nie zamierzony kontakt prasowanego drewna z wodą z powodu nie poprawnego przechowywania lub przedostania się wody może prowadzić do puchnięcia i rozpadu peletów w pył drzewny.
A52: P15 | B52: biofuels the water content of compressed straw has to be ≤ 10 %; | C52: Bei Presslingen wird im Kalkulationsblatt keine Schwindmaßkorrektur gerechnet, da der Wassergehalt dieser Brennstoffe in der Regel auf die laut Norm zulässigen Werte eingestellt ist. Abweichungen von den Normwerten werden in den Berechnungsroutinen des Kalkulationsblattes nicht berücksichtigt. Eine Durchfeuchtung von Presslingen durch unsachgemäße Lagerung oder Wassereinbrüche kann aber zu extremen Volumsvergrößerungen und zum Zerfall in Späne führen. | E52: біопалива: вологість ущільненої соломи має бути ≤ 10 %; | F52: βιοκαύσιμα, το ποσοστό νερού του συμπιεσμένου άχυρου πρέπει να είναι ≤ 10%. | G52: biocombustibili - paiele presate au un continut de apa ≤ 10 % | H52: биогорива пресованата слама трябва да е с водно съдържание ≤ 10 %; | I52: biopalivový obsah vody v lisovanej slame musí byť ≤ 10 %; | J52: Puristetun/pelletöidyn oljen kosteuprosentin on oltava ≤ 10 % | K52: biopaliwa zawartość wilgoci w prasowanej słomie musi wynosić ≤ 10 %;
A53: Q15 | B53: bales can contain up to 30 % | C53: Bei Presslingen wird im Kalkulationsblatt keine Schwindmaßkorrektur gerechnet, da der Wassergehalt dieser Brennstoffe in der Regel auf die laut Norm zulässigen Werte eingestellt ist. Abweichungen von den Normwerten werden in den Berechnungsroutinen des Kalkulationsblattes nicht berücksichtigt. Eine Durchfeuchtung von Presslingen durch unsachgemäße Lagerung oder Wassereinbrüche kann aber zu extremen Volumsvergrößerungen und zum Zerfall in Späne führen. | E53: тюків з соломи - до 30 % | F53: οι μπάλες μπορούν να περιέχουν έως 30%. | G53: balotii pot contine pana la 30% umiditate | H53: балите могат да съдържат до 30% | I53: balíky môžu obsahovať do 30% | J53: Paalit voivat sisältää jopa 30% | K53: w belach do 30 %

Sheet Calculation
B1: Spreadsheet for the calculation of parameters and prices of wood fuel and straw assortments
B2: Version 1.8
B3: Please enter your variables in the light red cells.
B4: For the calculations to work as intended, macros have to be activated in the Excel settings => Tools | Macro | Security | Security level | set to "Medium". | K4: =VLOOKUP(Welcome!O5,Welcome!B5:H23,7,FALSE) -> English | M4: 0
B5: Move the cursor over the red triangle in the respective cell to show the hidden comments containing additional information on the respective parameters. | M5: 0
B7: Parameters | G7: Wood species | K7: Bark | M7: Compressed wood | O7: Straw | S7: Other
B9: Basic parameters | C9: Wood species/ fuel type | D9: Selection in the drop-down menu | G9: CW & NCW | H9: CW & NCW | I9: CW & NCW | K9: bark NCW | M9: bark briquettes | O9: straw bales small | P9: straw bales small | Q9: straw bales small | S9: natural gas
C10: Fuel group | D10: Assignment to fuel groups | G10: =VLOOKUP(G9,'Data sheet'!B6:P98,5,FALSE) -> CW & NCW (mixed) | H10: =VLOOKUP(H9,'Data sheet'!B6:P98,5,FALSE) -> CW & NCW (mixed) | I10: =VLOOKUP(I9,'Data sheet'!B6:P98,5,FALSE) -> CW & NCW (mixed) | K10: =VLOOKUP(K9,'Data sheet'!B6:P98,5,FALSE) -> bark NCW | M10: Compressed wood | O10: =VLOOKUP(O9,'Data sheet'!B6:P98,5,FALSE) -> straw mixed | P10: =VLOOKUP(P9,'Data sheet'!B6:P98,5,FALSE) -> straw mixed | Q10: =VLOOKUP(Q9,'Data sheet'!B6:P98,5,FALSE) -> straw mixed | S10: fossil
C11: Assortment | D11: Selection in the drop-down menu | G11: solid wood mass | H11: solid wood mass | I11: solid wood mass | K11: wood shavings
C12: Conversion factor | D12: 1 m³(solid) = x m³(stacked) or x m³(loose) | G12: =VLOOKUP(G11,'Data sheet'!T6:W25,2,FALSE) -> 1 | H12: =VLOOKUP(H11,'Data sheet'!T6:W25,2,FALSE) -> 1 | I12: =VLOOKUP(I11,'Data sheet'!T6:W25,2,FALSE) -> 1 | K12: =VLOOKUP(K11,'Data sheet'!T18:W19,2,FALSE) -> 1 | M12: 1 | O12: 1 | P12: 1 | Q12: 1 | S12: 1
C13: Unit | D13: Customary unit | G13: =VLOOKUP(G11,'Data sheet'!T6:W25,3,FALSE) -> m³(solid) | H13: =VLOOKUP(H11,'Data sheet'!T6:W25,3,FALSE) -> m³(solid) | I13: =VLOOKUP(I11,'Data sheet'!T6:W25,3,FALSE) -> m³(solid) | K13: =VLOOKUP(K11,'Data sheet'!T18:W19,3,FALSE) -> m³(solid) | M13: =VLOOKUP(M9,'Data sheet'!T21:W25,3,FALSE) -> t FS | O13: ='Data sheet'!V25 -> t DM | P13: ='Data sheet'!V25 -> t DM | Q13: ='Data sheet'!V25 -> t DM | S13: m³
B15: Moisture | C15: Moisture content (H2O) | D15: % (by weight, FS) | G15: 40 | H15: 40 | I15: 40 | K15: 50 | M15: 8 | O15: 10 | P15: 10 | Q15: 10 | S15: 0
C16: Hydrogen content (H) | D16: % (by weight, DM) | G16: =VLOOKUP(G9,'Data sheet'!B6:P98,7,FALSE) -> 6.2 | H16: =VLOOKUP(H9,'Data sheet'!B6:P98,7,FALSE) -> 6.2 | I16: =VLOOKUP(I9,'Data sheet'!B6:P98,7,FALSE) -> 6.2 | K16: =VLOOKUP(K9,'Data sheet'!B6:P98,7,FALSE) -> 6.1 | M16: =VLOOKUP(M9,'Data sheet'!B6:P98,7,FALSE) -> 6.3 | O16: =VLOOKUP(O9,'Data sheet'!B6:P98,7,FALSE) -> 5.425 | P16: =VLOOKUP(P9,'Data sheet'!B6:P98,7,FALSE) -> 5.425 | Q16: =VLOOKUP(Q9,'Data sheet'!B6:P98,7,FALSE) -> 5.425 | S16: 23.6
B18: Higher heating value (HHV) | C18: HHV of dry matter (DM) | D18: MJ/kg DM | G18: =VLOOKUP(G9,'Data sheet'!B6:P98,8,FALSE) -> 20.2060354 | H18: =VLOOKUP(H9,'Data sheet'!B6:P98,8,FALSE) -> 20.2060354 | I18: =VLOOKUP(I9,'Data sheet'!B6:P98,8,FALSE) -> 20.2060354 | K18: =VLOOKUP(K9,'Data sheet'!B6:P98,8,FALSE) -> 19.3228482 | M18: =VLOOKUP(M9,'Data sheet'!B6:P98,8,FALSE) -> 20.3669431 | O18: =VLOOKUP(O9,'Data sheet'!B6:P98,8,FALSE) -> 18.310575 | P18: =VLOOKUP(P9,'Data sheet'!B6:P98,8,FALSE) -> 18.310575 | Q18: =VLOOKUP(Q9,'Data sheet'!B6:P98,8,FALSE) -> 18.310575 | S18: 49.2
C19: HHV of DM | D19: kWh/kg DM | G19: =G18/3.6 -> 5.612787611 | H19: =H18/3.6 -> 5.612787611 | I19: =I18/3.6 -> 5.612787611 | K19: =K18/3.6 -> 5.367457833 | M19: =M18/3.6 -> 5.657484194 | O19: =O18/3.6 -> 5.086270833 | P19: =P18/3.6 -> 5.086270833 | Q19: =Q18/3.6 -> 5.086270833 | S19: =S18/3.6 -> 13.66666667
B20: Lower heating value (LHV) | C20: LHV of dry matter (DM) | D20: MJ/kg DM | G20: =G21*3.6 -> 18.83909226 | H20: =H21*3.6 -> 18.83909226 | I20: =I21*3.6 -> 18.83909226 | K20: =K21*3.6 -> 17.97795253 | M20: =M21*3.6 -> 18.97795249 | O20: =O21*3.6 -> 17.11449975 | P20: =P21*3.6 -> 17.11449975 | Q20: =Q21*3.6 -> 17.11449975 | S20: =S21*3.6 -> 43.99679708
C21: LHV of DM | D21: kWh/kg DM | G21: =(G18*(1-0/100)-2.447*0/100-G16/100/2*18.02*2.447*(1-0/100))/3.6 -> 5.233081183 | H21: =(H18*(1-0/100)-2.447*0/100-H16/100/2*18.02*2.447*(1-0/100))/3.6 -> 5.233081183 | I21: =(I18*(1-0/100)-2.447*0/100-I16/100/2*18.02*2.447*(1-0/100))/3.6 -> 5.233081183 | K21: =(K18*(1-0/100)-2.447*0/100-K16/100/2*18.02*2.447*(1-0/100))/3.6 -> 4.993875703 | M21: =(M18*(1-0/100)-2.447*0/100-M16/100/2*18.02*2.447*(1-0/100))/3.6 -> 5.271653469 | O21: =(O18*(1-0/100)-2.447*0/100-O16/100/2*18.02*2.447*(1-0/100))/3.6 -> 4.754027709 | P21: =(P18*(1-0/100)-2.447*0/100-P16/100/2*18.02*2.447*(1-0/100))/3.6 -> 4.754027709 | Q21: =(Q18*(1-0/100)-2.447*0/100-Q16/100/2*18.02*2.447*(1-0/100))/3.6 -> 4.754027709 | S21: =(S18*(1-0/100)-2.447*0/100-S16/100/2*18.02*2.447*(1-0/100))/3.6 -> 12.22133252
C22: LHV of fresh substance (FS) | D22: MJ/kg FS | G22: =G23*3.6 -> 10.32465536 | H22: 10.32465536 | I22: 10.32465536 | K22: 7.765476265 | M22: 17.26395629 | O22: 15.15834978 | P22: 15.15834978 | Q22: 15.15834978 | S22: 43.99679708
C23: LHV of FS | D23: kWh/kg FS | G23: =(G18*(1-G15/100)-2.447*G15/100-G16/100/2*18.02*2.447*(1-G15/100))/3.6 -> 2.867959821 | H23: 2.867959821 | I23: 2.867959821 | K23: 2.15707674 | M23: 4.795543414 | O23: =(O18*(1-O15/100)-2.447*O15/100-O16/100/2*18.02*2.447*(1-O15/100))/3.6 -> 4.210652716 | P23: =(P18*(1-P15/100)-2.447*P15/100-P16/100/2*18.02*2.447*(1-P15/100))/3.6 -> 4.210652716 | Q23: =(Q18*(1-Q15/100)-2.447*Q15/100-Q16/100/2*18.02*2.447*(1-Q15/100))/3.6 -> 4.210652716 | S23: 12.22133252
C24: LHV of FS | D24: MJ/m³ FS | G24: =G25*3.6 -> 7168.322175 | H24: =H25*3.6 -> 7168.322175 | I24: 7168.322175 | K24: 8409.078938 | M24: 13135.61892 | O24: 1515.834978 | P24: 1515.834978 | Q24: 1515.834978 | S24: 34.31750172
C25: LHV of FS | D25: kWh/m³ FS | G25: =G23*G29 -> 1991.200604 | H25: =H23*H29 -> 1991.200604 | I25: =I23*I29 -> 1991.200604 | K25: =K23*K29 -> 2335.855261 | M25: =M23*M29 -> 3648.783032 | O25: =O23*O29 -> 421.0652716 | P25: =P23*P29 -> 421.0652716 | Q25: =Q23*Q29 -> 421.0652716 | S25: =S23*S29 -> 9.532639367
B27: Density | C27: Mean oven-dry density | D27: kg/m³ (at 0 % H2O) | G27: =VLOOKUP(G9,'Data sheet'!B6:P98,9,FALSE) -> 475 | H27: =VLOOKUP(H9,'Data sheet'!B6:P98,9,FALSE) -> 475 | I27: =VLOOKUP(I9,'Data sheet'!B6:P98,9,FALSE) -> 475 | K27: =VLOOKUP(K9,'Data sheet'!B6:P98,9,FALSE) -> 640 | M27: =VLOOKUP(M9,'Data sheet'!B6:P98,9,FALSE) -> 700 | O27: =VLOOKUP(O9,'Data sheet'!B6:P98,9,FALSE) -> 90 | P27: =VLOOKUP(P9,'Data sheet'!B6:P98,9,FALSE) -> 90 | Q27: =VLOOKUP(Q9,'Data sheet'!B6:P98,9,FALSE) -> 90 | S27: 0.78
C28: Mean shrinkage | D28: % | G28: =VLOOKUP(G9,'Data sheet'!B6:P98,15,FALSE) -> 12.3 | H28: =VLOOKUP(H9,'Data sheet'!B6:P98,15,FALSE) -> 12.3 | I28: =VLOOKUP(I9,'Data sheet'!B6:P98,15,FALSE) -> 12.3 | K28: =VLOOKUP(K9,'Data sheet'!B6:P98,15,FALSE) -> 15.4 | M28: =VLOOKUP(M9,'Data sheet'!B6:P98,15,FALSE) -> 0 | O28: =VLOOKUP(O9,'Data sheet'!B6:P98,15,FALSE) -> 0 | P28: =VLOOKUP(P9,'Data sheet'!B6:P98,15,FALSE) -> 0 | Q28: =VLOOKUP(Q9,'Data sheet'!B6:P98,15,FALSE) -> 0 | S28: 0
C29: Bulk density | D29: kg/m³ (at x % H2O) | G29: =IF(G15>23,((G27-(G27*(G28/100)))/((100-G15)/100))/G12,((G27-G27*((G15*(G28/23))/100))/((100-G15)/100))/G12) -> 694.2916667 | H29: =IF(H15>23,((H27-(H27*(H28/100)))/((100-H15)/100))/H12,((H27-H27*((H15*(H28/23))/100))/((100-H15)/100))/H12) -> 694.2916667 | I29: =IF(I15>23,((I27-(I27*(I28/100)))/((100-I15)/100))/I12,((I27-I27*((I15*(I28/23))/100))/((100-I15)/100))/I12) -> 694.2916667 | K29: =IF(K15>23,((K27-(K27*(K28/100)))/((100-K15)/100))/K12,((K27-K27*((K15*(K28/23))/100))/((100-K15)/100))/K12) -> 1082.88 | M29: =IF(M15>23,((M27-(M27*(M28/100)))/((100-M15)/100))/M12,((M27-M27*((M15*(M28/23))/100))/((100-M15)/100))/M12) -> 760.8695652 | O29: =IF(O15>23,((O27-(O27*(O28/100)))/((100-O15)/100))/O12,((O27-O27*((O15*(O28/23))/100))/((100-O15)/100))/O12) -> 100 | P29: =IF(P15>23,((P27-(P27*(P28/100)))/((100-P15)/100))/P12,((P27-P27*((P15*(P28/23))/100))/((100-P15)/100))/P12) -> 100 | Q29: =IF(Q15>23,((Q27-(Q27*(Q28/100)))/((100-Q15)/100))/Q12,((Q27-Q27*((Q15*(Q28/23))/100))/((100-Q15)/100))/Q12) -> 100 | S29: =IF(S15>23,((S27-(S27*(S28/100)))/((100-S15)/100))/S12,((S27-S27*((S15*(S28/23))/100))/((100-S15)/100))/S12) -> 0.78
C30: - Proportion of wood substance | D30: kg/m³ (proportion of DM at x % H2O) | G30: =G29*((100-G15)/100) -> 416.575 | H30: =H29*((100-H15)/100) -> 416.575 | I30: =I29*((100-I15)/100) -> 416.575 | K30: =K29*((100-K15)/100) -> 541.44 | M30: =M29*((100-M15)/100) -> 700 | O30: =O29*((100-O15)/100) -> 90 | P30: =P29*((100-P15)/100) -> 90 | Q30: =Q29*((100-Q15)/100) -> 90 | S30: =S29*((100-S15)/100) -> 0.78
C31: - Proportion of water | D31: kg/m³ (proportion of H2O at x % H2O) | G31: =G29*G15/100 -> 277.7166667 | H31: =H29*H15/100 -> 277.7166667 | I31: =I29*I15/100 -> 277.7166667 | K31: =K29*K15/100 -> 541.44 | M31: =M29*M15/100 -> 60.86956522 | O31: =O29*O15/100 -> 10 | P31: =P29*P15/100 -> 10 | Q31: =Q29*Q15/100 -> 10 | S31: =S29*S15/100 -> 0
C32: Ratio m³ per t FS | D32: m³/t FS | G32: =1000/G29 -> 1.44031687 | H32: =1000/H29 -> 1.44031687 | I32: =1000/I29 -> 1.44031687 | K32: =1000/K29 -> 0.923463357 | M32: =1000/M29 -> 1.314285714 | O32: =1000/O29 -> 10 | P32: =1000/P29 -> 10 | Q32: =1000/Q29 -> 10 | S32: =1000/S29 -> 1282.051282
B34: Ash | C34: Ash content (estimate) | D34: % (by weight, DM) | G34: =VLOOKUP(G11,'Data sheet'!T6:W25,4,FALSE) -> 1.5 | H34: =VLOOKUP(H11,'Data sheet'!T6:W25,4,FALSE) -> 1.5 | I34: =VLOOKUP(I11,'Data sheet'!T6:W25,4,FALSE) -> 1.5 | K34: =VLOOKUP(K11,'Data sheet'!T6:W25,4,FALSE) -> 6 | M34: =VLOOKUP(M9,'Data sheet'!T6:W25,4,FALSE) -> 6 | O34: ='Data sheet'!W25 -> 5.8 | P34: ='Data sheet'!W25 -> 5.8 | Q34: ='Data sheet'!W25 -> 5.8 | S34: 0
C35: Ash density (estimate) | D35: kg/m³ | G35: 700 | H35: 700 | I35: 700 | K35: 700 | M35: 700 | O35: 700 | P35: 700 | Q35: 700 | S35: 700
B37: Price per unit | C37: Enter the fuel price in one of the input fields, the price will immediately be converted into the other price units! | D37: Euro/t DM | E37: 0 | G37: 83.64882812 | H37: 83.64882812 | I37: 83.64882812 | K37: 71.18353243 | M37: 260.8695652 | O37: 88.88888889 | P37: 88.88888889 | Q37: 88.88888889 | S37: 549.9599635
B38: Activate macros ! | D38: Euro/t FS | E38: 0 | G38: 50.18929687 | H38: 50.18929687 | I38: 50.18929687 | K38: 35.59176621 | M38: 240 | O38: 80 | P38: 80 | Q38: 80 | S38: 549.9599635
D39: Euro/m³ FS | E39: 0 | G39: 34.84601057 | H39: 34.84601057 | I39: 34.84601057 | K39: 38.5416118 | M39: 156.5217391 | O39: 8 | P39: 8 | Q39: 8 | S39: 0.4289687715
D40: Euro/MWh | G40: 17.5 | H40: 17.5 | I40: 17.5 | K40: 16.5 | M40: 49.9877346 | O40: 18.99942964 | P40: 18.99942964 | Q40: 18.99942964 | S40: 45
